Workbook

Sheet Calculator
B1: Indexval från listor. Input till kod | F1: Lbox 6 | G1: LBox 7 | H1: LBox 8 | K1: Vald produkt | N1: Fi | O1: Fs | P1: Fylltryck | Q1: Hyson Part nr | R1: Slag
B2: val1 | C2: val2 | D2: val3 | F2: T2L | G2: 50 | H2: 7 mm | K2: T2 | L2: 50 | M2: 7 mm | N2: 500 | O2: 597 | P2: 180 | Q2: T2-50x7 | R2: 7
B3: 6 | C3: 1 | D3: 1 | F3: NP | G3: 70 | H3: 10 mm | K3: Kolumn 7 Ska vara StrCode | N3: Temperature refecence | O3: Vald produkt
F4: T3 | G4: 90 | H4: 12.7 mm | K4: T2-50x7 | N4: =VLOOKUP(L6,'Hyson-Kaller conv'!C2:D164,2,0) -> R12 | O4: T2-50x7
B5: Lbox 9 Varumärke | F5: T4 | G5: 180 | H5: 15 mm | L5: =FIND("x",K4) -> 6
B6: HYSON | C6: 1 | D6: Index | F6: NPL | G6: 200 | H6: 19 mm | L6: =IFERROR(LEFT(K4,L5-1),K4) -> T2-50
B7: FORD | F7: T2 | G7: 750P | H7: 25 mm
B8: GM | F8: T3T | H8: 38 mm
B9: FCA | F9: T3F | H9: 50 mm | K9: Hämtat från temperaturbladet
B10: KALLER | F10: T4SC | H10: 63 mm | K10: =VLOOKUP($N$4,Tempdatabladet!$A$1:$AD$167,16,0) -> 20.77432505 | N10: =IF(ISERROR(K10),"Temperature data not available","") -> 
F11: T5 | H11: 75 mm | K11: =IF(ISERROR(K12),"No data",ROUND(K12,0)) -> 21 | L11: om no data | N11: Felmeddelande om tempdata saknas
F12: TNKT | H12: 80 mm | K12: ='Unit conv'!D66 -> 20.77432505 | L12: C° eller F°
F13: TNKS | H13: 100 mm | U13: =CONCATENATE("Chosen Spring: ",O4) -> Chosen Spring: T2-50x7 | Z13: =CONCATENATE("HYSON Part Number: ",Q2) -> HYSON Part Number: T2-50x7
F14: TNK | H14: 125 mm
F15: T2B | K15: =VLOOKUP($N$4,Tempdatabladet!$A$1:$AD$167,17,0) -> 30.77432505
K16: =IF(ISERROR(K17),"No data",ROUND(K17,0)) -> 31 | L16: om no data | U16: Number of Cylinders | X16: 1 | Y16: pcs
K17: ='Unit conv'!D72 -> 30.77432505 | L17: C° eller F° | U17: Filling Pressure | X17: 150 | Y17: ='Unit conv'!B18 -> bar | Z17: =Information_Message_Max_Filling_Pressure -> Maximum filling pressure is 180 bar | AC17: =Error_message_High_Pressure -> 
U18: Used Stroke | X18: 5 | Y18: =Used_Length_Unit -> mm | Z18: =Error_message_Too_long_Used_Stroke_length -> 
U19: Frequency | X19: 20 | Y19: spm
U20: Surrounding Temperature | X20: 20 | Y20: ='Unit conv'!B46 -> °C
H21: 12 in | L21: Grönmarkerade rutor är ej skyddade för att makrot ska skunna skriva där
H22: 25 mm | L22: User data fält och cell med email länk är upplåst
H23: 50 mm | U23: =Header_Force_Diagram -> Total force of 1 gas spring in kN | AD23: =CONCATENATE("Temp ",Used_Temperature_Unit) -> Temp °C
H24: 75 mm | L24: Blåmarkerade celler är ändrade i Hysonsversionen
H25: 80 mm
H26: 100 mm
H27: 125 mm | V27: =Min_Temperature_interval-User_Surrounding_temperature -> 1 | W27: Avstånd mellan rumstemp och blå markering
H28: 150 mm | V28: =Max_Temperature_Inteval-Min_Temperature_interval -> 10 | W28: Max temperatur intervall - Mintemperaturintervall
H29: 160 mm | V29: =MAXscale -> 100 | W29: Max skala
H30: 175 mm | V30: =User_Surrounding_temperature+Temperature_over_roomtemp+Temperature_width -> 31 | W30: Total temperatur
H31: 200 mm | V31: =Max_Temperature_Inteval -> 31 | W31: Max temperature interval
V32: =MAXscale-Max_Temperature_Inteval -> 69 | W32: Max skala - Max temperature_interval
V33: =IF(V32<0,0,V32) -> 69 | W33: Storlek översta diagramblock (transparent)
V34: =IF(V33=0,0,Temperature_width) -> 10 | W34: Vidd på blå markering
K35: Hyson ändrat: | V35: =Min_Temperature_interval-User_Surrounding_temperature -> 1 | W35: Temperature exceding room temp
K36: Logga, färg.
K37: texter
K38: mm, tum tillkommer
K39: Hyson partnr tillkommer
K40: Ny visning för kraft och temperatur | X40: =CONCATENATE("Stroke, ",Y18) -> Stroke, mm
AB41: =Error_message_High_Temp -> 
U42: =Information_Message_Force_at_Contact -> Force at contact is 0 kN | AB42: =Information_Message_Running_Temp -> Operating temperature is estimated to be between 21 and 31 °C
U43: =Information_Message_Force_End_Stroke -> Force at 5 mm is 0 kN
AB47: =N10 -> 
U50: IMPORTANT:
U60: Please send feeback and comments to: | Y60: Orders@hysonsolutions.com

Sheet Hyson
D1: Family | E1: Size | F1: Stroke | G1: Init Force | H1: Final Force | I1: Max Pres | J1: Str code | K1: mm | L1: =J1 -> Str code
D2: T2L | E2: 300 | F2: 0.25 in | G2: 2650 | H2: 3500 | I2: 150 | J2: T2L-300x0.25 | K2: 6.35 | L2: =J2 -> T2L-300x0.25
D3: T2L | E3: 300 | F3: 10 mm | G3: 2650 | H3: 3500 | I3: 150 | J3: T2L-300x10 | K3: 10 | L3: T2L-300x10
D4: T2L | E4: 300 | F4: 0.50 in | G4: 2650 | H4: 3500 | I4: 150 | J4: T2L-300x0.50 | K4: 12.7 | L4: T2L-300x0.50
D5: T2L | E5: 300 | F5: 16 mm | G5: 2650 | H5: 3500 | I5: 150 | J5: T2L-300x16 | K5: 16 | L5: T2L-300x16
D6: T2L | E6: 300 | F6: 0.75 in | G6: 2650 | H6: 3500 | I6: 150 | J6: T2L-300x0.75 | K6: 19.05 | L6: T2L-300x0.75
D7: T2L | E7: 300 | F7: 25 mm | G7: 2650 | H7: 3500 | I7: 150 | J7: T2L-300x25 | K7: 25 | L7: T2L-300x25
D8: T2L | E8: 300 | F8: 1.00 in | G8: 2650 | H8: 3500 | I8: 150 | J8: T2L-300x1.00 | K8: 25.4 | L8: T2L-300x1.00
D9: T2L | E9: 300 | F9: 1.50 in | G9: 2650 | H9: 3500 | I9: 150 | J9: T2L-300x1.50 | K9: 38.1 | L9: T2L-300x1.50
D10: T2L | E10: 300 | F10: 50 mm | G10: 2650 | H10: 3500 | I10: 150 | J10: T2L-300x50 | K10: 50 | L10: T2L-300x50
D11: T2L | E11: 300 | F11: 2.00 in | G11: 2650 | H11: 3500 | I11: 150 | J11: T2L-300x2.00 | K11: 50.8 | L11: T2L-300x2.00
D12: T2L | E12: 300 | F12: 2.50 in | G12: 2650 | H12: 3500 | I12: 150 | J12: T2L-300x2.50 | K12: 63.5 | L12: T2L-300x2.50
D13: T2L | E13: 300 | F13: 3.00 in | G13: 2650 | H13: 3500 | I13: 150 | J13: T2L-300x3.00 | K13: 76.2 | L13: T2L-300x3.00
D14: T2L | E14: 300 | F14: 80 mm | G14: 2650 | H14: 3500 | I14: 150 | J14: T2L-300x80 | K14: 80 | L14: T2L-300x80
D15: T2L | E15: 300 | F15: 3.50 in | G15: 2650 | H15: 3500 | I15: 150 | J15: T2L-300x3.50 | K15: 88.9 | L15: T2L-300x3.50
D16: T2L | E16: 300 | F16: 100 mm | G16: 2650 | H16: 3500 | I16: 150 | J16: T2L-300x100 | K16: 100 | L16: T2L-300x100
D17: T2L | E17: 300 | F17: 4.00 in | G17: 2650 | H17: 3500 | I17: 150 | J17: T2L-300x4.00 | K17: 101.6 | L17: T2L-300x4.00
D18: T2L | E18: 300 | F18: 4.50 in | G18: 2650 | H18: 3500 | I18: 150 | J18: T2L-300x4.50 | K18: 114.3 | L18: T2L-300x4.50
D19: T2L | E19: 300 | F19: 125 mm | G19: 2650 | H19: 3500 | I19: 150 | J19: T2L-300x125 | K19: 125 | L19: T2L-300x125
D20: T2L | E20: 300 | F20: 5.00 in | G20: 2650 | H20: 3500 | I20: 150 | J20: T2L-300x5.00 | K20: 127 | L20: T2L-300x5.00
D21: T2L | E21: 500 | F21: 0.25 in | G21: 4700 | H21: 5600 | I21: 150 | J21: T2L-500x0.25 | K21: 6.35 | L21: T2L-500x0.25
D22: T2L | E22: 500 | F22: 0.50 in | G22: 4700 | H22: 5900 | I22: 150 | J22: T2L-500x0.50 | K22: 12.7 | L22: T2L-500x0.50
D23: T2L | E23: 500 | F23: 0.75 in | G23: 4700 | H23: 6100 | I23: 150 | J23: T2L-500x0.75 | K23: 19.05 | L23: T2L-500x0.75
D24: T2L | E24: 500 | F24: 1.00 in | G24: 4700 | H24: 6200 | I24: 150 | J24: T2L-500x1.00 | K24: 25.4 | L24: T2L-500x1.00
D25: T2L | E25: 500 | F25: 1.50 in | G25: 4700 | H25: 6200 | I25: 150 | J25: T2L-500x1.50 | K25: 38.1 | L25: T2L-500x1.50
D26: T2L | E26: 500 | F26: 2.00 in | G26: 4700 | H26: 6300 | I26: 150 | J26: T2L-500x2.00 | K26: 50.8 | L26: T2L-500x2.00
D27: T2L | E27: 500 | F27: 2.50 in | G27: 4700 | H27: 6300 | I27: 150 | J27: T2L-500x2.50 | K27: 63.5 | L27: T2L-500x2.50
D28: T2L | E28: 500 | F28: 3.00 in | G28: 4700 | H28: 6300 | I28: 150 | J28: T2L-500x3.00 | K28: 76.2 | L28: T2L-500x3.00
D29: T2L | E29: 500 | F29: 3.50 in | G29: 4700 | H29: 6600 | I29: 150 | J29: T2L-500x3.50 | K29: 88.9 | L29: T2L-500x3.50
D30: T2L | E30: 500 | F30: 4.00 in | G30: 4700 | H30: 6600 | I30: 150 | J30: T2L-500x4.00 | K30: 101.6 | L30: T2L-500x4.00
D31: T2L | E31: 500 | F31: 4.50 in | G31: 4700 | H31: 6600 | I31: 150 | J31: T2L-500x4.50 | K31: 114.3 | L31: T2L-500x4.50
D32: T2L | E32: 500 | F32: 5.00 in | G32: 4700 | H32: 6600 | I32: 150 | J32: T2L-500x5.00 | K32: 127 | L32: T2L-500x5.00
D33: T2L | E33: 750 | F33: 0.25 in | G33: 7400 | H33: 15000 | I33: 150 | J33: T2L-750x0.25 | K33: 6.35 | L33: T2L-750x0.25
D34: T2L | E34: 750 | F34: 0.50 in | G34: 7400 | H34: 13000 | I34: 150 | J34: T2L-750x0.50 | K34: 12.7 | L34: T2L-750x0.50
D35: T2L | E35: 750 | F35: 0.75 in | G35: 7400 | H35: 12000 | I35: 150 | J35: T2L-750x0.75 | K35: 19.05 | L35: T2L-750x0.75
D36: T2L | E36: 750 | F36: 1.00 in | G36: 7400 | H36: 11000 | I36: 150 | J36: T2L-750x1.00 | K36: 25.4 | L36: T2L-750x1.00
D37: T2L | E37: 750 | F37: 1.50 in | G37: 7400 | H37: 11000 | I37: 150 | J37: T2L-750x1.50 | K37: 38.1 | L37: T2L-750x1.50
D38: T2L | E38: 750 | F38: 2.00 in | G38: 7400 | H38: 11000 | I38: 150 | J38: T2L-750x2.00 | K38: 50.8 | L38: T2L-750x2.00
D39: T2L | E39: 750 | F39: 2.50 in | G39: 7400 | H39: 11000 | I39: 150 | J39: T2L-750x2.50 | K39: 63.5 | L39: T2L-750x2.50
D40: T2L | E40: 750 | F40: 3.00 in | G40: 7400 | H40: 11000 | I40: 150 | J40: T2L-750x3.00 | K40: 76.2 | L40: T2L-750x3.00
D41: T2L | E41: 750 | F41: 3.50 in | G41: 7400 | H41: 11000 | I41: 150 | J41: T2L-750x3.50 | K41: 88.9 | L41: T2L-750x3.50
D42: T2L | E42: 750 | F42: 4.00 in | G42: 7400 | H42: 11000 | I42: 150 | J42: T2L-750x4.00 | K42: 101.6 | L42: T2L-750x4.00
D43: T2L | E43: 750 | F43: 4.50 in | G43: 7400 | H43: 11000 | I43: 150 | J43: T2L-750x4.50 | K43: 114.3 | L43: T2L-750x4.50
D44: T2L | E44: 750 | F44: 5.00 in | G44: 7400 | H44: 11000 | I44: 150 | J44: T2L-750x5.00 | K44: 127 | L44: T2L-750x5.00
D45: NP | E45: 500 | F45: 10 mm | G45: 4700 | H45: 6000 | I45: 150 | J45: NP-500x10 | K45: 10 | L45: NP-500x10
D46: NP | E46: 500 | F46: 12.7 mm | G46: 4700 | H46: 6100 | I46: 150 | J46: NP-500x12.7 | K46: 12.7 | L46: NP-500x12.7
D47: NP | E47: 500 | F47: 25 mm | G47: 4700 | H47: 6400 | I47: 150 | J47: NP-500x25 | K47: 25 | L47: NP-500x25
D48: NP | E48: 500 | F48: 38.1 mm | G48: 4700 | H48: 6500 | I48: 150 | J48: NP-500x38.1 | K48: 38.1 | L48: NP-500x38.1
D49: NP | E49: 500 | F49: 50 mm | G49: 4700 | H49: 6600 | I49: 150 | J49: NP-500x50 | K49: 50 | L49: NP-500x50
D50: NP | E50: 500 | F50: 63.5 mm | G50: 4700 | H50: 6600 | I50: 150 | J50: NP-500x63.5 | K50: 63.5 | L50: NP-500x63.5
D51: NP | E51: 500 | F51: 80 mm | G51: 4700 | H51: 6700 | I51: 150 | J51: NP-500x80 | K51: 80 | L51: NP-500x80
D52: NP | E52: 500 | F52: 100 mm | G52: 4700 | H52: 6700 | I52: 150 | J52: NP-500x100 | K52: 100 | L52: NP-500x100
D53: NP | E53: 500 | F53: 125 mm | G53: 4700 | H53: 6700 | I53: 150 | J53: NP-500x125 | K53: 125 | L53: NP-500x125
D54: NP | E54: 500 | F54: 160 mm | G54: 4700 | H54: 6700 | I54: 150 | J54: NP-500x160 | K54: 160 | L54: NP-500x160
D55: NP | E55: 750 | F55: 12.7 mm | G55: 7400 | H55: 12000 | I55: 150 | J55: NP-750x12.7 | K55: 12.7 | L55: NP-750x12.7
D56: NP | E56: 750 | F56: 25 mm | G56: 7400 | H56: 12000 | I56: 150 | J56: NP-750x25 | K56: 25 | L56: NP-750x25
D57: NP | E57: 750 | F57: 38.1 mm | G57: 7400 | H57: 12000 | I57: 150 | J57: NP-750x38.1 | K57: 38.1 | L57: NP-750x38.1
D58: NP | E58: 750 | F58: 50 mm | G58: 7400 | H58: 12000 | I58: 150 | J58: NP-750x50 | K58: 50 | L58: NP-750x50
D59: NP | E59: 750 | F59: 63.5 mm | G59: 7400 | H59: 12000 | I59: 150 | J59: NP-750x63.5 | K59: 63.5 | L59: NP-750x63.5
D60: NP | E60: 750 | F60: 80 mm | G60: 7400 | H60: 12000 | I60: 150 | J60: NP-750x80 | K60: 80 | L60: NP-750x80
D61: NP | E61: 750 | F61: 100 mm | G61: 7400 | H61: 12000 | I61: 150 | J61: NP-750x100 | K61: 100 | L61: NP-750x100
D62: NP | E62: 750 | F62: 125 mm | G62: 7400 | H62: 12100 | I62: 150 | J62: NP-750x125 | K62: 125 | L62: NP-750x125
D63: NP | E63: 750 | F63: 160 mm | G63: 7400 | H63: 12100 | I63: 150 | J63: NP-750x160 | K63: 160 | L63: NP-750x160
D64: NP | E64: 750 | F64: 200 mm | G64: 7400 | H64: 12100 | I64: 150 | J64: NP-750x200 | K64: 200 | L64: NP-750x200
D65: NP | E65: 750 | F65: 250 mm | G65: 7400 | H65: 12100 | I65: 150 | J65: NP-750x250 | K65: 250 | L65: NP-750x250
D66: NP | E66: 750 | F66: 300 mm | G66: 7400 | H66: 12100 | I66: 150 | J66: NP-750x300 | K66: 300 | L66: =J66 -> NP-750x300
D67: NP | E67: 1500 | F67: 12.7 mm | G67: 15000 | H67: 23000 | I67: 150 | J67: NP-1500x12.7 | K67: 12.7 | L67: NP-1500x12.7
D68: NP | E68: 1500 | F68: 25 mm | G68: 15000 | H68: 23000 | I68: 150 | J68: NP-1500x25 | K68: 25 | L68: NP-1500x25
D69: NP | E69: 1500 | F69: 38.1 mm | G69: 15000 | H69: 23000 | I69: 150 | J69: NP-1500x38.1 | K69: 38.1 | L69: NP-1500x38.1
D70: NP | E70: 1500 | F70: 50 mm | G70: 15000 | H70: 23000 | I70: 150 | J70: NP-1500x50 | K70: 50 | L70: NP-1500x50
D71: NP | E71: 1500 | F71: 63.5 mm | G71: 15000 | H71: 23000 | I71: 150 | J71: NP-1500x63.5 | K71: 63.5 | L71: NP-1500x63.5
D72: NP | E72: 1500 | F72: 80 mm | G72: 15000 | H72: 23000 | I72: 150 | J72: NP-1500x80 | K72: 80 | L72: NP-1500x80
D73: NP | E73: 1500 | F73: 100 mm | G73: 15000 | H73: 23000 | I73: 150 | J73: NP-1500x100 | K73: 100 | L73: NP-1500x100
D74: NP | E74: 1500 | F74: 125 mm | G74: 15000 | H74: 23000 | I74: 150 | J74: NP-1500x125 | K74: 125 | L74: NP-1500x125
D75: NP | E75: 1500 | F75: 160 mm | G75: 15000 | H75: 23000 | I75: 150 | J75: NP-1500x160 | K75: 160 | L75: NP-1500x160
D76: NP | E76: 1500 | F76: 200 mm | G76: 15000 | H76: 23000 | I76: 150 | J76: NP-1500x200 | K76: 200 | L76: NP-1500x200
D77: NP | E77: 1500 | F77: 250 mm | G77: 15000 | H77: 23000 | I77: 150 | J77: NP-1500x250 | K77: 250 | L77: NP-1500x250
D78: NP | E78: 1500 | F78: 300 mm | G78: 15000 | H78: 23000 | I78: 150 | J78: NP-1500x300 | K78: 300 | L78: NP-1500x300
D79: NP | E79: 3000 | F79: 12.7 mm | G79: 30000 | H79: 42000 | I79: 150 | J79: NP-3000x12.7 | K79: 12.7 | L79: NP-3000x12.7
D80: NP | E80: 3000 | F80: 25 mm | G80: 30000 | H80: 42000 | I80: 150 | J80: NP-3000x25 | K80: 25 | L80: NP-3000x25
D81: NP | E81: 3000 | F81: 38.1 mm | G81: 30000 | H81: 43000 | I81: 150 | J81: NP-3000x38.1 | K81: 38.1 | L81: NP-3000x38.1
D82: NP | E82: 3000 | F82: 50 mm | G82: 30000 | H82: 44000 | I82: 150 | J82: NP-3000x50 | K82: 50 | L82: NP-3000x50
D83: NP | E83: 3000 | F83: 63.5 mm | G83: 30000 | H83: 45000 | I83: 150 | J83: NP-3000x63.5 | K83: 63.5 | L83: NP-3000x63.5
D84: NP | E84: 3000 | F84: 80 mm | G84: 30000 | H84: 46000 | I84: 150 | J84: NP-3000x80 | K84: 80 | L84: NP-3000x80
D85: NP | E85: 3000 | F85: 100 mm | G85: 30000 | H85: 47000 | I85: 150 | J85: NP-3000x100 | K85: 100 | L85: NP-3000x100
D86: NP | E86: 3000 | F86: 125 mm | G86: 30000 | H86: 47000 | I86: 150 | J86: NP-3000x125 | K86: 125 | L86: NP-3000x125
D87: NP | E87: 3000 | F87: 160 mm | G87: 30000 | H87: 47000 | I87: 150 | J87: NP-3000x160 | K87: 160 | L87: NP-3000x160
D88: NP | E88: 3000 | F88: 200 mm | G88: 30000 | H88: 48000 | I88: 150 | J88: NP-3000x200 | K88: 200 | L88: NP-3000x200
D89: NP | E89: 3000 | F89: 250 mm | G89: 30000 | H89: 48000 | I89: 150 | J89: NP-3000x250 | K89: 250 | L89: NP-3000x250
D90: NP | E90: 3000 | F90: 300 mm | G90: 30000 | H90: 48000 | I90: 150 | J90: NP-3000x300 | K90: 300 | L90: NP-3000x300
D91: NP | E91: 5000 | F91: 25 mm | G91: 50000 | H91: 71000 | I91: 150 | J91: NP-5000x25 | K91: 25 | L91: NP-5000x25
D92: NP | E92: 5000 | F92: 38.1 mm | G92: 50000 | H92: 75000 | I92: 150 | J92: NP-5000x38.1 | K92: 38.1 | L92: NP-5000x38.1
D93: NP | E93: 5000 | F93: 50 mm | G93: 50000 | H93: 77000 | I93: 150 | J93: NP-5000x50 | K93: 50 | L93: NP-5000x50
D94: NP | E94: 5000 | F94: 63.5 mm | G94: 50000 | H94: 80000 | I94: 150 | J94: NP-5000x63.5 | K94: 63.5 | L94: NP-5000x63.5
D95: NP | E95: 5000 | F95: 80 mm | G95: 50000 | H95: 81000 | I95: 150 | J95: NP-5000x80 | K95: 80 | L95: NP-5000x80
D96: NP | E96: 5000 | F96: 100 mm | G96: 50000 | H96: 82000 | I96: 150 | J96: NP-5000x100 | K96: 100 | L96: NP-5000x100
D97: NP | E97: 5000 | F97: 125 mm | G97: 50000 | H97: 82000 | I97: 150 | J97: NP-5000x125 | K97: 125 | L97: NP-5000x125
D98: NP | E98: 5000 | F98: 160 mm | G98: 50000 | H98: 83000 | I98: 150 | J98: NP-5000x160 | K98: 160 | L98: NP-5000x160
D99: NP | E99: 5000 | F99: 200 mm | G99: 50000 | H99: 84000 | I99: 150 | J99: NP-5000x200 | K99: 200 | L99: NP-5000x200
D100: NP | E100: 5000 | F100: 250 mm | G100: 50000 | H100: 84000 | I100: 150 | J100: NP-5000x250 | K100: 250 | L100: NP-5000x250
D101: NP | E101: 5000 | F101: 300 mm | G101: 50000 | H101: 84000 | I101: 150 | J101: NP-5000x300 | K101: 300 | L101: NP-5000x300
D102: NP | E102: 7500 | F102: 25 mm | G102: 75000 | H102: 105000 | I102: 150 | J102: NP-7500x25 | K102: 25 | L102: NP-7500x25
D103: NP | E103: 7500 | F103: 38.1 mm | G103: 75000 | H103: 110000 | I103: 150 | J103: NP-7500x38.1 | K103: 38.1 | L103: NP-7500x38.1
D104: NP | E104: 7500 | F104: 50 mm | G104: 75000 | H104: 113000 | I104: 150 | J104: NP-7500x50 | K104: 50 | L104: NP-7500x50
D105: NP | E105: 7500 | F105: 63.5 mm | G105: 75000 | H105: 115000 | I105: 150 | J105: NP-7500x63.5 | K105: 63.5 | L105: NP-7500x63.5
D106: NP | E106: 7500 | F106: 80 mm | G106: 75000 | H106: 117000 | I106: 150 | J106: NP-7500x80 | K106: 80 | L106: NP-7500x80
D107: NP | E107: 7500 | F107: 100 mm | G107: 75000 | H107: 119000 | I107: 150 | J107: NP-7500x100 | K107: 100 | L107: NP-7500x100
D108: NP | E108: 7500 | F108: 125 mm | G108: 75000 | H108: 121000 | I108: 150 | J108: NP-7500x125 | K108: 125 | L108: NP-7500x125
D109: NP | E109: 7500 | F109: 160 mm | G109: 75000 | H109: 122000 | I109: 150 | J109: NP-7500x160 | K109: 160 | L109: NP-7500x160
D110: NP | E110: 7500 | F110: 200 mm | G110: 75000 | H110: 123000 | I110: 150 | J110: NP-7500x200 | K110: 200 | L110: NP-7500x200
D111: NP | E111: 7500 | F111: 250 mm | G111: 75000 | H111: 124000 | I111: 150 | J111: NP-7500x250 | K111: 250 | L111: NP-7500x250
D112: NP | E112: 7500 | F112: 300 mm | G112: 75000 | H112: 124000 | I112: 150 | J112: NP-7500x300 | K112: 300 | L112: NP-7500x300
D113: NP | E113: 10000 | F113: 25 mm | G113: 106000 | H113: 138000 | I113: 150 | J113: NP-10000x25 | K113: 25 | L113: NP-10000x25
D114: NP | E114: 10000 | F114: 38.1 mm | G114: 106000 | H114: 143000 | I114: 150 | J114: NP-10000x38.1 | K114: 38.1 | L114: NP-10000x38.1
D115: NP | E115: 10000 | F115: 50 mm | G115: 106000 | H115: 147000 | I115: 150 | J115: NP-10000x50 | K115: 50 | L115: NP-10000x50
D116: NP | E116: 10000 | F116: 63.5 mm | G116: 106000 | H116: 150000 | I116: 150 | J116: NP-10000x63.5 | K116: 63.5 | L116: NP-10000x63.5
D117: NP | E117: 10000 | F117: 80 mm | G117: 106000 | H117: 152000 | I117: 150 | J117: NP-10000x80 | K117: 80 | L117: NP-10000x80
D118: NP | E118: 10000 | F118: 100 mm | G118: 106000 | H118: 156000 | I118: 150 | J118: NP-10000x100 | K118: 100 | L118: NP-10000x100
D119: NP | E119: 10000 | F119: 125 mm | G119: 106000 | H119: 157000 | I119: 150 | J119: NP-10000x125 | K119: 125 | L119: NP-10000x125
D120: NP | E120: 10000 | F120: 160 mm | G120: 106000 | H120: 158000 | I120: 150 | J120: NP-10000x160 | K120: 160 | L120: NP-10000x160
D121: NP | E121: 10000 | F121: 200 mm | G121: 106000 | H121: 160000 | I121: 150 | J121: NP-10000x200 | K121: 200 | L121: NP-10000x200
D122: NP | E122: 10000 | F122: 250 mm | G122: 106000 | H122: 160000 | I122: 150 | J122: NP-10000x250 | K122: 250 | L122: NP-10000x250
D123: NP | E123: 10000 | F123: 300 mm | G123: 106000 | H123: 160000 | I123: 150 | J123: NP-10000x300 | K123: 300 | L123: NP-10000x300
D124: T3 | E124: 170 | F124: 7 mm | G124: 1700 | H124: 2800 | I124: 180 | J124: T3-170x7 | K124: 7 | L124: T3-170x7
D125: T3 | E125: 170 | F125: 10 mm | G125: 1700 | H125: 2800 | I125: 180 | J125: T3-170x10 | K125: 10 | L125: T3-170x10
D126: T3 | E126: 170 | F126: 15 mm | G126: 1700 | H126: 2800 | I126: 180 | J126: T3-170x15 | K126: 15 | L126: T3-170x15
D127: T3 | E127: 170 | F127: 19 mm | G127: 1700 | H127: 2800 | I127: 180 | J127: T3-170x19 | K127: 19 | L127: T3-170x19
D128: T3 | E128: 170 | F128: 25 mm | G128: 1700 | H128: 2800 | I128: 180 | J128: T3-170x25 | K128: 25 | L128: T3-170x25
D129: T3 | E129: 170 | F129: 38 mm | G129: 1700 | H129: 2800 | I129: 180 | J129: T3-170x38 | K129: 38 | L129: T3-170x38
D130: T3 | E130: 170 | F130: 50 mm | G130: 1700 | H130: 2800 | I130: 180 | J130: T3-170x50 | K130: 50 | L130: =J130 -> T3-170x50
D131: T3 | E131: 170 | F131: 63 mm | G131: 1700 | H131: 2800 | I131: 180 | J131: T3-170x63 | K131: 63 | L131: T3-170x63
D132: T3 | E132: 170 | F132: 75 mm | G132: 1700 | H132: 2800 | I132: 180 | J132: T3-170x75 | K132: 75 | L132: T3-170x75
D133: T3 | E133: 170 | F133: 80 mm | G133: 1700 | H133: 2800 | I133: 180 | J133: T3-170x80 | K133: 80 | L133: T3-170x80
D134: T3 | E134: 170 | F134: 100 mm | G134: 1700 | H134: 2800 | I134: 180 | J134: T3-170x100 | K134: 100 | L134: T3-170x100
D135: T3 | E135: 170 | F135: 125 mm | G135: 1700 | H135: 2800 | I135: 180 | J135: T3-170x125 | K135: 125 | L135: T3-170x125
D136: T3 | E136: 320 | F136: 7 mm | G136: 3200 | H136: 4800 | I136: 180 | J136: T3-320x7 | K136: 7 | L136: T3-320x7
D137: T3 | E137: 320 | F137: 10 mm | G137: 3200 | H137: 4900 | I137: 180 | J137: T3-320x10 | K137: 10 | L137: T3-320x10
D138: T3 | E138: 320 | F138: 15 mm | G138: 3200 | H138: 5100 | I138: 180 | J138: T3-320x15 | K138: 15 | L138: T3-320x15
D139: T3 | E139: 320 | F139: 19 mm | G139: 3200 | H139: 5100 | I139: 180 | J139: T3-320x19 | K139: 19 | L139: T3-320x19
D140: T3 | E140: 320 | F140: 25 mm | G140: 3200 | H140: 5200 | I140: 180 | J140: T3-320x25 | K140: 25 | L140: T3-320x25
D141: T3 | E141: 320 | F141: 38 mm | G141: 3200 | H141: 5300 | I141: 180 | J141: T3-320x38 | K141: 38 | L141: T3-320x38
D142: T3 | E142: 320 | F142: 50 mm | G142: 3200 | H142: 5300 | I142: 180 | J142: T3-320x50 | K142: 50 | L142: T3-320x50
D143: T3 | E143: 320 | F143: 63 mm | G143: 3200 | H143: 5300 | I143: 180 | J143: T3-320x63 | K143: 63 | L143: T3-320x63
D144: T3 | E144: 320 | F144: 75 mm | G144: 3200 | H144: 5300 | I144: 180 | J144: T3-320x75 | K144: 75 | L144: T3-320x75
D145: T3 | E145: 320 | F145: 80 mm | G145: 3200 | H145: 5300 | I145: 180 | J145: T3-320x80 | K145: 80 | L145: T3-320x80
D146: T3 | E146: 320 | F146: 100 mm | G146: 3200 | H146: 5300 | I146: 180 | J146: T3-320x100 | K146: 100 | L146: T3-320x100
D147: T3 | E147: 320 | F147: 125 mm | G147: 3200 | H147: 5300 | I147: 180 | J147: T3-320x125 | K147: 125 | L147: T3-320x125
D148: T3 | E148: 350 | F148: 10 mm | G148: 3600 | H148: 5900 | I148: 180 | J148: T3-350x10 | K148: 10 | L148: T3-350x10
D149: T3 | E149: 350 | F149: 13 mm | G149: 3600 | H149: 5200 | I149: 180 | J149: T3-350x13 | K149: 13 | L149: T3-350x13
D150: T3 | E150: 350 | F150: 16 mm | G150: 3600 | H150: 5300 | I150: 180 | J150: T3-350x16 | K150: 16 | L150: T3-350x16
D151: T3 | E151: 350 | F151: 19 mm | G151: 3600 | H151: 5600 | I151: 180 | J151: T3-350x19 | K151: 19 | L151: T3-350x19
D152: T3 | E152: 350 | F152: 25 mm | G152: 3600 | H152: 5500 | I152: 180 | J152: T3-350x25 | K152: 25 | L152: T3-350x25
D153: T3 | E153: 350 | F153: 32 mm | G153: 3600 | H153: 5500 | I153: 180 | J153: T3-350x32 | K153: 32 | L153: T3-350x32
D154: T3 | E154: 350 | F154: 38 mm | G154: 3600 | H154: 5500 | I154: 180 | J154: T3-350x38 | K154: 38 | L154: T3-350x38
D155: T3 | E155: 350 | F155: 50 mm | G155: 3600 | H155: 5500 | I155: 180 | J155: T3-350x50 | K155: 50 | L155: T3-350x50
D156: T3 | E156: 350 | F156: 63 mm | G156: 3600 | H156: 5500 | I156: 180 | J156: T3-350x63 | K156: 63 | L156: T3-350x63
D157: T3 | E157: 350 | F157: 75 mm | G157: 3600 | H157: 5500 | I157: 180 | J157: T3-350x75 | K157: 75 | L157: T3-350x75
D158: T3 | E158: 350 | F158: 80 mm | G158: 3600 | H158: 5500 | I158: 180 | J158: T3-350x80 | K158: 80 | L158: T3-350x80
D159: T3 | E159: 350 | F159: 100 mm | G159: 3600 | H159: 5500 | I159: 180 | J159: T3-350x100 | K159: 100 | L159: T3-350x100
D160: T3 | E160: 350 | F160: 125 mm | G160: 3600 | H160: 5500 | I160: 180 | J160: T3-350x125 | K160: 125 | L160: T3-350x125
D161: T3 | E161: 500 | F161: 10 mm | G161: 4700 | H161: 7200 | I161: 150 | J161: T3-500x10 | K161: 10 | L161: T3-500x10
D162: T3 | E162: 500 | F162: 13 mm | G162: 4700 | H162: 7100 | I162: 150 | J162: T3-500x13 | K162: 13 | L162: T3-500x13
D163: T3 | E163: 500 | F163: 16 mm | G163: 4700 | H163: 7200 | I163: 150 | J163: T3-500x16 | K163: 16 | L163: T3-500x16
D164: T3 | E164: 500 | F164: 19 mm | G164: 4700 | H164: 7400 | I164: 150 | J164: T3-500x19 | K164: 19 | L164: T3-500x19
D165: T3 | E165: 500 | F165: 25 mm | G165: 4700 | H165: 7300 | I165: 150 | J165: T3-500x25 | K165: 25 | L165: T3-500x25
D166: T3 | E166: 500 | F166: 32 mm | G166: 4700 | H166: 7200 | I166: 150 | J166: T3-500x32 | K166: 32 | L166: T3-500x32
D167: T3 | E167: 500 | F167: 38 mm | G167: 4700 | H167: 7200 | I167: 150 | J167: T3-500x38 | K167: 38 | L167: T3-500x38
D168: T3 | E168: 500 | F168: 50 mm | G168: 4700 | H168: 7200 | I168: 150 | J168: T3-500x50 | K168: 50 | L168: T3-500x50
D169: T3 | E169: 500 | F169: 63 mm | G169: 4700 | H169: 7200 | I169: 150 | J169: T3-500x63 | K169: 63 | L169: T3-500x63
D170: T3 | E170: 500 | F170: 75 mm | G170: 4700 | H170: 7100 | I170: 150 | J170: T3-500x75 | K170: 75 | L170: T3-500x75
D171: T3 | E171: 500 | F171: 80 mm | G171: 4700 | H171: 7100 | I171: 150 | J171: T3-500x80 | K171: 80 | L171: T3-500x80
D172: T3 | E172: 500 | F172: 100 mm | G172: 4700 | H172: 7100 | I172: 150 | J172: T3-500x100 | K172: 100 | L172: T3-500x100
D173: T3 | E173: 500 | F173: 125 mm | G173: 4700 | H173: 7100 | I173: 150 | J173: T3-500x125 | K173: 125 | L173: T3-500x125
D174: T3 | E174: 750 | F174: 10 mm | G174: 7400 | H174: 12100 | I174: 150 | J174: T3-750x10 | K174: 10 | L174: T3-750x10
D175: T3 | E175: 750 | F175: 13 mm | G175: 7400 | H175: 12100 | I175: 150 | J175: T3-750x13 | K175: 13 | L175: T3-750x13
D176: T3 | E176: 750 | F176: 16 mm | G176: 7400 | H176: 12100 | I176: 150 | J176: T3-750x16 | K176: 16 | L176: T3-750x16
D177: T3 | E177: 750 | F177: 19 mm | G177: 7400 | H177: 11800 | I177: 150 | J177: T3-750x19 | K177: 19 | L177: T3-750x19
D178: T3 | E178: 750 | F178: 25 mm | G178: 7400 | H178: 11800 | I178: 150 | J178: T3-750x25 | K178: 25 | L178: T3-750x25
D179: T3 | E179: 750 | F179: 32 mm | G179: 7400 | H179: 11800 | I179: 150 | J179: T3-750x32 | K179: 32 | L179: T3-750x32
D180: T3 | E180: 750 | F180: 38 mm | G180: 7400 | H180: 11800 | I180: 150 | J180: T3-750x38 | K180: 38 | L180: T3-750x38
D181: T3 | E181: 750 | F181: 50 mm | G181: 7400 | H181: 11800 | I181: 150 | J181: T3-750x50 | K181: 50 | L181: T3-750x50
D182: T3 | E182: 750 | F182: 63 mm | G182: 7400 | H182: 11800 | I182: 150 | J182: T3-750x63 | K182: 63 | L182: T3-750x63
D183: T3 | E183: 750 | F183: 75 mm | G183: 7400 | H183: 11900 | I183: 150 | J183: T3-750x75 | K183: 75 | L183: T3-750x75
D184: T3 | E184: 750 | F184: 80 mm | G184: 7400 | H184: 11900 | I184: 150 | J184: T3-750x80 | K184: 80 | L184: T3-750x80
D185: T3 | E185: 750 | F185: 100 mm | G185: 7400 | H185: 11900 | I185: 150 | J185: T3-750x100 | K185: 100 | L185: T3-750x100
D186: T3 | E186: 750 | F186: 125 mm | G186: 7400 | H186: 11900 | I186: 150 | J186: T3-750x125 | K186: 125 | L186: T3-750x125
D187: T3 | E187: 1000 | F187: 13 mm | G187: 9200 | H187: 13800 | I187: 150 | J187: T3-1000x13 | K187: 13 | L187: T3-1000x13
D188: T3 | E188: 1000 | F188: 16 mm | G188: 9200 | H188: 13800 | I188: 150 | J188: T3-1000x16 | K188: 16 | L188: T3-1000x16
D189: T3 | E189: 1000 | F189: 19 mm | G189: 9200 | H189: 14000 | I189: 150 | J189: T3-1000x19 | K189: 19 | L189: T3-1000x19
D190: T3 | E190: 1000 | F190: 25 mm | G190: 9200 | H190: 14200 | I190: 150 | J190: T3-1000x25 | K190: 25 | L190: T3-1000x25
D191: T3 | E191: 1000 | F191: 32 mm | G191: 9200 | H191: 14300 | I191: 150 | J191: T3-1000x32 | K191: 32 | L191: T3-1000x32
D192: T3 | E192: 1000 | F192: 38 mm | G192: 9200 | H192: 14500 | I192: 150 | J192: T3-1000x38 | K192: 38 | L192: T3-1000x38
D193: T3 | E193: 1000 | F193: 50 mm | G193: 9200 | H193: 14600 | I193: 150 | J193: T3-1000x50 | K193: 50 | L193: T3-1000x50
D194: T3 | E194: 1000 | F194: 63 mm | G194: 9200 | H194: 14700 | I194: 150 | J194: T3-1000x63 | K194: 63 | L194: =J194 -> T3-1000x63
D195: T3 | E195: 1000 | F195: 75 mm | G195: 9200 | H195: 14700 | I195: 150 | J195: T3-1000x75 | K195: 75 | L195: T3-1000x75
D196: T3 | E196: 1000 | F196: 80 mm | G196: 9200 | H196: 14800 | I196: 150 | J196: T3-1000x80 | K196: 80 | L196: T3-1000x80
D197: T3 | E197: 1000 | F197: 100 mm | G197: 9200 | H197: 14800 | I197: 150 | J197: T3-1000x100 | K197: 100 | L197: T3-1000x100
D198: T3 | E198: 1000 | F198: 125 mm | G198: 9200 | H198: 14800 | I198: 150 | J198: T3-1000x125 | K198: 125 | L198: T3-1000x125
D199: T3 | E199: 1500 | F199: 13 mm | G199: 15000 | H199: 24000 | I199: 150 | J199: T3-1500x13 | K199: 13 | L199: T3-1500x13
D200: T3 | E200: 1500 | F200: 16 mm | G200: 15000 | H200: 24100 | I200: 150 | J200: T3-1500x16 | K200: 16 | L200: T3-1500x16
... 858 more rows

Sheet Ford
D1: Ford Series | E1: Ford Size | F1: Stroke | G1: Init Force | H1: Final Force | I1: Max Pres | J1: Hyson Reference | K1: mm | L1: Ford STRCode
D2: WDX356015 | E2: 7 | F2: 25 mm | G2: 106000 | H2: 160000 | I2: 150 | J2: NP-750x25 | K2: 25 | L2: WDX356015-07-02-DMS
D3: WDX356015 | E3: 7 | F3: 38.1 mm | G3: 106000 | H3: 160000 | I3: 150 | J3: NP-750x38.1 | K3: 38.1 | L3: WDX356015-07-03-DMS
D4: WDX356015 | E4: 7 | F4: 50 mm | G4: 106000 | H4: 160000 | I4: 150 | J4: NP-750x50 | K4: 50 | L4: WDX356015-07-05-DMS
D5: WDX356015 | E5: 7 | F5: 63.5 mm | G5: 106000 | H5: 160000 | I5: 150 | J5: NP-750x63.5 | K5: 63.5 | L5: WDX356015-07-06-DMS
D6: WDX356015 | E6: 7 | F6: 80 mm | G6: 106000 | H6: 160000 | I6: 150 | J6: NP-750x80 | K6: 80 | L6: WDX356015-07-08-DMS
D7: WDX356015 | E7: 7 | F7: 100 mm | G7: 106000 | H7: 160000 | I7: 150 | J7: NP-750x100 | K7: 100 | L7: WDX356015-07-10-DMS
D8: WDX356015 | E8: 7 | F8: 125 mm | G8: 106000 | H8: 160000 | I8: 150 | J8: NP-750x125 | K8: 125 | L8: WDX356015-07-12-DMS
D9: WDX356015 | E9: 7 | F9: 160 mm | G9: 106000 | H9: 160000 | I9: 150 | J9: NP-750x160 | K9: 160 | L9: WDX356015-07-16-DMS
D10: WDX356015 | E10: 7 | F10: 200 mm | G10: 106000 | H10: 160000 | I10: 150 | J10: NP-750x200 | K10: 200 | L10: WDX356015-07-20-DMS
D11: WDX356015 | E11: 15 | F11: 25 mm | G11: 106000 | H11: 160000 | I11: 150 | J11: NP-1500x25 | K11: 25 | L11: WDX356015-15-02-DMS
D12: WDX356015 | E12: 15 | F12: 38.1 mm | G12: 106000 | H12: 160000 | I12: 150 | J12: NP-1500x38.1 | K12: 38.1 | L12: WDX356015-15-03-DMS
D13: WDX356015 | E13: 15 | F13: 50 mm | G13: 106000 | H13: 160000 | I13: 150 | J13: NP-1500x50 | K13: 50 | L13: WDX356015-15-05-DMS
D14: WDX356015 | E14: 15 | F14: 63.5 mm | G14: 106000 | H14: 160000 | I14: 150 | J14: NP-1500x63.5 | K14: 63.5 | L14: WDX356015-15-06-DMS
D15: WDX356015 | E15: 15 | F15: 80 mm | G15: 106000 | H15: 160000 | I15: 150 | J15: NP-1500x80 | K15: 80 | L15: WDX356015-15-08-DMS
D16: WDX356015 | E16: 15 | F16: 100 mm | G16: 106000 | H16: 160000 | I16: 150 | J16: NP-1500x100 | K16: 100 | L16: WDX356015-15-10-DMS
D17: WDX356015 | E17: 15 | F17: 125 mm | G17: 106000 | H17: 160000 | I17: 150 | J17: NP-1500x125 | K17: 125 | L17: WDX356015-15-12-DMS
D18: WDX356015 | E18: 15 | F18: 160 mm | G18: 106000 | H18: 160000 | I18: 150 | J18: NP-1500x160 | K18: 160 | L18: WDX356015-15-16-DMS
D19: WDX356015 | E19: 15 | F19: 200 mm | G19: 106000 | H19: 160000 | I19: 150 | J19: NP-1500x200 | K19: 200 | L19: WDX356015-15-20-DMS
D20: WDX356015 | E20: 30 | F20: 25 mm | G20: 106000 | H20: 160000 | I20: 150 | J20: NP-3000x25 | K20: 25 | L20: WDX356015-30-02-DMS
D21: WDX356015 | E21: 30 | F21: 38.1 mm | G21: 106000 | H21: 160000 | I21: 150 | J21: NP-3000x38.1 | K21: 38.1 | L21: WDX356015-30-03-DMS
D22: WDX356015 | E22: 30 | F22: 50 mm | G22: 106000 | H22: 160000 | I22: 150 | J22: NP-3000x50 | K22: 50 | L22: WDX356015-30-05-DMS
D23: WDX356015 | E23: 30 | F23: 63.5 mm | G23: 106000 | H23: 160000 | I23: 150 | J23: NP-3000x63.5 | K23: 63.5 | L23: WDX356015-30-06-DMS
D24: WDX356015 | E24: 30 | F24: 80 mm | G24: 106000 | H24: 160000 | I24: 150 | J24: NP-3000x80 | K24: 80 | L24: WDX356015-30-08-DMS
D25: WDX356015 | E25: 30 | F25: 100 mm | G25: 106000 | H25: 160000 | I25: 150 | J25: NP-3000x100 | K25: 100 | L25: WDX356015-30-10-DMS
D26: WDX356015 | E26: 30 | F26: 125 mm | G26: 106000 | H26: 160000 | I26: 150 | J26: NP-3000x125 | K26: 125 | L26: WDX356015-30-12-DMS
D27: WDX356015 | E27: 30 | F27: 160 mm | G27: 106000 | H27: 160000 | I27: 150 | J27: NP-3000x160 | K27: 160 | L27: WDX356015-30-16-DMS
D28: WDX356015 | E28: 30 | F28: 200 mm | G28: 106000 | H28: 160000 | I28: 150 | J28: NP-3000x200 | K28: 200 | L28: WDX356015-30-20-DMS
D29: WDX356015 | E29: 50 | F29: 25 mm | G29: 106000 | H29: 160000 | I29: 150 | J29: NP-5000x25 | K29: 25 | L29: WDX356015-50-02-DMS
D30: WDX356015 | E30: 50 | F30: 38.1 mm | G30: 106000 | H30: 160000 | I30: 150 | J30: NP-5000x38.1 | K30: 38.1 | L30: WDX356015-50-03-DMS
D31: WDX356015 | E31: 50 | F31: 50 mm | G31: 106000 | H31: 160000 | I31: 150 | J31: NP-5000x50 | K31: 50 | L31: WDX356015-50-05-DMS
D32: WDX356015 | E32: 50 | F32: 63.5 mm | G32: 106000 | H32: 160000 | I32: 150 | J32: NP-5000x63.5 | K32: 63.5 | L32: WDX356015-50-06-DMS
D33: WDX356015 | E33: 50 | F33: 80 mm | G33: 106000 | H33: 160000 | I33: 150 | J33: NP-5000x80 | K33: 80 | L33: WDX356015-50-08-DMS
D34: WDX356015 | E34: 50 | F34: 100 mm | G34: 106000 | H34: 160000 | I34: 150 | J34: NP-5000x100 | K34: 100 | L34: WDX356015-50-10-DMS
D35: WDX356015 | E35: 50 | F35: 125 mm | G35: 106000 | H35: 160000 | I35: 150 | J35: NP-5000x125 | K35: 125 | L35: WDX356015-50-12-DMS
D36: WDX356015 | E36: 50 | F36: 160 mm | G36: 106000 | H36: 160000 | I36: 150 | J36: NP-5000x160 | K36: 160 | L36: WDX356015-50-16-DMS
D37: WDX356015 | E37: 50 | F37: 200 mm | G37: 106000 | H37: 160000 | I37: 150 | J37: NP-5000x200 | K37: 200 | L37: WDX356015-50-20-DMS
D38: WDX356015 | E38: 75 | F38: 25 mm | G38: 106000 | H38: 160000 | I38: 150 | J38: NP-7500x25 | K38: 25 | L38: WDX356015-75-02-DMS
D39: WDX356015 | E39: 75 | F39: 38.1 mm | G39: 106000 | H39: 160000 | I39: 150 | J39: NP-7500x38.1 | K39: 38.1 | L39: WDX356015-75-03-DMS
D40: WDX356015 | E40: 75 | F40: 50 mm | G40: 106000 | H40: 160000 | I40: 150 | J40: NP-7500x50 | K40: 50 | L40: WDX356015-75-05-DMS
D41: WDX356015 | E41: 75 | F41: 63.5 mm | G41: 106000 | H41: 160000 | I41: 150 | J41: NP-7500x63.5 | K41: 63.5 | L41: WDX356015-75-06-DMS
D42: WDX356015 | E42: 75 | F42: 80 mm | G42: 106000 | H42: 160000 | I42: 150 | J42: NP-7500x80 | K42: 80 | L42: WDX356015-75-08-DMS
D43: WDX356015 | E43: 75 | F43: 100 mm | G43: 106000 | H43: 160000 | I43: 150 | J43: NP-7500x100 | K43: 100 | L43: WDX356015-75-10-DMS
D44: WDX356015 | E44: 75 | F44: 125 mm | G44: 106000 | H44: 160000 | I44: 150 | J44: NP-7500x125 | K44: 125 | L44: WDX356015-75-12-DMS
D45: WDX356015 | E45: 75 | F45: 160 mm | G45: 106000 | H45: 160000 | I45: 150 | J45: NP-7500x160 | K45: 160 | L45: WDX356015-75-16-DMS
D46: WDX356015 | E46: 75 | F46: 200 mm | G46: 106000 | H46: 160000 | I46: 150 | J46: NP-7500x200 | K46: 200 | L46: WDX356015-75-20-DMS
D47: WDX356022 | E47: 3 | F47: 50 mm | G47: 2000 | H47: 3060 | I47: 180 | J47: T2L-300x50 | K47: 50 | L47: WDX356022-03-05-DMS
D48: WDX356022 | E48: 3 | F48: 2.50 in | G48: 2000 | H48: 3060 | I48: 180 | J48: T2L-300x2.50 | K48: 63.5 | L48: WDX356022-03-06-DMS
D49: WDX356025 | E49: 30 | F49: 25 mm | G49: 106000 | H49: 160000 | I49: 150 | J49: NPL-3000x25 | K49: 25 | L49: WDX356025-30-02-DMS
D50: WDX356025 | E50: 30 | F50: 37.5 mm | G50: 106000 | H50: 160000 | I50: 150 | J50: NPL-3000x37.5 | K50: 37.5 | L50: WDX356025-30-03-DMS
D51: WDX356025 | E51: 30 | F51: 50 mm | G51: 106000 | H51: 160000 | I51: 150 | J51: NPL-3000x50 | K51: 50 | L51: WDX356025-30-05-DMS
D52: WDX356025 | E52: 30 | F52: 62.5 mm | G52: 106000 | H52: 160000 | I52: 150 | J52: NPL-3000x62.5 | K52: 62.5 | L52: WDX356025-30-06-DMS
D53: WDX356025 | E53: 30 | F53: 80 mm | G53: 106000 | H53: 160000 | I53: 150 | J53: NPL-3000x80 | K53: 80 | L53: WDX356025-30-08-DMS
D54: WDX356025 | E54: 30 | F54: 100 mm | G54: 106000 | H54: 160000 | I54: 150 | J54: NPL-3000x100 | K54: 100 | L54: WDX356025-30-10-DMS
D55: WDX356025 | E55: 30 | F55: 125 mm | G55: 106000 | H55: 160000 | I55: 150 | J55: NPL-3000x125 | K55: 125 | L55: WDX356025-30-12-DMS
D56: WDX356025 | E56: 30 | F56: 160 mm | G56: 106000 | H56: 160000 | I56: 150 | J56: NPL-3000x160 | K56: 160 | L56: WDX356025-30-16-DMS
D57: WDX356025 | E57: 30 | F57: 200 mm | G57: 106000 | H57: 160000 | I57: 150 | J57: NPL-3000x200 | K57: 200 | L57: WDX356025-30-20-DMS
D58: WDX356025 | E58: 50 | F58: 25 mm | G58: 106000 | H58: 160000 | I58: 150 | J58: NPL-5000x25 | K58: 25 | L58: WDX356025-50-02-DMS
D59: WDX356025 | E59: 50 | F59: 37.5 mm | G59: 106000 | H59: 160000 | I59: 150 | J59: NPL-5000x37.5 | K59: 37.5 | L59: WDX356025-50-03-DMS
D60: WDX356025 | E60: 50 | F60: 50 mm | G60: 106000 | H60: 160000 | I60: 150 | J60: NPL-5000x50 | K60: 50 | L60: WDX356025-50-05-DMS
D61: WDX356025 | E61: 50 | F61: 62.5 mm | G61: 106000 | H61: 160000 | I61: 150 | J61: NPL-5000x62.5 | K61: 62.5 | L61: WDX356025-50-06-DMS
D62: WDX356025 | E62: 50 | F62: 80 mm | G62: 106000 | H62: 160000 | I62: 150 | J62: NPL-5000x80 | K62: 80 | L62: WDX356025-50-08-DMS
D63: WDX356025 | E63: 50 | F63: 100 mm | G63: 106000 | H63: 160000 | I63: 150 | J63: NPL-5000x100 | K63: 100 | L63: WDX356025-50-10-DMS
D64: WDX356025 | E64: 50 | F64: 125 mm | G64: 106000 | H64: 160000 | I64: 150 | J64: NPL-5000x125 | K64: 125 | L64: WDX356025-50-12-DMS
D65: WDX356025 | E65: 50 | F65: 160 mm | G65: 106000 | H65: 160000 | I65: 150 | J65: NPL-5000x160 | K65: 160 | L65: WDX356025-50-16-DMS
D66: WDX356025 | E66: 50 | F66: 200 mm | G66: 106000 | H66: 160000 | I66: 150 | J66: NPL-5000x200 | K66: 200 | L66: WDX356025-50-20-DMS
D67: WDX356025 | E67: 75 | F67: 25 mm | G67: 106000 | H67: 160000 | I67: 150 | J67: NPL-7500x25 | K67: 25 | L67: WDX356025-75-02-DMS
D68: WDX356025 | E68: 75 | F68: 37.5 mm | G68: 106000 | H68: 160000 | I68: 150 | J68: NPL-7500x37.5 | K68: 37.5 | L68: WDX356025-75-03-DMS
D69: WDX356025 | E69: 75 | F69: 50 mm | G69: 106000 | H69: 160000 | I69: 150 | J69: NPL-7500x50 | K69: 50 | L69: WDX356025-75-05-DMS
D70: WDX356025 | E70: 75 | F70: 62.5 mm | G70: 106000 | H70: 160000 | I70: 150 | J70: NPL-7500x62.5 | K70: 62.5 | L70: WDX356025-75-06-DMS
D71: WDX356025 | E71: 75 | F71: 80 mm | G71: 106000 | H71: 160000 | I71: 150 | J71: NPL-7500x80 | K71: 80 | L71: WDX356025-75-08-DMS
D72: WDX356025 | E72: 75 | F72: 100 mm | G72: 106000 | H72: 160000 | I72: 150 | J72: NPL-7500x100 | K72: 100 | L72: WDX356025-75-10-DMS
D73: WDX356025 | E73: 75 | F73: 125 mm | G73: 106000 | H73: 160000 | I73: 150 | J73: NPL-7500x125 | K73: 125 | L73: WDX356025-75-12-DMS
D74: WDX356025 | E74: 75 | F74: 160 mm | G74: 106000 | H74: 160000 | I74: 150 | J74: NPL-7500x160 | K74: 160 | L74: WDX356025-75-16-DMS
D75: WDX356025 | E75: 75 | F75: 200 mm | G75: 106000 | H75: 160000 | I75: 150 | J75: NPL-7500x200 | K75: 200 | L75: WDX356025-75-20-DMS
D76: WDX356101 | E76: 3 | F76: 25 mm | G76: 2000 | H76: 3060 | I76: 180 | J76: T3-350x25 | K76: 25 | L76: WDX356101-03-02-DMS
D77: WDX356101 | E77: 3 | F77: 38 mm | G77: 2000 | H77: 3060 | I77: 180 | J77: T3-350x38 | K77: 38 | L77: WDX356101-03-03-DMS
D78: WDX356101 | E78: 3 | F78: 50 mm | G78: 2000 | H78: 3060 | I78: 180 | J78: T3-350x50 | K78: 50 | L78: WDX356101-03-05-DMS
D79: WDX356101 | E79: 3 | F79: 63 mm | G79: 2000 | H79: 3060 | I79: 180 | J79: T3-350x63 | K79: 63 | L79: WDX356101-03-06-DMS
D80: WDX356101 | E80: 3 | F80: 80 mm | G80: 2000 | H80: 3060 | I80: 180 | J80: T3-350x80 | K80: 80 | L80: WDX356101-03-08-DMS
D81: WDX356101 | E81: 3 | F81: 100 mm | G81: 2000 | H81: 3060 | I81: 180 | J81: T3-350x100 | K81: 100 | L81: WDX356101-03-10-DMS
D82: WDX356101 | E82: 3 | F82: 125 mm | G82: 2000 | H82: 3060 | I82: 180 | J82: T3-350x125 | K82: 125 | L82: WDX356101-03-12-DMS
D83: WDX356101 | E83: 7 | F83: 25 mm | G83: 2000 | H83: 3060 | I83: 180 | J83: T3-500x25 | K83: 25 | L83: WDX356101-07-02-DMS
D84: WDX356101 | E84: 7 | F84: 38 mm | G84: 2000 | H84: 3060 | I84: 180 | J84: T3-500x38 | K84: 38 | L84: WDX356101-07-03-DMS
D85: WDX356101 | E85: 7 | F85: 50 mm | G85: 2000 | H85: 3060 | I85: 180 | J85: T3-500x50 | K85: 50 | L85: WDX356101-07-05-DMS
D86: WDX356101 | E86: 7 | F86: 63 mm | G86: 2000 | H86: 3060 | I86: 180 | J86: T3-500x63 | K86: 63 | L86: WDX356101-07-06-DMS
D87: WDX356101 | E87: 7 | F87: 80 mm | G87: 2000 | H87: 3060 | I87: 180 | J87: T3-500x80 | K87: 80 | L87: WDX356101-07-08-DMS
D88: WDX356101 | E88: 7 | F88: 100 mm | G88: 2000 | H88: 3060 | I88: 180 | J88: T3-500x100 | K88: 100 | L88: WDX356101-07-10-DMS
D89: WDX356101 | E89: 7 | F89: 125 mm | G89: 2000 | H89: 3060 | I89: 180 | J89: T3-500x125 | K89: 125 | L89: WDX356101-07-12-DMS
D90: WDX356101 | E90: 10 | F90: 25 mm | G90: 2000 | H90: 3060 | I90: 180 | J90: T3-1000x25 | K90: 25 | L90: WDX356101-10-02-DMS
D91: WDX356101 | E91: 10 | F91: 38 mm | G91: 2000 | H91: 3060 | I91: 180 | J91: T3-1000x38 | K91: 38 | L91: WDX356101-10-03-DMS
D92: WDX356101 | E92: 10 | F92: 50 mm | G92: 2000 | H92: 3060 | I92: 180 | J92: T3-1000x50 | K92: 50 | L92: WDX356101-10-05-DMS
D93: WDX356101 | E93: 10 | F93: 63 mm | G93: 2000 | H93: 3060 | I93: 180 | J93: T3-1000x63 | K93: 63 | L93: WDX356101-10-06-DMS
D94: WDX356101 | E94: 10 | F94: 80 mm | G94: 2000 | H94: 3060 | I94: 180 | J94: T3-1000x80 | K94: 80 | L94: WDX356101-10-08-DMS
D95: WDX356101 | E95: 10 | F95: 100 mm | G95: 2000 | H95: 3060 | I95: 180 | J95: T3-1000x100 | K95: 100 | L95: WDX356101-10-10-DMS
D96: WDX356101 | E96: 10 | F96: 125 mm | G96: 2000 | H96: 3060 | I96: 180 | J96: T3-1000x125 | K96: 125 | L96: WDX356101-10-12-DMS
D97: WDX356101 | E97: 15 | F97: 25 mm | G97: 2000 | H97: 3060 | I97: 180 | J97: T3-1500x25 | K97: 25 | L97: WDX356101-15-02-DMS
D98: WDX356101 | E98: 15 | F98: 38 mm | G98: 2000 | H98: 3060 | I98: 180 | J98: T3-1500x38 | K98: 38 | L98: WDX356101-15-03-DMS
D99: WDX356101 | E99: 15 | F99: 50 mm | G99: 2000 | H99: 3060 | I99: 180 | J99: T3-1500x50 | K99: 50 | L99: WDX356101-15-05-DMS
D100: WDX356101 | E100: 15 | F100: 63 mm | G100: 2000 | H100: 3060 | I100: 180 | J100: T3-1500x63 | K100: 63 | L100: WDX356101-15-06-DMS
D101: WDX356101 | E101: 15 | F101: 80 mm | G101: 2000 | H101: 3060 | I101: 180 | J101: T3-1500x80 | K101: 80 | L101: WDX356101-15-08-DMS
D102: WDX356101 | E102: 15 | F102: 100 mm | G102: 2000 | H102: 3060 | I102: 180 | J102: T3-1500x100 | K102: 100 | L102: WDX356101-15-10-DMS
D103: WDX356101 | E103: 15 | F103: 125 mm | G103: 2000 | H103: 3060 | I103: 180 | J103: T3-1500x125 | K103: 125 | L103: WDX356101-15-12-DMS
D104: WDX356101 | E104: 24 | F104: 25 mm | G104: 2000 | H104: 3060 | I104: 180 | J104: T3-2400x25 | K104: 25 | L104: WDX356101-24-02-DMS
D105: WDX356101 | E105: 24 | F105: 38 mm | G105: 2000 | H105: 3060 | I105: 180 | J105: T3-2400x38 | K105: 38 | L105: WDX356101-24-03-DMS
D106: WDX356101 | E106: 24 | F106: 50 mm | G106: 2000 | H106: 3060 | I106: 180 | J106: T3-2400x50 | K106: 50 | L106: WDX356101-24-05-DMS
D107: WDX356101 | E107: 24 | F107: 63 mm | G107: 2000 | H107: 3060 | I107: 180 | J107: T3-2400x63 | K107: 63 | L107: WDX356101-24-06-DMS
D108: WDX356101 | E108: 24 | F108: 80 mm | G108: 2000 | H108: 3060 | I108: 180 | J108: T3-2400x80 | K108: 80 | L108: WDX356101-24-08-DMS
D109: WDX356101 | E109: 24 | F109: 100 mm | G109: 2000 | H109: 3060 | I109: 180 | J109: T3-2400x100 | K109: 100 | L109: WDX356101-24-10-DMS
D110: WDX356101 | E110: 24 | F110: 125 mm | G110: 2000 | H110: 3060 | I110: 180 | J110: T3-2400x125 | K110: 125 | L110: WDX356101-24-12-DMS
D111: WDX356101 | E111: 42 | F111: 25 mm | G111: 2000 | H111: 3060 | I111: 180 | J111: T3-4200x25 | K111: 25 | L111: WDX356101-42-02-DMS
D112: WDX356101 | E112: 42 | F112: 38 mm | G112: 2000 | H112: 3060 | I112: 180 | J112: T3-4200x38 | K112: 38 | L112: WDX356101-42-03-DMS
D113: WDX356101 | E113: 42 | F113: 50 mm | G113: 2000 | H113: 3060 | I113: 180 | J113: T3-4200x50 | K113: 50 | L113: WDX356101-42-05-DMS
D114: WDX356101 | E114: 42 | F114: 63 mm | G114: 2000 | H114: 3060 | I114: 180 | J114: T3-4200x63 | K114: 63 | L114: WDX356101-42-06-DMS
D115: WDX356101 | E115: 42 | F115: 80 mm | G115: 2000 | H115: 3060 | I115: 180 | J115: T3-4200x80 | K115: 80 | L115: WDX356101-42-08-DMS
D116: WDX356101 | E116: 42 | F116: 100 mm | G116: 2000 | H116: 3060 | I116: 180 | J116: T3-4200x100 | K116: 100 | L116: WDX356101-42-10-DMS
D117: WDX356101 | E117: 42 | F117: 125 mm | G117: 2000 | H117: 3060 | I117: 180 | J117: T3-4200x125 | K117: 125 | L117: WDX356101-42-12-DMS
D118: WDX356101 | E118: 66 | F118: 25 mm | G118: 2000 | H118: 3060 | I118: 180 | J118: T3-6600x25 | K118: 25 | L118: WDX356101-66-02-DMS
D119: WDX356101 | E119: 66 | F119: 38 mm | G119: 2000 | H119: 3060 | I119: 180 | J119: T3-6600x38 | K119: 38 | L119: WDX356101-66-03-DMS
D120: WDX356101 | E120: 66 | F120: 50 mm | G120: 2000 | H120: 3060 | I120: 180 | J120: T3-6600x50 | K120: 50 | L120: WDX356101-66-05-DMS
D121: WDX356101 | E121: 66 | F121: 63 mm | G121: 2000 | H121: 3060 | I121: 180 | J121: T3-6600x63 | K121: 63 | L121: WDX356101-66-06-DMS
D122: WDX356101 | E122: 66 | F122: 80 mm | G122: 2000 | H122: 3060 | I122: 180 | J122: T3-6600x80 | K122: 80 | L122: WDX356101-66-08-DMS
D123: WDX356101 | E123: 66 | F123: 100 mm | G123: 2000 | H123: 3060 | I123: 180 | J123: T3-6600x100 | K123: 100 | L123: WDX356101-66-10-DMS
D124: WDX356101 | E124: 66 | F124: 125 mm | G124: 2000 | H124: 3060 | I124: 180 | J124: T3-6600x125 | K124: 125 | L124: WDX356101-66-12-DMS
D125: WDX356101 | E125: 95 | F125: 25 mm | G125: 2000 | H125: 3060 | I125: 180 | J125: T3-9500x25 | K125: 25 | L125: WDX356101-95-02-DMS
D126: WDX356101 | E126: 95 | F126: 38 mm | G126: 2000 | H126: 3060 | I126: 180 | J126: T3-9500x38 | K126: 38 | L126: WDX356101-95-03-DMS
D127: WDX356101 | E127: 95 | F127: 50 mm | G127: 2000 | H127: 3060 | I127: 180 | J127: T3-9500x50 | K127: 50 | L127: WDX356101-95-05-DMS
D128: WDX356101 | E128: 95 | F128: 63 mm | G128: 2000 | H128: 3060 | I128: 180 | J128: T3-9500x63 | K128: 63 | L128: WDX356101-95-06-DMS
D129: WDX356101 | E129: 95 | F129: 80 mm | G129: 2000 | H129: 3060 | I129: 180 | J129: T3-9500x80 | K129: 80 | L129: WDX356101-95-08-DMS
D130: WDX356101 | E130: 95 | F130: 100 mm | G130: 2000 | H130: 3060 | I130: 180 | J130: T3-9500x100 | K130: 100 | L130: WDX356101-95-10-DMS
D131: WDX356101 | E131: 95 | F131: 125 mm | G131: 2000 | H131: 3060 | I131: 180 | J131: T3-9500x125 | K131: 125 | L131: WDX356101-95-12-DMS

Sheet GM
D1: GM Series | E1: GM Size | F1: Stroke | G1: Init Force | H1: Final Force | I1: Max Pres | J1: Hyson Reference | K1: mm | L1: GM STRCode
D2: 90.25.00 | E2: 2.5 | F2: 10 mm | G2: 2000 | H2: 3060 | I2: 180 | J2: T2L-300x10 | K2: 10 | L2: 90.25.00-2.5-10
D3: 90.25.00 | E3: 2.5 | F3: 16 mm | G3: 2000 | H3: 3060 | I3: 180 | J3: T2L-300x16 | K3: 16 | L3: 90.25.00-2.5-16
D4: 90.25.00 | E4: 2.5 | F4: 25 mm | G4: 2000 | H4: 3060 | I4: 180 | J4: T2L-300x25 | K4: 25 | L4: 90.25.00-2.5-25
D5: 90.25.00 | E5: 2.5 | F5: 50 mm | G5: 2000 | H5: 3060 | I5: 180 | J5: T2L-300x50 | K5: 50 | L5: 90.25.00-2.5-50
D6: 90.25.00 | E6: 2.5 | F6: 80 mm | G6: 2000 | H6: 3060 | I6: 180 | J6: T2L-300x80 | K6: 80 | L6: 90.25.00-2.5-80
D7: 90.25.00 | E7: 2.5 | F7: 100 mm | G7: 2000 | H7: 3060 | I7: 180 | J7: T2L-300x100 | K7: 100 | L7: 90.25.00-2.5-100
D8: 90.25.00 | E8: 2.5 | F8: 125 mm | G8: 2000 | H8: 3060 | I8: 180 | J8: T2L-300x125 | K8: 125 | L8: 90.25.00-2.5-125
D9: 90.25.00 | E9: 5 | F9: 10 mm | G9: 106000 | H9: 160000 | I9: 150 | J9: NP-500x10 | K9: 10 | L9: 90.25.00-5-10
D10: 90.25.00 | E10: 5 | F10: 25 mm | G10: 106000 | H10: 160000 | I10: 150 | J10: NP-500x25 | K10: 25 | L10: 90.25.00-5-25
D11: 90.25.00 | E11: 5 | F11: 50 mm | G11: 106000 | H11: 160000 | I11: 150 | J11: NP-500x50 | K11: 50 | L11: 90.25.00-5-50
D12: 90.25.00 | E12: 5 | F12: 80 mm | G12: 106000 | H12: 160000 | I12: 150 | J12: NP-500x80 | K12: 80 | L12: 90.25.00-5-80
D13: 90.25.00 | E13: 5 | F13: 100 mm | G13: 106000 | H13: 160000 | I13: 150 | J13: NP-500x100 | K13: 100 | L13: 90.25.00-5-100
D14: 90.25.00 | E14: 5 | F14: 125 mm | G14: 106000 | H14: 160000 | I14: 150 | J14: NP-500x125 | K14: 125 | L14: 90.25.00-5-125
D15: 90.25.00 | E15: 5 | F15: 160 mm | G15: 106000 | H15: 160000 | I15: 150 | J15: NP-500x160 | K15: 160 | L15: 90.25.00-5-160
D16: 90.25.00 | E16: 7.5 | F16: 25 mm | G16: 106000 | H16: 160000 | I16: 150 | J16: NP-750x25 | K16: 25 | L16: 90.25.00-7.5-25
D17: 90.25.00 | E17: 7.5 | F17: 50 mm | G17: 106000 | H17: 160000 | I17: 150 | J17: NP-750x50 | K17: 50 | L17: 90.25.00-7.5-50
D18: 90.25.00 | E18: 7.5 | F18: 80 mm | G18: 106000 | H18: 160000 | I18: 150 | J18: NP-750x80 | K18: 80 | L18: 90.25.00-7.5-80
D19: 90.25.00 | E19: 7.5 | F19: 100 mm | G19: 106000 | H19: 160000 | I19: 150 | J19: NP-750x100 | K19: 100 | L19: 90.25.00-7.5-100
D20: 90.25.00 | E20: 7.5 | F20: 125 mm | G20: 106000 | H20: 160000 | I20: 150 | J20: NP-750x125 | K20: 125 | L20: 90.25.00-7.5-125
D21: 90.25.00 | E21: 7.5 | F21: 160 mm | G21: 106000 | H21: 160000 | I21: 150 | J21: NP-750x160 | K21: 160 | L21: 90.25.00-7.5-160
D22: 90.25.00 | E22: 7.5 | F22: 200 mm | G22: 106000 | H22: 160000 | I22: 150 | J22: NP-750x200 | K22: 200 | L22: 90.25.00-7.5-200
D23: 90.25.00 | E23: 7.5 | F23: 250 mm | G23: 106000 | H23: 160000 | I23: 150 | J23: NP-750x250 | K23: 250 | L23: 90.25.00-7.5-250
D24: 90.25.00 | E24: 7.5 | F24: 300 mm | G24: 106000 | H24: 160000 | I24: 150 | J24: NP-750x300 | K24: 300 | L24: 90.25.00-7.5-300
D25: 90.25.00 | E25: 15 | F25: 25 mm | G25: 106000 | H25: 160000 | I25: 150 | J25: NP-1500x25 | K25: 25 | L25: 90.25.00-15-25
D26: 90.25.00 | E26: 15 | F26: 50 mm | G26: 106000 | H26: 160000 | I26: 150 | J26: NP-1500x50 | K26: 50 | L26: 90.25.00-15-50
D27: 90.25.00 | E27: 15 | F27: 80 mm | G27: 106000 | H27: 160000 | I27: 150 | J27: NP-1500x80 | K27: 80 | L27: 90.25.00-15-80
D28: 90.25.00 | E28: 15 | F28: 100 mm | G28: 106000 | H28: 160000 | I28: 150 | J28: NP-1500x100 | K28: 100 | L28: 90.25.00-15-100
D29: 90.25.00 | E29: 15 | F29: 125 mm | G29: 106000 | H29: 160000 | I29: 150 | J29: NP-1500x125 | K29: 125 | L29: 90.25.00-15-125
D30: 90.25.00 | E30: 15 | F30: 160 mm | G30: 106000 | H30: 160000 | I30: 150 | J30: NP-1500x160 | K30: 160 | L30: 90.25.00-15-160
D31: 90.25.00 | E31: 15 | F31: 200 mm | G31: 106000 | H31: 160000 | I31: 150 | J31: NP-1500x200 | K31: 200 | L31: 90.25.00-15-200
D32: 90.25.00 | E32: 15 | F32: 250 mm | G32: 106000 | H32: 160000 | I32: 150 | J32: NP-1500x250 | K32: 250 | L32: 90.25.00-15-250
D33: 90.25.00 | E33: 15 | F33: 300 mm | G33: 106000 | H33: 160000 | I33: 150 | J33: NP-1500x300 | K33: 300 | L33: 90.25.00-15-300
D34: 90.25.00 | E34: 30 | F34: 25 mm | G34: 106000 | H34: 160000 | I34: 150 | J34: NP-3000x25 | K34: 25 | L34: 90.25.00-30-25
D35: 90.25.00 | E35: 30 | F35: 50 mm | G35: 106000 | H35: 160000 | I35: 150 | J35: NP-3000x50 | K35: 50 | L35: 90.25.00-30-50
D36: 90.25.00 | E36: 30 | F36: 80 mm | G36: 106000 | H36: 160000 | I36: 150 | J36: NP-3000x80 | K36: 80 | L36: 90.25.00-30-80
D37: 90.25.00 | E37: 30 | F37: 100 mm | G37: 106000 | H37: 160000 | I37: 150 | J37: NP-3000x100 | K37: 100 | L37: 90.25.00-30-100
D38: 90.25.00 | E38: 30 | F38: 125 mm | G38: 106000 | H38: 160000 | I38: 150 | J38: NP-3000x125 | K38: 125 | L38: 90.25.00-30-125
D39: 90.25.00 | E39: 30 | F39: 160 mm | G39: 106000 | H39: 160000 | I39: 150 | J39: NP-3000x160 | K39: 160 | L39: 90.25.00-30-160
D40: 90.25.00 | E40: 30 | F40: 200 mm | G40: 106000 | H40: 160000 | I40: 150 | J40: NP-3000x200 | K40: 200 | L40: 90.25.00-30-200
D41: 90.25.00 | E41: 30 | F41: 250 mm | G41: 106000 | H41: 160000 | I41: 150 | J41: NP-3000x250 | K41: 250 | L41: 90.25.00-30-250
D42: 90.25.00 | E42: 30 | F42: 300 mm | G42: 106000 | H42: 160000 | I42: 150 | J42: NP-3000x300 | K42: 300 | L42: 90.25.00-30-300
D43: 90.25.00 | E43: 50 | F43: 25 mm | G43: 106000 | H43: 160000 | I43: 150 | J43: NP-5000x25 | K43: 25 | L43: 90.25.00-50-25
D44: 90.25.00 | E44: 50 | F44: 50 mm | G44: 106000 | H44: 160000 | I44: 150 | J44: NP-5000x50 | K44: 50 | L44: 90.25.00-50-50
D45: 90.25.00 | E45: 50 | F45: 80 mm | G45: 106000 | H45: 160000 | I45: 150 | J45: NP-5000x80 | K45: 80 | L45: 90.25.00-50-80
D46: 90.25.00 | E46: 50 | F46: 100 mm | G46: 106000 | H46: 160000 | I46: 150 | J46: NP-5000x100 | K46: 100 | L46: 90.25.00-50-100
D47: 90.25.00 | E47: 50 | F47: 125 mm | G47: 106000 | H47: 160000 | I47: 150 | J47: NP-5000x125 | K47: 125 | L47: 90.25.00-50-125
D48: 90.25.00 | E48: 50 | F48: 160 mm | G48: 106000 | H48: 160000 | I48: 150 | J48: NP-5000x160 | K48: 160 | L48: 90.25.00-50-160
D49: 90.25.00 | E49: 50 | F49: 200 mm | G49: 106000 | H49: 160000 | I49: 150 | J49: NP-5000x200 | K49: 200 | L49: 90.25.00-50-200
D50: 90.25.00 | E50: 50 | F50: 250 mm | G50: 106000 | H50: 160000 | I50: 150 | J50: NP-5000x250 | K50: 250 | L50: 90.25.00-50-250
D51: 90.25.00 | E51: 50 | F51: 300 mm | G51: 106000 | H51: 160000 | I51: 150 | J51: NP-5000x300 | K51: 300 | L51: 90.25.00-50-300
D52: 90.25.00 | E52: 75 | F52: 25 mm | G52: 106000 | H52: 160000 | I52: 150 | J52: NP-7500x25 | K52: 25 | L52: 90.25.00-75-25
D53: 90.25.00 | E53: 75 | F53: 50 mm | G53: 106000 | H53: 160000 | I53: 150 | J53: NP-7500x50 | K53: 50 | L53: 90.25.00-75-50
D54: 90.25.00 | E54: 75 | F54: 80 mm | G54: 106000 | H54: 160000 | I54: 150 | J54: NP-7500x80 | K54: 80 | L54: 90.25.00-75-80
D55: 90.25.00 | E55: 75 | F55: 100 mm | G55: 106000 | H55: 160000 | I55: 150 | J55: NP-7500x100 | K55: 100 | L55: 90.25.00-75-100
D56: 90.25.00 | E56: 75 | F56: 125 mm | G56: 106000 | H56: 160000 | I56: 150 | J56: NP-7500x125 | K56: 125 | L56: 90.25.00-75-125
D57: 90.25.00 | E57: 75 | F57: 160 mm | G57: 106000 | H57: 160000 | I57: 150 | J57: NP-7500x160 | K57: 160 | L57: 90.25.00-75-160
D58: 90.25.00 | E58: 75 | F58: 200 mm | G58: 106000 | H58: 160000 | I58: 150 | J58: NP-7500x200 | K58: 200 | L58: 90.25.00-75-200
D59: 90.25.00 | E59: 75 | F59: 250 mm | G59: 106000 | H59: 160000 | I59: 150 | J59: NP-7500x250 | K59: 250 | L59: 90.25.00-75-250
D60: 90.25.00 | E60: 75 | F60: 300 mm | G60: 106000 | H60: 160000 | I60: 150 | J60: NP-7500x300 | K60: 300 | L60: 90.25.00-75-300
D61: 90.25.00 | E61: 100 | F61: 25 mm | G61: 106000 | H61: 160000 | I61: 150 | J61: NP-10000x25 | K61: 25 | L61: 90.25.00-100-25
D62: 90.25.00 | E62: 100 | F62: 50 mm | G62: 106000 | H62: 160000 | I62: 150 | J62: NP-10000x50 | K62: 50 | L62: 90.25.00-100-50
D63: 90.25.00 | E63: 100 | F63: 80 mm | G63: 106000 | H63: 160000 | I63: 150 | J63: NP-10000x80 | K63: 80 | L63: 90.25.00-100-80
D64: 90.25.00 | E64: 100 | F64: 100 mm | G64: 106000 | H64: 156000 | I64: 150 | J64: NP-10000x100 | K64: 100 | L64: 90.25.00-100-100
D65: 90.25.00 | E65: 100 | F65: 125 mm | G65: 106000 | H65: 157000 | I65: 150 | J65: NP-10000x125 | K65: 125 | L65: 90.25.00-100-125
D66: 90.25.00 | E66: 100 | F66: 160 mm | G66: 106000 | H66: 158000 | I66: 150 | J66: NP-10000x160 | K66: 160 | L66: 90.25.00-100-160
D67: 90.25.00 | E67: 100 | F67: 200 mm | G67: 106000 | H67: 160000 | I67: 150 | J67: NP-10000x200 | K67: 200 | L67: 90.25.00-100-200
D68: 90.25.00 | E68: 100 | F68: 250 mm | G68: 106000 | H68: 160000 | I68: 150 | J68: NP-10000x250 | K68: 250 | L68: 90.25.00-100-250
D69: 90.25.00 | E69: 100 | F69: 300 mm | G69: 106000 | H69: 160000 | I69: 150 | J69: NP-10000x300 | K69: 300 | L69: 90.25.00-100-300
D70: 90.25.05 | E70: 7.5 | F70: 25 mm | G70: 24000 | H70: 39300 | I70: 150 | J70: T4-750x25 | K70: 25 | L70: 90.25.05-7.5-25
D71: 90.25.05 | E71: 7.5 | F71: 50 mm | G71: 24000 | H71: 39300 | I71: 150 | J71: T4-750x50 | K71: 50 | L71: 90.25.05-7.5-50
D72: 90.25.05 | E72: 7.5 | F72: 80 mm | G72: 24000 | H72: 39300 | I72: 150 | J72: T4-750x80 | K72: 80 | L72: 90.25.05-7.5-80
D73: 90.25.05 | E73: 7.5 | F73: 100 mm | G73: 24000 | H73: 39300 | I73: 150 | J73: T4-750x100 | K73: 100 | L73: 90.25.05-7.5-100
D74: 90.25.05 | E74: 7.5 | F74: 125 mm | G74: 24000 | H74: 39300 | I74: 150 | J74: T4-750x125 | K74: 125 | L74: 90.25.05-7.5-125
D75: 90.25.05 | E75: 7.5 | F75: 160 mm | G75: 24000 | H75: 39300 | I75: 150 | J75: T4-750x160 | K75: 160 | L75: 90.25.05-7.5-160
D76: 90.25.05 | E76: 7.5 | F76: 200 mm | G76: 24000 | H76: 39300 | I76: 150 | J76: T4-750x200 | K76: 200 | L76: 90.25.05-7.5-200
D77: 90.25.05 | E77: 10 | F77: 25 mm | G77: 24000 | H77: 39300 | I77: 150 | J77: T4-1000x25 | K77: 25 | L77: 90.25.05-10-25
D78: 90.25.05 | E78: 10 | F78: 50 mm | G78: 24000 | H78: 39300 | I78: 150 | J78: T4-1000x50 | K78: 50 | L78: 90.25.05-10-50
D79: 90.25.05 | E79: 10 | F79: 80 mm | G79: 24000 | H79: 39300 | I79: 150 | J79: T4-1000x80 | K79: 80 | L79: 90.25.05-10-80
D80: 90.25.05 | E80: 10 | F80: 100 mm | G80: 24000 | H80: 39300 | I80: 150 | J80: T4-1000x100 | K80: 100 | L80: 90.25.05-10-100
D81: 90.25.05 | E81: 10 | F81: 125 mm | G81: 24000 | H81: 39300 | I81: 150 | J81: T4-1000x125 | K81: 125 | L81: 90.25.05-10-125
D82: 90.25.05 | E82: 10 | F82: 160 mm | G82: 24000 | H82: 39300 | I82: 150 | J82: T4-1000x160 | K82: 160 | L82: 90.25.05-10-160
D83: 90.25.05 | E83: 10 | F83: 200 mm | G83: 24000 | H83: 39300 | I83: 150 | J83: T4-1000x200 | K83: 200 | L83: 90.25.05-10-200
D84: 90.25.05 | E84: 10 | F84: 250 mm | G84: 24000 | H84: 39300 | I84: 150 | J84: T4-1000x250 | K84: 250 | L84: 90.25.05-10-250
D85: 90.25.05 | E85: 10 | F85: 300 mm | G85: 24000 | H85: 39300 | I85: 150 | J85: T4-1000x300 | K85: 300 | L85: 90.25.05-10-300
D86: 90.25.05 | E86: 15 | F86: 25 mm | G86: 24000 | H86: 39300 | I86: 150 | J86: T4-1500x25 | K86: 25 | L86: 90.25.05-15-25
D87: 90.25.05 | E87: 15 | F87: 50 mm | G87: 24000 | H87: 39300 | I87: 150 | J87: T4-1500x50 | K87: 50 | L87: 90.25.05-15-50
D88: 90.25.05 | E88: 15 | F88: 80 mm | G88: 24000 | H88: 39300 | I88: 150 | J88: T4-1500x80 | K88: 80 | L88: 90.25.05-15-80
D89: 90.25.05 | E89: 15 | F89: 100 mm | G89: 24000 | H89: 39300 | I89: 150 | J89: T4-1500x100 | K89: 100 | L89: 90.25.05-15-100
D90: 90.25.05 | E90: 15 | F90: 125 mm | G90: 24000 | H90: 39300 | I90: 150 | J90: T4-1500x125 | K90: 125 | L90: 90.25.05-15-125
D91: 90.25.05 | E91: 15 | F91: 160 mm | G91: 24000 | H91: 39300 | I91: 150 | J91: T4-1500x160 | K91: 160 | L91: 90.25.05-15-160
D92: 90.25.05 | E92: 15 | F92: 200 mm | G92: 24000 | H92: 39300 | I92: 150 | J92: T4-1500x200 | K92: 200 | L92: 90.25.05-15-200
D93: 90.25.05 | E93: 15 | F93: 250 mm | G93: 24000 | H93: 39300 | I93: 150 | J93: T4-1500x250 | K93: 250 | L93: 90.25.05-15-250
D94: 90.25.05 | E94: 15 | F94: 300 mm | G94: 24000 | H94: 39300 | I94: 150 | J94: T4-1500x300 | K94: 300 | L94: 90.25.05-15-300
D95: 90.25.05 | E95: 24 | F95: 25 mm | G95: 24000 | H95: 39300 | I95: 150 | J95: T4-2400x25 | K95: 25 | L95: 90.25.05-24-25
D96: 90.25.05 | E96: 24 | F96: 50 mm | G96: 24000 | H96: 39300 | I96: 150 | J96: T4-2400x50 | K96: 50 | L96: 90.25.05-24-50
D97: 90.25.05 | E97: 24 | F97: 80 mm | G97: 24000 | H97: 39300 | I97: 150 | J97: T4-2400x80 | K97: 80 | L97: 90.25.05-24-80
D98: 90.25.05 | E98: 24 | F98: 100 mm | G98: 24000 | H98: 39300 | I98: 150 | J98: T4-2400x100 | K98: 100 | L98: 90.25.05-24-100
D99: 90.25.05 | E99: 24 | F99: 125 mm | G99: 24000 | H99: 39300 | I99: 150 | J99: T4-2400x125 | K99: 125 | L99: 90.25.05-24-125
D100: 90.25.05 | E100: 24 | F100: 160 mm | G100: 24000 | H100: 39300 | I100: 150 | J100: T4-2400x160 | K100: 160 | L100: 90.25.05-24-160
D101: 90.25.05 | E101: 24 | F101: 200 mm | G101: 24000 | H101: 39300 | I101: 150 | J101: T4-2400x200 | K101: 200 | L101: 90.25.05-24-200
D102: 90.25.05 | E102: 24 | F102: 250 mm | G102: 24000 | H102: 39300 | I102: 150 | J102: T4-2400x250 | K102: 250 | L102: 90.25.05-24-250
D103: 90.25.05 | E103: 24 | F103: 300 mm | G103: 24000 | H103: 39300 | I103: 150 | J103: T4-2400x300 | K103: 300 | L103: 90.25.05-24-300
D104: 90.25.05 | E104: 42 | F104: 25 mm | G104: 24000 | H104: 39300 | I104: 150 | J104: T4-4200x25 | K104: 25 | L104: 90.25.05-42-25
D105: 90.25.05 | E105: 42 | F105: 50 mm | G105: 24000 | H105: 39300 | I105: 150 | J105: T4-4200x50 | K105: 50 | L105: 90.25.05-42-50
D106: 90.25.05 | E106: 42 | F106: 80 mm | G106: 24000 | H106: 39300 | I106: 150 | J106: T4-4200x80 | K106: 80 | L106: 90.25.05-42-80
D107: 90.25.05 | E107: 42 | F107: 100 mm | G107: 24000 | H107: 39300 | I107: 150 | J107: T4-4200x100 | K107: 100 | L107: 90.25.05-42-100
D108: 90.25.05 | E108: 42 | F108: 125 mm | G108: 24000 | H108: 39300 | I108: 150 | J108: T4-4200x125 | K108: 125 | L108: 90.25.05-42-125
D109: 90.25.05 | E109: 42 | F109: 160 mm | G109: 24000 | H109: 39300 | I109: 150 | J109: T4-4200x160 | K109: 160 | L109: 90.25.05-42-160
D110: 90.25.05 | E110: 42 | F110: 200 mm | G110: 24000 | H110: 39300 | I110: 150 | J110: T4-4200x200 | K110: 200 | L110: 90.25.05-42-200
D111: 90.25.05 | E111: 42 | F111: 250 mm | G111: 24000 | H111: 39300 | I111: 150 | J111: T4-4200x250 | K111: 250 | L111: 90.25.05-42-250
D112: 90.25.05 | E112: 42 | F112: 300 mm | G112: 24000 | H112: 39300 | I112: 150 | J112: T4-4200x300 | K112: 300 | L112: 90.25.05-42-300
D113: 90.25.05 | E113: 42 | F113: 25 mm | G113: 24000 | H113: 39300 | I113: 150 | J113: T4-6600x25 | K113: 25 | L113: 90.25.05-42-25
D114: 90.25.05 | E114: 66 | F114: 50 mm | G114: 24000 | H114: 39300 | I114: 150 | J114: T4-6600x50 | K114: 50 | L114: 90.25.05-66-50
D115: 90.25.05 | E115: 66 | F115: 80 mm | G115: 24000 | H115: 39300 | I115: 150 | J115: T4-6600x80 | K115: 80 | L115: 90.25.05-66-80
D116: 90.25.05 | E116: 66 | F116: 100 mm | G116: 24000 | H116: 39300 | I116: 150 | J116: T4-6600x100 | K116: 100 | L116: 90.25.05-66-100
D117: 90.25.05 | E117: 66 | F117: 125 mm | G117: 24000 | H117: 39300 | I117: 150 | J117: T4-6600x125 | K117: 125 | L117: 90.25.05-66-125
D118: 90.25.05 | E118: 66 | F118: 160 mm | G118: 24000 | H118: 39300 | I118: 150 | J118: T4-6600x160 | K118: 160 | L118: 90.25.05-66-160
D119: 90.25.05 | E119: 66 | F119: 200 mm | G119: 24000 | H119: 39300 | I119: 150 | J119: T4-6600x200 | K119: 200 | L119: 90.25.05-66-200
D120: 90.25.05 | E120: 66 | F120: 250 mm | G120: 24000 | H120: 39300 | I120: 150 | J120: T4-6600x250 | K120: 250 | L120: 90.25.05-66-250
D121: 90.25.05 | E121: 66 | F121: 300 mm | G121: 24000 | H121: 39300 | I121: 150 | J121: T4-6600x300 | K121: 300 | L121: 90.25.05-66-300
D122: 90.25.05 | E122: 95 | F122: 25 mm | G122: 24000 | H122: 39300 | I122: 150 | J122: T4-9500x25 | K122: 25 | L122: 90.25.05-95-25
D123: 90.25.05 | E123: 95 | F123: 50 mm | G123: 24000 | H123: 39300 | I123: 150 | J123: T4-9500x50 | K123: 50 | L123: 90.25.05-95-50
D124: 90.25.05 | E124: 95 | F124: 80 mm | G124: 24000 | H124: 39300 | I124: 150 | J124: T4-9500x80 | K124: 80 | L124: 90.25.05-95-80
D125: 90.25.05 | E125: 95 | F125: 100 mm | G125: 24000 | H125: 39300 | I125: 150 | J125: T4-9500x100 | K125: 100 | L125: 90.25.05-95-100
D126: 90.25.05 | E126: 95 | F126: 125 mm | G126: 24000 | H126: 39300 | I126: 150 | J126: T4-9500x125 | K126: 125 | L126: 90.25.05-95-125
D127: 90.25.05 | E127: 95 | F127: 160 mm | G127: 24000 | H127: 39300 | I127: 150 | J127: T4-9500x160 | K127: 160 | L127: 90.25.05-95-160
D128: 90.25.05 | E128: 95 | F128: 200 mm | G128: 24000 | H128: 39300 | I128: 150 | J128: T4-9500x200 | K128: 200 | L128: 90.25.05-95-200
D129: 90.25.05 | E129: 95 | F129: 250 mm | G129: 24000 | H129: 39300 | I129: 150 | J129: T4-9500x250 | K129: 250 | L129: 90.25.05-95-250
D130: 90.25.05 | E130: 95 | F130: 300 mm | G130: 24000 | H130: 39300 | I130: 150 | J130: T4-9500x300 | K130: 300 | L130: 90.25.05-95-300
D131: 90.25.08 | E131: 3.5 | F131: 10 mm | G131: 2000 | H131: 3060 | I131: 180 | J131: T3-350x10 | K131: 10 | L131: 90.25.08-3.5-10
D132: 90.25.08 | E132: 3.5 | F132: 16 mm | G132: 2000 | H132: 3060 | I132: 180 | J132: T3-350x16 | K132: 16 | L132: 90.25.08-3.5-16
D133: 90.25.08 | E133: 3.5 | F133: 25 mm | G133: 2000 | H133: 3060 | I133: 180 | J133: T3-350x25 | K133: 25 | L133: 90.25.08-3.5-25
D134: 90.25.08 | E134: 3.5 | F134: 50 mm | G134: 2000 | H134: 3060 | I134: 180 | J134: T3-350x50 | K134: 50 | L134: 90.25.08-3.5-50
D135: 90.25.08 | E135: 3.5 | F135: 63 mm | G135: 2000 | H135: 3060 | I135: 180 | J135: T3-350x63 | K135: 63 | L135: 90.25.08-3.5-63
D136: 90.25.08 | E136: 3.5 | F136: 80 mm | G136: 2000 | H136: 3060 | I136: 180 | J136: T3-350x80 | K136: 80 | L136: 90.25.08-3.5-80
D137: 90.25.08 | E137: 3.5 | F137: 100 mm | G137: 2000 | H137: 3060 | I137: 180 | J137: T3-350x100 | K137: 100 | L137: 90.25.08-3.5-100
D138: 90.25.08 | E138: 3.5 | F138: 125 mm | G138: 2000 | H138: 3060 | I138: 180 | J138: T3-350x125 | K138: 125 | L138: 90.25.08-3.5-125
D139: 90.25.08 | E139: 5 | F139: 16 mm | G139: 2000 | H139: 3060 | I139: 180 | J139: T3-500x16 | K139: 16 | L139: 90.25.08-5-16
D140: 90.25.08 | E140: 5 | F140: 25 mm | G140: 2000 | H140: 3060 | I140: 180 | J140: T3-500x25 | K140: 25 | L140: 90.25.08-5-25
D141: 90.25.08 | E141: 5 | F141: 50 mm | G141: 2000 | H141: 3060 | I141: 180 | J141: T3-500x50 | K141: 50 | L141: 90.25.08-5-50
D142: 90.25.08 | E142: 5 | F142: 63 mm | G142: 2000 | H142: 3060 | I142: 180 | J142: T3-500x63 | K142: 63 | L142: 90.25.08-5-63
D143: 90.25.08 | E143: 5 | F143: 80 mm | G143: 2000 | H143: 3060 | I143: 180 | J143: T3-500x80 | K143: 80 | L143: 90.25.08-5-80
D144: 90.25.08 | E144: 5 | F144: 100 mm | G144: 2000 | H144: 3060 | I144: 180 | J144: T3-500x100 | K144: 100 | L144: 90.25.08-5-100
D145: 90.25.08 | E145: 5 | F145: 125 mm | G145: 2000 | H145: 3060 | I145: 180 | J145: T3-500x125 | K145: 125 | L145: 90.25.08-5-125
D146: 90.25.08 | E146: 7.5 | F146: 16 mm | G146: 2000 | H146: 3060 | I146: 180 | J146: T3-750x16 | K146: 16 | L146: 90.25.08-7.5-16
D147: 90.25.08 | E147: 7.5 | F147: 25 mm | G147: 2000 | H147: 3060 | I147: 180 | J147: T3-750x25 | K147: 25 | L147: 90.25.08-7.5-25
D148: 90.25.08 | E148: 7.5 | F148: 50 mm | G148: 2000 | H148: 3060 | I148: 180 | J148: T3-750x50 | K148: 50 | L148: 90.25.08-7.5-50
D149: 90.25.08 | E149: 7.5 | F149: 63 mm | G149: 2000 | H149: 3060 | I149: 180 | J149: T3-750x63 | K149: 63 | L149: 90.25.08-7.5-63
D150: 90.25.08 | E150: 7.5 | F150: 80 mm | G150: 2000 | H150: 3060 | I150: 180 | J150: T3-750x80 | K150: 80 | L150: 90.25.08-7.5-80
D151: 90.25.08 | E151: 7.5 | F151: 100 mm | G151: 2000 | H151: 3060 | I151: 180 | J151: T3-750x100 | K151: 100 | L151: 90.25.08-7.5-100
D152: 90.25.08 | E152: 7.5 | F152: 125 mm | G152: 2000 | H152: 3060 | I152: 180 | J152: T3-750x125 | K152: 125 | L152: 90.25.08-7.5-125
D153: 90.25.08 | E153: 10 | F153: 16 mm | G153: 2000 | H153: 3060 | I153: 180 | J153: T3-1000x16 | K153: 16 | L153: 90.25.08-10-16
D154: 90.25.08 | E154: 10 | F154: 25 mm | G154: 2000 | H154: 3060 | I154: 180 | J154: T3-1000x25 | K154: 25 | L154: 90.25.08-10-25
D155: 90.25.08 | E155: 10 | F155: 50 mm | G155: 2000 | H155: 3060 | I155: 180 | J155: T3-1000x50 | K155: 50 | L155: 90.25.08-10-50
D156: 90.25.08 | E156: 10 | F156: 63 mm | G156: 2000 | H156: 3060 | I156: 180 | J156: T3-1000x63 | K156: 63 | L156: 90.25.08-10-63
D157: 90.25.08 | E157: 10 | F157: 80 mm | G157: 2000 | H157: 3060 | I157: 180 | J157: T3-1000x80 | K157: 80 | L157: 90.25.08-10-80
D158: 90.25.08 | E158: 10 | F158: 100 mm | G158: 2000 | H158: 3060 | I158: 180 | J158: T3-1000x100 | K158: 100 | L158: 90.25.08-10-100
D159: 90.25.08 | E159: 10 | F159: 125 mm | G159: 2000 | H159: 3060 | I159: 180 | J159: T3-1000x125 | K159: 125 | L159: 90.25.08-10-125
D160: 90.25.08 | E160: 24 | F160: 16 mm | G160: 2000 | H160: 3060 | I160: 180 | J160: T3-2400x16 | K160: 16 | L160: 90.25.08-24-16
D161: 90.25.08 | E161: 24 | F161: 25 mm | G161: 2000 | H161: 3060 | I161: 180 | J161: T3-2400x25 | K161: 25 | L161: 90.25.08-24-25
D162: 90.25.08 | E162: 24 | F162: 50 mm | G162: 2000 | H162: 3060 | I162: 180 | J162: T3-2400x50 | K162: 50 | L162: 90.25.08-24-50
D163: 90.25.08 | E163: 24 | F163: 63 mm | G163: 2000 | H163: 3060 | I163: 180 | J163: T3-2400x63 | K163: 63 | L163: 90.25.08-24-63
D164: 90.25.08 | E164: 24 | F164: 80 mm | G164: 2000 | H164: 3060 | I164: 180 | J164: T3-2400x80 | K164: 80 | L164: 90.25.08-24-80
D165: 90.25.08 | E165: 24 | F165: 100 mm | G165: 2000 | H165: 3060 | I165: 180 | J165: T3-2400x100 | K165: 100 | L165: 90.25.08-24-100
D166: 90.25.08 | E166: 24 | F166: 125 mm | G166: 2000 | H166: 3060 | I166: 180 | J166: T3-2400x125 | K166: 125 | L166: 90.25.08-24-125
D167: 90.25.08 | E167: 42 | F167: 16 mm | G167: 2000 | H167: 3060 | I167: 180 | J167: T3-4200x16 | K167: 16 | L167: 90.25.08-42-16
D168: 90.25.08 | E168: 42 | F168: 25 mm | G168: 2000 | H168: 3060 | I168: 180 | J168: T3-4200x25 | K168: 25 | L168: 90.25.08-42-25
D169: 90.25.08 | E169: 42 | F169: 50 mm | G169: 2000 | H169: 3060 | I169: 180 | J169: T3-4200x50 | K169: 50 | L169: 90.25.08-42-50
D170: 90.25.08 | E170: 42 | F170: 63 mm | G170: 2000 | H170: 3060 | I170: 180 | J170: T3-4200x63 | K170: 63 | L170: 90.25.08-42-63
D171: 90.25.08 | E171: 42 | F171: 80 mm | G171: 2000 | H171: 3060 | I171: 180 | J171: T3-4200x80 | K171: 80 | L171: 90.25.08-42-80
D172: 90.25.08 | E172: 42 | F172: 100 mm | G172: 2000 | H172: 3060 | I172: 180 | J172: T3-4200x100 | K172: 100 | L172: 90.25.08-42-100
D173: 90.25.08 | E173: 42 | F173: 125 mm | G173: 2000 | H173: 3060 | I173: 180 | J173: T3-4200x125 | K173: 125 | L173: 90.25.08-42-125
D174: 90.25.08 | E174: 66 | F174: 16 mm | G174: 2000 | H174: 3060 | I174: 180 | J174: T3-6600x16 | K174: 16 | L174: 90.25.08-66-16
D175: 90.25.08 | E175: 66 | F175: 25 mm | G175: 2000 | H175: 3060 | I175: 180 | J175: T3-6600x25 | K175: 25 | L175: 90.25.08-66-25
D176: 90.25.08 | E176: 66 | F176: 50 mm | G176: 2000 | H176: 3060 | I176: 180 | J176: T3-6600x50 | K176: 50 | L176: 90.25.08-66-50
D177: 90.25.08 | E177: 66 | F177: 63 mm | G177: 2000 | H177: 3060 | I177: 180 | J177: T3-6600x63 | K177: 63 | L177: 90.25.08-66-63
D178: 90.25.08 | E178: 66 | F178: 80 mm | G178: 2000 | H178: 3060 | I178: 180 | J178: T3-6600x80 | K178: 80 | L178: 90.25.08-66-80
D179: 90.25.08 | E179: 66 | F179: 100 mm | G179: 2000 | H179: 3060 | I179: 180 | J179: T3-6600x100 | K179: 100 | L179: 90.25.08-66-100
D180: 90.25.08 | E180: 66 | F180: 125 mm | G180: 2000 | H180: 3060 | I180: 180 | J180: T3-6600x125 | K180: 125 | L180: 90.25.08-66-125
D181: 90.25.08 | E181: 95 | F181: 25 mm | G181: 2000 | H181: 3060 | I181: 180 | J181: T3-9500x25 | K181: 25 | L181: 90.25.08-95-25
D182: 90.25.08 | E182: 95 | F182: 50 mm | G182: 2000 | H182: 3060 | I182: 180 | J182: T3-9500x50 | K182: 50 | L182: 90.25.08-95-50
D183: 90.25.08 | E183: 95 | F183: 63 mm | G183: 2000 | H183: 3060 | I183: 180 | J183: T3-9500x63 | K183: 63 | L183: 90.25.08-95-63
D184: 90.25.08 | E184: 95 | F184: 80 mm | G184: 2000 | H184: 3060 | I184: 180 | J184: T3-9500x80 | K184: 80 | L184: 90.25.08-95-80
D185: 90.25.08 | E185: 95 | F185: 100 mm | G185: 2000 | H185: 3060 | I185: 180 | J185: T3-9500x100 | K185: 100 | L185: 90.25.08-95-100
D186: 90.25.08 | E186: 95 | F186: 125 mm | G186: 2000 | H186: 3060 | I186: 180 | J186: T3-9500x125 | K186: 125 | L186: 90.25.08-95-125
D187: 90.25.08 | E187: 199 | F187: 25 mm | G187: 2000 | H187: 3060 | I187: 180 | J187: T3-20000x25 | K187: 25 | L187: 90.25.08-199-25
D188: 90.25.08 | E188: 199 | F188: 50 mm | G188: 2000 | H188: 3060 | I188: 180 | J188: T3-20000x50 | K188: 50 | L188: 90.25.08-199-50
D189: 90.25.08 | E189: 199 | F189: 63 mm | G189: 2000 | H189: 3060 | I189: 180 | J189: T3-20000x63 | K189: 63 | L189: 90.25.08-199-63
D190: 90.25.08 | E190: 199 | F190: 80 mm | G190: 2000 | H190: 3060 | I190: 180 | J190: T3-20000x80 | K190: 80 | L190: 90.25.08-199-80
D191: 90.25.08 | E191: 199 | F191: 100 mm | G191: 2000 | H191: 3060 | I191: 180 | J191: T3-20000x100 | K191: 100 | L191: 90.25.08-199-100
D192: 90.25.08 | E192: 199 | F192: 125 mm | G192: 2000 | H192: 3060 | I192: 180 | J192: T3-20000x125 | K192: 125 | L192: 90.25.08-199-125

Sheet FCA
D1: FCA Series | E1: FCA Size | F1: Stroke | G1: Init Force | H1: Final Force | I1: Max Pres | J1: Hyson Reference | K1: mm | L1: FCA STRCode
D2: 39-670-1 | E2: 2 kN | F2: 15 mm | G2: 106000 | H2: 160000 | I2: 150 | J2: T2-180x15 | K2: 15 | L2: 39-670-1851
D3: 39-670-1 | E3: 2 kN | F3: 25 mm | G3: 106000 | H3: 160000 | I3: 150 | J3: T2-180x25 | K3: 25 | L3: 39-670-1852
D4: 39-670-1 | E4: 2 kN | F4: 38.1 mm | G4: 106000 | H4: 160000 | I4: 150 | J4: T2-180x38.1 | K4: 38.1 | L4: 39-670-1853
D5: 39-670-1 | E5: 2 kN | F5: 50 mm | G5: 106000 | H5: 160000 | I5: 150 | J5: T2-180x50 | K5: 50 | L5: 39-670-1855
D6: 39-670-1 | E6: 2 kN | F6: 63.5 mm | G6: 106000 | H6: 160000 | I6: 150 | J6: T2-180x63.5 | K6: 63.5 | L6: 39-670-1856
D7: 39-670-1 | E7: 2 kN | F7: 80 mm | G7: 106000 | H7: 160000 | I7: 150 | J7: T2-180x80 | K7: 80 | L7: 39-670-1858
D8: 39-670-1 | E8: 2 kN | F8: 100 mm | G8: 106000 | H8: 160000 | I8: 150 | J8: T2-180x100 | K8: 100 | L8: 39-670-1875
D9: 39-670-1 | E9: 2 kN | F9: 125 mm | G9: 106000 | H9: 160000 | I9: 150 | J9: T2-180x125 | K9: 125 | L9: 39-670-1885
D10: 39-670-6 | E10: .9 kN | F10: 15 mm | G10: 2000 | H10: 3060 | I10: 180 | J10: T2-90x15 | K10: 15 | L10: 39-670-6715
D11: 39-670-6 | E11: .9 kN | F11: 25 mm | G11: 2000 | H11: 3060 | I11: 180 | J11: T2-90x25 | K11: 25 | L11: 39-670-6725
D12: 39-670-6 | E12: .9 kN | F12: 38.1 mm | G12: 2000 | H12: 3060 | I12: 180 | J12: T2-90x38.1 | K12: 38.1 | L12: 39-670-6738
D13: 39-670-6 | E13: .9 kN | F13: 50 mm | G13: 2000 | H13: 3060 | I13: 180 | J13: T2-90x50 | K13: 50 | L13: 39-670-6750
D14: 39-670-6 | E14: .9 kN | F14: 63.5 mm | G14: 2000 | H14: 3060 | I14: 180 | J14: T2-90x63.5 | K14: 63.5 | L14: 39-670-6760
D15: 39-670-6 | E15: .9 kN | F15: 80 mm | G15: 2000 | H15: 3060 | I15: 180 | J15: T2-90x80 | K15: 80 | L15: 39-670-6780
D16: 39-673-0 | E16: 1.7 kN | F16: 10 mm | G16: 2000 | H16: 3060 | I16: 180 | J16: T3-170x10 | K16: 10 | L16: 39-673-0200
D17: 39-673-0 | E17: 1.7 kN | F17: 15 mm | G17: 2000 | H17: 3060 | I17: 180 | J17: T3-170x15 | K17: 15 | L17: 39-673-0201
D18: 39-673-0 | E18: 1.7 kN | F18: 25 mm | G18: 2000 | H18: 3060 | I18: 180 | J18: T3-170x25 | K18: 25 | L18: 39-673-0202
D19: 39-673-0 | E19: 1.7 kN | F19: 38 mm | G19: 2000 | H19: 3060 | I19: 180 | J19: T3-170x38 | K19: 38 | L19: 39-673-0203
D20: 39-673-0 | E20: 1.7 kN | F20: 50 mm | G20: 2000 | H20: 3060 | I20: 180 | J20: T3-170x50 | K20: 50 | L20: 39-673-0204
D21: 39-673-0 | E21: 1.7 kN | F21: 63 mm | G21: 2000 | H21: 3060 | I21: 180 | J21: T3-170x63 | K21: 63 | L21: 39-673-0205
D22: 39-673-0 | E22: 1.7 kN | F22: 80 mm | G22: 2000 | H22: 3060 | I22: 180 | J22: T3-170x80 | K22: 80 | L22: 39-673-0206
D23: 39-673-0 | E23: 1.7 kN | F23: 100 mm | G23: 2000 | H23: 3060 | I23: 180 | J23: T3-170x100 | K23: 100 | L23: 39-673-0207
D24: 39-673-0 | E24: 1.7 kN | F24: 125 mm | G24: 2000 | H24: 3060 | I24: 180 | J24: T3-170x125 | K24: 125 | L24: 39-673-0208
D25: 39-673-0 | E25: 3.5 kN | F25: 10 mm | G25: 2000 | H25: 3060 | I25: 180 | J25: T3-350x10 | K25: 10 | L25: 39-673-0210
D26: 39-673-0 | E26: 3.5 kN | F26: 13 mm | G26: 2000 | H26: 3060 | I26: 180 | J26: T3-350x13 | K26: 13 | L26: 39-673-0211
D27: 39-673-0 | E27: 3.5 kN | F27: 16 mm | G27: 2000 | H27: 3060 | I27: 180 | J27: T3-350x16 | K27: 16 | L27: 39-673-0212
D28: 39-673-0 | E28: 3.5 kN | F28: 25 mm | G28: 2000 | H28: 3060 | I28: 180 | J28: T3-350x25 | K28: 25 | L28: 39-673-0214
D29: 39-673-0 | E29: 3.5 kN | F29: 38 mm | G29: 2000 | H29: 3060 | I29: 180 | J29: T3-350x38 | K29: 38 | L29: 39-673-0215
D30: 39-673-0 | E30: 3.5 kN | F30: 50 mm | G30: 2000 | H30: 3060 | I30: 180 | J30: T3-350x50 | K30: 50 | L30: 39-673-0216
D31: 39-673-0 | E31: 3.5 kN | F31: 63 mm | G31: 2000 | H31: 3060 | I31: 180 | J31: T3-350x63 | K31: 63 | L31: 39-673-0217
D32: 39-673-0 | E32: 3.5 kN | F32: 80 mm | G32: 2000 | H32: 3060 | I32: 180 | J32: T3-350x80 | K32: 80 | L32: 39-673-0218
D33: 39-673-0 | E33: 3.5 kN | F33: 100 mm | G33: 2000 | H33: 3060 | I33: 180 | J33: T3-350x100 | K33: 100 | L33: 39-673-0219
D34: 39-673-0 | E34: 3.5 kN | F34: 125 mm | G34: 2000 | H34: 3060 | I34: 180 | J34: T3-350x125 | K34: 125 | L34: 39-673-0220
D35: 39-673-0 | E35: 5 kN | F35: 10 mm | G35: 2000 | H35: 3060 | I35: 180 | J35: T3-500x10 | K35: 10 | L35: 39-673-0222
D36: 39-673-0 | E36: 5 kN | F36: 13 mm | G36: 2000 | H36: 3060 | I36: 180 | J36: T3-500x13 | K36: 13 | L36: 39-673-0223
D37: 39-673-0 | E37: 5 kN | F37: 16 mm | G37: 2000 | H37: 3060 | I37: 180 | J37: T3-500x16 | K37: 16 | L37: 39-673-0224
D38: 39-673-0 | E38: 5 kN | F38: 25 mm | G38: 2000 | H38: 3060 | I38: 180 | J38: T3-500x25 | K38: 25 | L38: 39-673-0226
D39: 39-673-0 | E39: 5 kN | F39: 38 mm | G39: 2000 | H39: 3060 | I39: 180 | J39: T3-500x38 | K39: 38 | L39: 39-673-0227
D40: 39-673-0 | E40: 5 kN | F40: 50 mm | G40: 2000 | H40: 3060 | I40: 180 | J40: T3-500x50 | K40: 50 | L40: 39-673-0228
D41: 39-673-0 | E41: 5 kN | F41: 63 mm | G41: 2000 | H41: 3060 | I41: 180 | J41: T3-500x63 | K41: 63 | L41: 39-673-0229
D42: 39-673-0 | E42: 5 kN | F42: 80 mm | G42: 2000 | H42: 3060 | I42: 180 | J42: T3-500x80 | K42: 80 | L42: 39-673-0230
D43: 39-673-0 | E43: 5 kN | F43: 100 mm | G43: 2000 | H43: 3060 | I43: 180 | J43: T3-500x100 | K43: 100 | L43: 39-673-0231
D44: 39-673-0 | E44: 5 kN | F44: 125 mm | G44: 2000 | H44: 3060 | I44: 180 | J44: T3-500x125 | K44: 125 | L44: 39-673-0232
D45: 39-673-0 | E45: 7.5 kN | F45: 13 mm | G45: 2000 | H45: 3060 | I45: 180 | J45: T3F-750x13 | K45: 13 | L45: 39-673-0234
D46: 39-673-0 | E46: 7.5 kN | F46: 25 mm | G46: 2000 | H46: 3060 | I46: 180 | J46: T3F-750x25 | K46: 25 | L46: 39-673-0235
D47: 39-673-0 | E47: 7.5 kN | F47: 38 mm | G47: 2000 | H47: 3060 | I47: 180 | J47: T3F-750x38 | K47: 38 | L47: 39-673-0236
D48: 39-673-0 | E48: 7.5 kN | F48: 50 mm | G48: 2000 | H48: 3060 | I48: 180 | J48: T3F-750x50 | K48: 50 | L48: 39-673-0237
D49: 39-673-0 | E49: 7.5 kN | F49: 63 mm | G49: 2000 | H49: 3060 | I49: 180 | J49: T3F-750x63 | K49: 63 | L49: 39-673-0238
D50: 39-673-0 | E50: 7.5 kN | F50: 80 mm | G50: 2000 | H50: 3060 | I50: 180 | J50: T3F-750x80 | K50: 80 | L50: 39-673-0239
D51: 39-673-0 | E51: 7.5 kN | F51: 100 mm | G51: 2000 | H51: 3060 | I51: 180 | J51: T3F-750x100 | K51: 100 | L51: 39-673-0240
D52: 39-673-0 | E52: 7.5 kN | F52: 125 mm | G52: 2000 | H52: 3060 | I52: 180 | J52: T3F-750x125 | K52: 125 | L52: 39-673-0241
D53: 39-673-0 | E53: 10 kN | F53: 13 mm | G53: 2000 | H53: 3060 | I53: 180 | J53: T3F-1000x13 | K53: 13 | L53: 39-673-0242
D54: 39-673-0 | E54: 10 kN | F54: 25 mm | G54: 2000 | H54: 3060 | I54: 180 | J54: T3F-1000x25 | K54: 25 | L54: 39-673-0243
D55: 39-673-0 | E55: 10 kN | F55: 38 mm | G55: 2000 | H55: 3060 | I55: 180 | J55: T3F-1000x38 | K55: 38 | L55: 39-673-0244
D56: 39-673-0 | E56: 10 kN | F56: 50 mm | G56: 2000 | H56: 3060 | I56: 180 | J56: T3F-1000x50 | K56: 50 | L56: 39-673-0245
D57: 39-673-0 | E57: 10 kN | F57: 63 mm | G57: 2000 | H57: 3060 | I57: 180 | J57: T3F-1000x63 | K57: 63 | L57: 39-673-0246
D58: 39-673-0 | E58: 10 kN | F58: 80 mm | G58: 2000 | H58: 3060 | I58: 180 | J58: T3F-1000x80 | K58: 80 | L58: 39-673-0247
D59: 39-673-0 | E59: 10 kN | F59: 100 mm | G59: 2000 | H59: 3060 | I59: 180 | J59: T3F-1000x100 | K59: 100 | L59: 39-673-0248
D60: 39-673-0 | E60: 10 kN | F60: 125 mm | G60: 2000 | H60: 3060 | I60: 180 | J60: T3F-1000x125 | K60: 125 | L60: 39-673-0249
D61: 39-673-0 | E61: 15 kN | F61: 13 mm | G61: 2000 | H61: 3060 | I61: 180 | J61: T3F-1500x13 | K61: 13 | L61: 39-673-0251
D62: 39-673-0 | E62: 15 kN | F62: 25 mm | G62: 2000 | H62: 3060 | I62: 180 | J62: T3F-1500x25 | K62: 25 | L62: 39-673-0252
D63: 39-673-0 | E63: 15 kN | F63: 38 mm | G63: 2000 | H63: 3060 | I63: 180 | J63: T3F-1500x38 | K63: 38 | L63: 39-673-0253
D64: 39-673-0 | E64: 15 kN | F64: 50 mm | G64: 2000 | H64: 3060 | I64: 180 | J64: T3F-1500x50 | K64: 50 | L64: 39-673-0254
D65: 39-673-0 | E65: 15 kN | F65: 63 mm | G65: 2000 | H65: 3060 | I65: 180 | J65: T3F-1500x63 | K65: 63 | L65: 39-673-0255
D66: 39-673-0 | E66: 15 kN | F66: 80 mm | G66: 2000 | H66: 3060 | I66: 180 | J66: T3F-1500x80 | K66: 80 | L66: 39-673-0256
D67: 39-673-0 | E67: 15 kN | F67: 100 mm | G67: 2000 | H67: 3060 | I67: 180 | J67: T3F-1500x100 | K67: 100 | L67: 39-673-0257
D68: 39-673-0 | E68: 15 kN | F68: 125 mm | G68: 2000 | H68: 3060 | I68: 180 | J68: T3F-1500x125 | K68: 125 | L68: 39-673-0258
D69: 39-673-0 | E69: 24 kN | F69: 25 mm | G69: 2000 | H69: 3060 | I69: 180 | J69: T3F-2400x25 | K69: 25 | L69: 39-673-0260
D70: 39-673-0 | E70: 24 kN | F70: 38 mm | G70: 2000 | H70: 3060 | I70: 180 | J70: T3F-2400x38 | K70: 38 | L70: 39-673-0261
D71: 39-673-0 | E71: 24 kN | F71: 50 mm | G71: 2000 | H71: 3060 | I71: 180 | J71: T3F-2400x50 | K71: 50 | L71: 39-673-0262
D72: 39-673-0 | E72: 24 kN | F72: 63 mm | G72: 2000 | H72: 3060 | I72: 180 | J72: T3F-2400x63 | K72: 63 | L72: 39-673-0263
D73: 39-673-0 | E73: 24 kN | F73: 80 mm | G73: 2000 | H73: 3060 | I73: 180 | J73: T3F-2400x80 | K73: 80 | L73: 39-673-0264
D74: 39-673-0 | E74: 24 kN | F74: 100 mm | G74: 2000 | H74: 3060 | I74: 180 | J74: T3F-2400x100 | K74: 100 | L74: 39-673-0265
D75: 39-673-0 | E75: 24 kN | F75: 125 mm | G75: 2000 | H75: 3060 | I75: 180 | J75: T3F-2400x125 | K75: 125 | L75: 39-673-0266
D76: 39-673-0 | E76: 42 kN | F76: 25 mm | G76: 2000 | H76: 3060 | I76: 180 | J76: T3-4200x25 | K76: 25 | L76: 39-673-0268
D77: 39-673-0 | E77: 42 kN | F77: 38 mm | G77: 2000 | H77: 3060 | I77: 180 | J77: T3-4200x38 | K77: 38 | L77: 39-673-0269
D78: 39-673-0 | E78: 42 kN | F78: 50 mm | G78: 2000 | H78: 3060 | I78: 180 | J78: T3-4200x50 | K78: 50 | L78: 39-673-0270
D79: 39-673-0 | E79: 42 kN | F79: 63 mm | G79: 2000 | H79: 3060 | I79: 180 | J79: T3-4200x63 | K79: 63 | L79: 39-673-0271
D80: 39-673-0 | E80: 42 kN | F80: 80 mm | G80: 2000 | H80: 3060 | I80: 180 | J80: T3-4200x80 | K80: 80 | L80: 39-673-0272
D81: 39-673-0 | E81: 42 kN | F81: 100 mm | G81: 2000 | H81: 3060 | I81: 180 | J81: T3-4200x100 | K81: 100 | L81: 39-673-0273
D82: 39-673-0 | E82: 42 kN | F82: 125 mm | G82: 2000 | H82: 3060 | I82: 180 | J82: T3-4200x125 | K82: 125 | L82: 39-673-0274
D83: 39-673-0 | E83: 66 kN | F83: 25 mm | G83: 2000 | H83: 3060 | I83: 180 | J83: T3-6600x25 | K83: 25 | L83: 39-673-0276
D84: 39-673-0 | E84: 66 kN | F84: 38 mm | G84: 2000 | H84: 3060 | I84: 180 | J84: T3-6600x38 | K84: 38 | L84: 39-673-0277
D85: 39-673-0 | E85: 66 kN | F85: 50 mm | G85: 2000 | H85: 3060 | I85: 180 | J85: T3-6600x50 | K85: 50 | L85: 39-673-0278
D86: 39-673-0 | E86: 66 kN | F86: 63 mm | G86: 2000 | H86: 3060 | I86: 180 | J86: T3-6600x63 | K86: 63 | L86: 39-673-0279
D87: 39-673-0 | E87: 66 kN | F87: 80 mm | G87: 2000 | H87: 3060 | I87: 180 | J87: T3-6600x80 | K87: 80 | L87: 39-673-0280
D88: 39-673-0 | E88: 66 kN | F88: 100 mm | G88: 2000 | H88: 3060 | I88: 180 | J88: T3-6600x100 | K88: 100 | L88: 39-673-0281
D89: 39-673-0 | E89: 66 kN | F89: 125 mm | G89: 2000 | H89: 3060 | I89: 180 | J89: T3-6600x125 | K89: 125 | L89: 39-673-0282
D90: 39-673-0 | E90: 95 kN | F90: 25 mm | G90: 2000 | H90: 3060 | I90: 180 | J90: T3-9500x25 | K90: 25 | L90: 39-673-0284
D91: 39-673-0 | E91: 95 kN | F91: 38 mm | G91: 2000 | H91: 3060 | I91: 180 | J91: T3-9500x38 | K91: 38 | L91: 39-673-0285
D92: 39-673-0 | E92: 95 kN | F92: 50 mm | G92: 2000 | H92: 3060 | I92: 180 | J92: T3-9500x50 | K92: 50 | L92: 39-673-0286
D93: 39-673-0 | E93: 95 kN | F93: 63 mm | G93: 2000 | H93: 3060 | I93: 180 | J93: T3-9500x63 | K93: 63 | L93: 39-673-0287
D94: 39-673-0 | E94: 95 kN | F94: 80 mm | G94: 2000 | H94: 3060 | I94: 180 | J94: T3-9500x80 | K94: 80 | L94: 39-673-0288
D95: 39-673-0 | E95: 95 kN | F95: 100 mm | G95: 2000 | H95: 3060 | I95: 180 | J95: T3-9500x100 | K95: 100 | L95: 39-673-0289
D96: 39-673-0 | E96: 95 kN | F96: 125 mm | G96: 2000 | H96: 3060 | I96: 180 | J96: T3-9500x125 | K96: 125 | L96: 39-673-0290
D97: 39-673-5 | E97: 2.5 kN | F97: 10 mm | G97: 2000 | H97: 3060 | I97: 180 | J97: T2L-300x10 | K97: 10 | L97: 39-673-5646
D98: 39-673-5 | E98: 2.5 kN | F98: 0.50 in | G98: 2000 | H98: 3060 | I98: 180 | J98: T2L-300x0.50 | K98: 12.7 | L98: 39-673-5647
D99: 39-673-5 | E99: 2.5 kN | F99: 16 mm | G99: 2000 | H99: 3060 | I99: 180 | J99: T2L-300x16 | K99: 16 | L99: 39-673-5648
D100: 39-673-5 | E100: 2.5 kN | F100: 0.75 in | G100: 2000 | H100: 3060 | I100: 180 | J100: T2L-300x0.75 | K100: 19.05 | L100: 39-673-5649
D101: 39-673-5 | E101: 2.5 kN | F101: 25 mm | G101: 2000 | H101: 3060 | I101: 180 | J101: T2L-300x25 | K101: 25 | L101: 39-673-5650
D102: 39-673-5 | E102: 2.5 kN | F102: 1.50 in | G102: 2000 | H102: 3060 | I102: 180 | J102: T2L-300x1.50 | K102: 38.1 | L102: 39-673-5651
D103: 39-673-5 | E103: 2.5 kN | F103: 50 mm | G103: 2000 | H103: 3060 | I103: 180 | J103: T2L-300x50 | K103: 50 | L103: 39-673-5652
D104: 39-673-5 | E104: 2.5 kN | F104: 2.50 in | G104: 2000 | H104: 3060 | I104: 180 | J104: T2L-300x2.50 | K104: 63.5 | L104: 39-673-5653
D105: 39-673-5 | E105: 2.5 kN | F105: 80 mm | G105: 2000 | H105: 3060 | I105: 180 | J105: T2L-300x80 | K105: 80 | L105: 39-673-5654
D106: 39-673-5 | E106: 2.5 kN | F106: 100 mm | G106: 2000 | H106: 3060 | I106: 180 | J106: T2L-300x100 | K106: 100 | L106: 39-673-5655
D107: 39-673-5 | E107: 2.5 kN | F107: 125 mm | G107: 2000 | H107: 3060 | I107: 180 | J107: T2L-300x125 | K107: 125 | L107: 39-673-5656
D108: 39-673-5 | E108: 5 kN | F108: 25 mm | G108: 106000 | H108: 160000 | I108: 150 | J108: NP-500x25 | K108: 25 | L108: 39-673-5002
D109: 39-673-5 | E109: 5 kN | F109: 38.1 mm | G109: 106000 | H109: 160000 | I109: 150 | J109: NP-500x38.1 | K109: 38.1 | L109: 39-673-5003
D110: 39-673-5 | E110: 5 kN | F110: 50 mm | G110: 106000 | H110: 160000 | I110: 150 | J110: NP-500x50 | K110: 50 | L110: 39-673-5005
D111: 39-673-5 | E111: 5 kN | F111: 63.5 mm | G111: 106000 | H111: 160000 | I111: 150 | J111: NP-500x63.5 | K111: 63.5 | L111: 39-673-5006
D112: 39-673-5 | E112: 5 kN | F112: 80 mm | G112: 106000 | H112: 160000 | I112: 150 | J112: NP-500x80 | K112: 80 | L112: 39-673-5008
D113: 39-673-5 | E113: 5 kN | F113: 100 mm | G113: 106000 | H113: 160000 | I113: 150 | J113: NP-500x100 | K113: 100 | L113: 39-673-5010
D114: 39-673-5 | E114: 5 kN | F114: 125 mm | G114: 106000 | H114: 160000 | I114: 150 | J114: NP-500x125 | K114: 125 | L114: 39-673-5012
D115: 39-673-5 | E115: 5 kN | F115: 160 mm | G115: 106000 | H115: 160000 | I115: 150 | J115: NP-500x160 | K115: 160 | L115: 39-673-5016
D116: 39-673-5 | E116: 7.5 kN | F116: 12.7 mm | G116: 106000 | H116: 160000 | I116: 150 | J116: NP-750x12.7 | K116: 12.7 | L116: 39-673-5101
D117: 39-673-5 | E117: 7.5 kN | F117: 25 mm | G117: 106000 | H117: 160000 | I117: 150 | J117: NP-750x25 | K117: 25 | L117: 39-673-5102
D118: 39-673-5 | E118: 7.5 kN | F118: 38.1 mm | G118: 106000 | H118: 160000 | I118: 150 | J118: NP-750x38.1 | K118: 38.1 | L118: 39-673-5103
D119: 39-673-5 | E119: 7.5 kN | F119: 50 mm | G119: 106000 | H119: 160000 | I119: 150 | J119: NP-750x50 | K119: 50 | L119: 39-673-5105
D120: 39-673-5 | E120: 7.5 kN | F120: 63.5 mm | G120: 106000 | H120: 160000 | I120: 150 | J120: NP-750x63.5 | K120: 63.5 | L120: 39-673-5106
D121: 39-673-5 | E121: 7.5 kN | F121: 80 mm | G121: 106000 | H121: 160000 | I121: 150 | J121: NP-750x80 | K121: 80 | L121: 39-673-5108
D122: 39-673-5 | E122: 7.5 kN | F122: 100 mm | G122: 106000 | H122: 160000 | I122: 150 | J122: NP-750x100 | K122: 100 | L122: 39-673-5110
D123: 39-673-5 | E123: 7.5 kN | F123: 125 mm | G123: 106000 | H123: 160000 | I123: 150 | J123: NP-750x125 | K123: 125 | L123: 39-673-5112
D124: 39-673-5 | E124: 7.5 kN | F124: 160 mm | G124: 106000 | H124: 160000 | I124: 150 | J124: NP-750x160 | K124: 160 | L124: 39-673-5116
D125: 39-673-5 | E125: 7.5 kN | F125: 200 mm | G125: 106000 | H125: 160000 | I125: 150 | J125: NP-750x200 | K125: 200 | L125: 39-673-5120
D126: 39-673-5 | E126: 7.5 kN | F126: 250 mm | G126: 106000 | H126: 160000 | I126: 150 | J126: NP-750x250 | K126: 250 | L126: 39-673-5125
D127: 39-673-5 | E127: 7.5 kN | F127: 300 mm | G127: 106000 | H127: 160000 | I127: 150 | J127: NP-750x300 | K127: 300 | L127: 39-673-5130
D128: 39-673-5 | E128: 15 kN | F128: 12.7 mm | G128: 106000 | H128: 160000 | I128: 150 | J128: NP-1500x12.7 | K128: 12.7 | L128: 39-673-5201
D129: 39-673-5 | E129: 15 kN | F129: 25 mm | G129: 106000 | H129: 160000 | I129: 150 | J129: NP-1500x25 | K129: 25 | L129: 39-673-5202
D130: 39-673-5 | E130: 15 kN | F130: 38.1 mm | G130: 106000 | H130: 160000 | I130: 150 | J130: NP-1500x38.1 | K130: 38.1 | L130: 39-673-5203
D131: 39-673-5 | E131: 15 kN | F131: 50 mm | G131: 106000 | H131: 160000 | I131: 150 | J131: NP-1500x50 | K131: 50 | L131: 39-673-5205
D132: 39-673-5 | E132: 15 kN | F132: 63.5 mm | G132: 106000 | H132: 160000 | I132: 150 | J132: NP-1500x63.5 | K132: 63.5 | L132: 39-673-5206
D133: 39-673-5 | E133: 15 kN | F133: 80 mm | G133: 106000 | H133: 160000 | I133: 150 | J133: NP-1500x80 | K133: 80 | L133: 39-673-5208
D134: 39-673-5 | E134: 15 kN | F134: 100 mm | G134: 106000 | H134: 160000 | I134: 150 | J134: NP-1500x100 | K134: 100 | L134: 39-673-5210
D135: 39-673-5 | E135: 15 kN | F135: 125 mm | G135: 106000 | H135: 160000 | I135: 150 | J135: NP-1500x125 | K135: 125 | L135: 39-673-5212
D136: 39-673-5 | E136: 15 kN | F136: 160 mm | G136: 106000 | H136: 160000 | I136: 150 | J136: NP-1500x160 | K136: 160 | L136: 39-673-5216
D137: 39-673-5 | E137: 15 kN | F137: 200 mm | G137: 106000 | H137: 160000 | I137: 150 | J137: NP-1500x200 | K137: 200 | L137: 39-673-5220
D138: 39-673-5 | E138: 15 kN | F138: 250 mm | G138: 106000 | H138: 160000 | I138: 150 | J138: NP-1500x250 | K138: 250 | L138: 39-673-5225
D139: 39-673-5 | E139: 15 kN | F139: 300 mm | G139: 106000 | H139: 160000 | I139: 150 | J139: NP-1500x300 | K139: 300 | L139: 39-673-5230
D140: 39-673-5 | E140: 30 kN | F140: 12.7 mm | G140: 106000 | H140: 160000 | I140: 150 | J140: NP-3000x12.7 | K140: 12.7 | L140: 39-673-5301
D141: 39-673-5 | E141: 30 kN | F141: 25 mm | G141: 106000 | H141: 160000 | I141: 150 | J141: NP-3000x25 | K141: 25 | L141: 39-673-5302
D142: 39-673-5 | E142: 30 kN | F142: 38.1 mm | G142: 106000 | H142: 160000 | I142: 150 | J142: NP-3000x38.1 | K142: 38.1 | L142: 39-673-5303
D143: 39-673-5 | E143: 30 kN | F143: 50 mm | G143: 106000 | H143: 160000 | I143: 150 | J143: NP-3000x50 | K143: 50 | L143: 39-673-5305
D144: 39-673-5 | E144: 30 kN | F144: 63.5 mm | G144: 106000 | H144: 160000 | I144: 150 | J144: NP-3000x63.5 | K144: 63.5 | L144: 39-673-5306
D145: 39-673-5 | E145: 30 kN | F145: 80 mm | G145: 106000 | H145: 160000 | I145: 150 | J145: NP-3000x80 | K145: 80 | L145: 39-673-5308
D146: 39-673-5 | E146: 30 kN | F146: 100 mm | G146: 106000 | H146: 160000 | I146: 150 | J146: NP-3000x100 | K146: 100 | L146: 39-673-5310
D147: 39-673-5 | E147: 30 kN | F147: 125 mm | G147: 106000 | H147: 160000 | I147: 150 | J147: NP-3000x125 | K147: 125 | L147: 39-673-5312
D148: 39-673-5 | E148: 30 kN | F148: 160 mm | G148: 106000 | H148: 160000 | I148: 150 | J148: NP-3000x160 | K148: 160 | L148: 39-673-5316
D149: 39-673-5 | E149: 30 kN | F149: 200 mm | G149: 106000 | H149: 160000 | I149: 150 | J149: NP-3000x200 | K149: 200 | L149: 39-673-5320
D150: 39-673-5 | E150: 30 kN | F150: 250 mm | G150: 106000 | H150: 160000 | I150: 150 | J150: NP-3000x250 | K150: 250 | L150: 39-673-5325
D151: 39-673-5 | E151: 30 kN | F151: 300 mm | G151: 106000 | H151: 160000 | I151: 150 | J151: NP-3000x300 | K151: 300 | L151: 39-673-5330
D152: 39-673-5 | E152: 50 kN | F152: 25 mm | G152: 106000 | H152: 160000 | I152: 150 | J152: NP-5000x25 | K152: 25 | L152: 39-673-5402
D153: 39-673-5 | E153: 50 kN | F153: 38.1 mm | G153: 106000 | H153: 160000 | I153: 150 | J153: NP-5000x38.1 | K153: 38.1 | L153: 39-673-5403
D154: 39-673-5 | E154: 50 kN | F154: 50 mm | G154: 106000 | H154: 160000 | I154: 150 | J154: NP-5000x50 | K154: 50 | L154: 39-673-5405
D155: 39-673-5 | E155: 50 kN | F155: 63.5 mm | G155: 106000 | H155: 160000 | I155: 150 | J155: NP-5000x63.5 | K155: 63.5 | L155: 39-673-5406
D156: 39-673-5 | E156: 50 kN | F156: 80 mm | G156: 106000 | H156: 160000 | I156: 150 | J156: NP-5000x80 | K156: 80 | L156: 39-673-5408
D157: 39-673-5 | E157: 50 kN | F157: 100 mm | G157: 106000 | H157: 160000 | I157: 150 | J157: NP-5000x100 | K157: 100 | L157: 39-673-5410
D158: 39-673-5 | E158: 50 kN | F158: 125 mm | G158: 106000 | H158: 160000 | I158: 150 | J158: NP-5000x125 | K158: 125 | L158: 39-673-5412
D159: 39-673-5 | E159: 50 kN | F159: 160 mm | G159: 106000 | H159: 160000 | I159: 150 | J159: NP-5000x160 | K159: 160 | L159: 39-673-5416
D160: 39-673-5 | E160: 50 kN | F160: 200 mm | G160: 106000 | H160: 160000 | I160: 150 | J160: NP-5000x200 | K160: 200 | L160: 39-673-5420
D161: 39-673-5 | E161: 50 kN | F161: 250 mm | G161: 106000 | H161: 160000 | I161: 150 | J161: NP-5000x250 | K161: 250 | L161: 39-673-5425
D162: 39-673-5 | E162: 50 kN | F162: 300 mm | G162: 106000 | H162: 160000 | I162: 150 | J162: NP-5000x300 | K162: 300 | L162: 39-673-5430
D163: 39-673-5 | E163: 75 kN | F163: 25 mm | G163: 106000 | H163: 160000 | I163: 150 | J163: NP-7500x25 | K163: 25 | L163: 39-673-5502
D164: 39-673-5 | E164: 75 kN | F164: 38.1 mm | G164: 106000 | H164: 160000 | I164: 150 | J164: NP-7500x38.1 | K164: 38.1 | L164: 39-673-5503
D165: 39-673-5 | E165: 75 kN | F165: 50 mm | G165: 106000 | H165: 160000 | I165: 150 | J165: NP-7500x50 | K165: 50 | L165: 39-673-5505
D166: 39-673-5 | E166: 75 kN | F166: 63.5 mm | G166: 106000 | H166: 160000 | I166: 150 | J166: NP-7500x63.5 | K166: 63.5 | L166: 39-673-5506
D167: 39-673-5 | E167: 75 kN | F167: 80 mm | G167: 106000 | H167: 160000 | I167: 150 | J167: NP-7500x80 | K167: 80 | L167: 39-673-5508
D168: 39-673-5 | E168: 75 kN | F168: 100 mm | G168: 106000 | H168: 160000 | I168: 150 | J168: NP-7500x100 | K168: 100 | L168: 39-673-5510
D169: 39-673-5 | E169: 75 kN | F169: 125 mm | G169: 106000 | H169: 160000 | I169: 150 | J169: NP-7500x125 | K169: 125 | L169: 39-673-5512
D170: 39-673-5 | E170: 75 kN | F170: 160 mm | G170: 106000 | H170: 160000 | I170: 150 | J170: NP-7500x160 | K170: 160 | L170: 39-673-5516
D171: 39-673-5 | E171: 75 kN | F171: 200 mm | G171: 106000 | H171: 160000 | I171: 150 | J171: NP-7500x200 | K171: 200 | L171: 39-673-5520
D172: 39-673-5 | E172: 75 kN | F172: 250 mm | G172: 106000 | H172: 160000 | I172: 150 | J172: NP-7500x250 | K172: 250 | L172: 39-673-5525
D173: 39-673-5 | E173: 75 kN | F173: 300 mm | G173: 106000 | H173: 160000 | I173: 150 | J173: NP-7500x300 | K173: 300 | L173: 39-673-5530
D174: 39-673-5 | E174: 100 kN | F174: 25 mm | G174: 106000 | H174: 160000 | I174: 150 | J174: NP-10000x25 | K174: 25 | L174: 39-673-5602
D175: 39-673-5 | E175: 100 kN | F175: 38.1 mm | G175: 106000 | H175: 160000 | I175: 150 | J175: NP-10000x38.1 | K175: 38.1 | L175: 39-673-5603
D176: 39-673-5 | E176: 100 kN | F176: 50 mm | G176: 106000 | H176: 160000 | I176: 150 | J176: NP-10000x50 | K176: 50 | L176: 39-673-5605
D177: 39-673-5 | E177: 100 kN | F177: 63.5 mm | G177: 106000 | H177: 160000 | I177: 150 | J177: NP-10000x63.5 | K177: 63.5 | L177: 39-673-56506
D178: 39-673-5 | E178: 100 kN | F178: 80 mm | G178: 106000 | H178: 160000 | I178: 150 | J178: NP-10000x80 | K178: 80 | L178: 39-673-5608
D179: 39-673-5 | E179: 100 kN | F179: 100 mm | G179: 106000 | H179: 156000 | I179: 150 | J179: NP-10000x100 | K179: 100 | L179: 39-673-5610
D180: 39-673-5 | E180: 100 kN | F180: 125 mm | G180: 106000 | H180: 157000 | I180: 150 | J180: NP-10000x125 | K180: 125 | L180: 39-673-5612
D181: 39-673-5 | E181: 100 kN | F181: 160 mm | G181: 106000 | H181: 158000 | I181: 150 | J181: NP-10000x160 | K181: 160 | L181: 39-673-5616
D182: 39-673-5 | E182: 100 kN | F182: 200 mm | G182: 106000 | H182: 160000 | I182: 150 | J182: NP-10000x200 | K182: 200 | L182: 39-673-5620
D183: 39-673-5 | E183: 100 kN | F183: 250 mm | G183: 106000 | H183: 160000 | I183: 150 | J183: NP-10000x250 | K183: 250 | L183: 39-673-5625
D184: 39-673-5 | E184: 100 kN | F184: 300 mm | G184: 106000 | H184: 160000 | I184: 150 | J184: NP-10000x300 | K184: 300 | L184: 39-673-5630
D185: 39-673-8 | E185: 10 kN | F185: 12.7 mm | G185: 24000 | H185: 39300 | I185: 150 | J185: T4-1000x12.7 | K185: 12.7 | L185: 39-673-8278
D186: 39-673-8 | E186: 10 kN | F186: 25 mm | G186: 24000 | H186: 39300 | I186: 150 | J186: T4-1000x25 | K186: 25 | L186: 39-673-8279
D187: 39-673-8 | E187: 10 kN | F187: 38.1 mm | G187: 24000 | H187: 39300 | I187: 150 | J187: T4-1000x38.1 | K187: 38.1 | L187: 39-673-8280
D188: 39-673-8 | E188: 10 kN | F188: 50 mm | G188: 24000 | H188: 39300 | I188: 150 | J188: T4-1000x50 | K188: 50 | L188: 39-673-8281
D189: 39-673-8 | E189: 10 kN | F189: 63.5 mm | G189: 24000 | H189: 39300 | I189: 150 | J189: T4-1000x63.5 | K189: 63.5 | L189: 39-673-8282
D190: 39-673-8 | E190: 10 kN | F190: 80 mm | G190: 24000 | H190: 39300 | I190: 150 | J190: T4-1000x80 | K190: 80 | L190: 39-673-8283
D191: 39-673-8 | E191: 10 kN | F191: 100 mm | G191: 24000 | H191: 39300 | I191: 150 | J191: T4-1000x100 | K191: 100 | L191: 39-673-8284
D192: 39-673-8 | E192: 10 kN | F192: 125 mm | G192: 24000 | H192: 39300 | I192: 150 | J192: T4-1000x125 | K192: 125 | L192: 39-673-8285
D193: 39-673-8 | E193: 10 kN | F193: 160 mm | G193: 24000 | H193: 39300 | I193: 150 | J193: T4-1000x160 | K193: 160 | L193: 39-673-8286
D194: 39-673-8 | E194: 10 kN | F194: 200 mm | G194: 24000 | H194: 39300 | I194: 150 | J194: T4-1000x200 | K194: 200 | L194: 39-673-8287
D195: 39-673-8 | E195: 10 kN | F195: 250 mm | G195: 24000 | H195: 39300 | I195: 150 | J195: T4-1000x250 | K195: 250 | L195: 39-673-8288
D196: 39-673-8 | E196: 10 kN | F196: 300 mm | G196: 24000 | H196: 39300 | I196: 150 | J196: T4-1000x300 | K196: 300 | L196: 39-673-8289
D197: 39-673-8 | E197: 24 kN | F197: 25 mm | G197: 24000 | H197: 39300 | I197: 150 | J197: T4-2400x25 | K197: 25 | L197: 39-673-8291
D198: 39-673-8 | E198: 24 kN | F198: 38.1 mm | G198: 24000 | H198: 39300 | I198: 150 | J198: T4-2400x38.1 | K198: 38.1 | L198: 39-673-8292
D199: 39-673-8 | E199: 24 kN | F199: 50 mm | G199: 24000 | H199: 39300 | I199: 150 | J199: T4-2400x50 | K199: 50 | L199: 39-673-8293
D200: 39-673-8 | E200: 24 kN | F200: 63.5 mm | G200: 24000 | H200: 39300 | I200: 150 | J200: T4-2400x63.5 | K200: 63.5 | L200: 39-673-8294
... 51 more rows

Sheet Kaller (hidden)
D1: Family | E1: Size | F1: Stroke | G1: Init Force | H1: Final Force | I1: Max Pres | J1: Hyson Reference | K1: mm | L1: Kaller Str Code | N1: Unit | O1: Number with dot
D2: TU | E2: 250 | F2: 10 mm | G2: 2000 | H2: 3060 | I2: 180 | J2: T2L-300x10 | K2: =IF(N2="mm",O2,O2*25.4) -> 10 | L2: TU 250-10 | N2: =RIGHT(F2,2) -> mm | O2: =VALUE(SUBSTITUTE(LEFT(F2,SEARCH(" ",F2)-1),".",",")) -> 10
D3: TU | E3: 250 | F3: 0.50 in | G3: 2000 | H3: 3060 | I3: 180 | J3: T2L-300x0.50 | K3: 12.7 | L3: TU 250-12,7 | N3: in | O3: 0.5
D4: TU | E4: 250 | F4: 16 mm | G4: 2000 | H4: 3060 | I4: 180 | J4: T2L-300x16 | K4: 16 | L4: TU 250-16 | N4: mm | O4: 16
D5: TU | E5: 250 | F5: 25 mm | G5: 2000 | H5: 3060 | I5: 180 | J5: T2L-300x25 | K5: 25 | L5: TU 250-25 | N5: mm | O5: 25
D6: TU | E6: 250 | F6: 1.50 in | G6: 2000 | H6: 3060 | I6: 180 | J6: T2L-300x1.50 | K6: 38.1 | L6: TU 250-38,1 | N6: in | O6: 1.5
D7: TU | E7: 250 | F7: 50 mm | G7: 2000 | H7: 3060 | I7: 180 | J7: T2L-300x50 | K7: 50 | L7: TU 250-50 | N7: mm | O7: 50
D8: TU | E8: 250 | F8: 2.50 in | G8: 2000 | H8: 3060 | I8: 180 | J8: T2L-300x2.50 | K8: 63.5 | L8: TU 250-63,5 | N8: in | O8: 2.5
D9: TU | E9: 250 | F9: 80 mm | G9: 2000 | H9: 3060 | I9: 180 | J9: T2L-300x80 | K9: 80 | L9: TU 250-80 | N9: mm | O9: 80
D10: TU | E10: 250 | F10: 100 mm | G10: 2000 | H10: 3060 | I10: 180 | J10: T2L-300x100 | K10: 100 | L10: TU 250-100 | N10: mm | O10: 100
D11: TU | E11: 250 | F11: 125 mm | G11: 2000 | H11: 3060 | I11: 180 | J11: T2L-300x125 | K11: 125 | L11: TU 250-125 | N11: mm | O11: 125
D12: TU | E12: 500 | F12: 10 mm | G12: 106000 | H12: 160000 | I12: 150 | J12: NP-500x10 | K12: 10 | L12: TU 500-10 | N12: mm | O12: 10
D13: TU | E13: 500 | F13: 12.7 mm | G13: 106000 | H13: 160000 | I13: 150 | J13: NP-500x12.7 | K13: 12.7 | L13: TU 500-12,7 | N13: mm | O13: 12.7
D14: TU | E14: 500 | F14: 25 mm | G14: 106000 | H14: 160000 | I14: 150 | J14: NP-500x25 | K14: 25 | L14: TU 500-25 | N14: mm | O14: 25
D15: TU | E15: 500 | F15: 38.1 mm | G15: 106000 | H15: 160000 | I15: 150 | J15: NP-500x38.1 | K15: 38.1 | L15: TU 500-38,1 | N15: mm | O15: 38.1
D16: TU | E16: 500 | F16: 50 mm | G16: 106000 | H16: 160000 | I16: 150 | J16: NP-500x50 | K16: 50 | L16: TU 500-50 | N16: mm | O16: 50
D17: TU | E17: 500 | F17: 63.5 mm | G17: 106000 | H17: 160000 | I17: 150 | J17: NP-500x63.5 | K17: 63.5 | L17: TU 500-63,5 | N17: mm | O17: 63.5
D18: TU | E18: 500 | F18: 80 mm | G18: 106000 | H18: 160000 | I18: 150 | J18: NP-500x80 | K18: 80 | L18: TU 500-80 | N18: mm | O18: 80
D19: TU | E19: 500 | F19: 100 mm | G19: 106000 | H19: 160000 | I19: 150 | J19: NP-500x100 | K19: 100 | L19: TU 500-100 | N19: mm | O19: 100
D20: TU | E20: 500 | F20: 125 mm | G20: 106000 | H20: 160000 | I20: 150 | J20: NP-500x125 | K20: 125 | L20: TU 500-125 | N20: mm | O20: 125
D21: TU | E21: 500 | F21: 160 mm | G21: 106000 | H21: 160000 | I21: 150 | J21: NP-500x160 | K21: 160 | L21: TU 500-160 | N21: mm | O21: 160
D22: TU | E22: 750 | F22: 12.7 mm | G22: 106000 | H22: 160000 | I22: 150 | J22: NP-750x12.7 | K22: 12.7 | L22: TU 750-12,7 | N22: mm | O22: 12.7
D23: TU | E23: 750 | F23: 25 mm | G23: 106000 | H23: 160000 | I23: 150 | J23: NP-750x25 | K23: 25 | L23: TU 750-25 | N23: mm | O23: 25
D24: TU | E24: 750 | F24: 38.1 mm | G24: 106000 | H24: 160000 | I24: 150 | J24: NP-750x38.1 | K24: 38.1 | L24: TU 750-38,1 | N24: mm | O24: 38.1
D25: TU | E25: 750 | F25: 50 mm | G25: 106000 | H25: 160000 | I25: 150 | J25: NP-750x50 | K25: 50 | L25: TU 750-50 | N25: mm | O25: 50
D26: TU | E26: 750 | F26: 63.5 mm | G26: 106000 | H26: 160000 | I26: 150 | J26: NP-750x63.5 | K26: 63.5 | L26: TU 750-63,5 | N26: mm | O26: 63.5
D27: TU | E27: 750 | F27: 80 mm | G27: 106000 | H27: 160000 | I27: 150 | J27: NP-750x80 | K27: 80 | L27: TU 750-80 | N27: mm | O27: 80
D28: TU | E28: 750 | F28: 100 mm | G28: 106000 | H28: 160000 | I28: 150 | J28: NP-750x100 | K28: 100 | L28: TU 750-100 | N28: mm | O28: 100
D29: TU | E29: 750 | F29: 125 mm | G29: 106000 | H29: 160000 | I29: 150 | J29: NP-750x125 | K29: 125 | L29: TU 750-125 | N29: mm | O29: 125
D30: TU | E30: 750 | F30: 160 mm | G30: 106000 | H30: 160000 | I30: 150 | J30: NP-750x160 | K30: 160 | L30: TU 750-160 | N30: mm | O30: 160
D31: TU | E31: 750 | F31: 200 mm | G31: 106000 | H31: 160000 | I31: 150 | J31: NP-750x200 | K31: 200 | L31: TU 750-200 | N31: mm | O31: 200
D32: TU | E32: 750 | F32: 250 mm | G32: 106000 | H32: 160000 | I32: 150 | J32: NP-750x250 | K32: 250 | L32: TU 750-250 | N32: mm | O32: 250
D33: TU | E33: 750 | F33: 300 mm | G33: 106000 | H33: 160000 | I33: 150 | J33: NP-750x300 | K33: 300 | L33: TU 750-300 | N33: mm | O33: 300
D34: TU | E34: 1500 | F34: 25 mm | G34: 106000 | H34: 160000 | I34: 150 | J34: NP-1500x25 | K34: 25 | L34: TU 1500-25 | N34: =RIGHT(F34,2) -> mm | O34: =VALUE(SUBSTITUTE(LEFT(F34,SEARCH(" ",F34)-1),".",",")) -> 25
D35: TU | E35: 1500 | F35: 38.1 mm | G35: 106000 | H35: 160000 | I35: 150 | J35: NP-1500x38.1 | K35: 38.1 | L35: TU 1500-38,1 | N35: mm | O35: 38.1
D36: TU | E36: 1500 | F36: 50 mm | G36: 106000 | H36: 160000 | I36: 150 | J36: NP-1500x50 | K36: 50 | L36: TU 1500-50 | N36: mm | O36: 50
D37: TU | E37: 1500 | F37: 63.5 mm | G37: 106000 | H37: 160000 | I37: 150 | J37: NP-1500x63.5 | K37: 63.5 | L37: TU 1500-63,5 | N37: mm | O37: 63.5
D38: TU | E38: 1500 | F38: 80 mm | G38: 106000 | H38: 160000 | I38: 150 | J38: NP-1500x80 | K38: 80 | L38: TU 1500-80 | N38: mm | O38: 80
D39: TU | E39: 1500 | F39: 100 mm | G39: 106000 | H39: 160000 | I39: 150 | J39: NP-1500x100 | K39: 100 | L39: TU 1500-100 | N39: mm | O39: 100
D40: TU | E40: 1500 | F40: 125 mm | G40: 106000 | H40: 160000 | I40: 150 | J40: NP-1500x125 | K40: 125 | L40: TU 1500-125 | N40: mm | O40: 125
D41: TU | E41: 1500 | F41: 160 mm | G41: 106000 | H41: 160000 | I41: 150 | J41: NP-1500x160 | K41: 160 | L41: TU 1500-160 | N41: mm | O41: 160
D42: TU | E42: 1500 | F42: 200 mm | G42: 106000 | H42: 160000 | I42: 150 | J42: NP-1500x200 | K42: 200 | L42: TU 1500-200 | N42: mm | O42: 200
D43: TU | E43: 1500 | F43: 250 mm | G43: 106000 | H43: 160000 | I43: 150 | J43: NP-1500x250 | K43: 250 | L43: TU 1500-250 | N43: mm | O43: 250
D44: TU | E44: 1500 | F44: 300 mm | G44: 106000 | H44: 160000 | I44: 150 | J44: NP-1500x300 | K44: 300 | L44: TU 1500-300 | N44: mm | O44: 300
D45: TU | E45: 3000 | F45: 25 mm | G45: 106000 | H45: 160000 | I45: 150 | J45: NP-3000x25 | K45: 25 | L45: TU 3000-25 | N45: mm | O45: 25
D46: TU | E46: 3000 | F46: 38.1 mm | G46: 106000 | H46: 160000 | I46: 150 | J46: NP-3000x38.1 | K46: 38.1 | L46: TU 3000-38,1 | N46: mm | O46: 38.1
D47: TU | E47: 3000 | F47: 50 mm | G47: 106000 | H47: 160000 | I47: 150 | J47: NP-3000x50 | K47: 50 | L47: TU 3000-50 | N47: mm | O47: 50
D48: TU | E48: 3000 | F48: 63.5 mm | G48: 106000 | H48: 160000 | I48: 150 | J48: NP-3000x63.5 | K48: 63.5 | L48: TU 3000-63,5 | N48: mm | O48: 63.5
D49: TU | E49: 3000 | F49: 80 mm | G49: 106000 | H49: 160000 | I49: 150 | J49: NP-3000x80 | K49: 80 | L49: TU 3000-80 | N49: mm | O49: 80
D50: TU | E50: 3000 | F50: 100 mm | G50: 106000 | H50: 160000 | I50: 150 | J50: NP-3000x100 | K50: 100 | L50: TU 3000-100 | N50: mm | O50: 100
D51: TU | E51: 3000 | F51: 125 mm | G51: 106000 | H51: 160000 | I51: 150 | J51: NP-3000x125 | K51: 125 | L51: TU 3000-125 | N51: mm | O51: 125
D52: TU | E52: 3000 | F52: 160 mm | G52: 106000 | H52: 160000 | I52: 150 | J52: NP-3000x160 | K52: 160 | L52: TU 3000-160 | N52: mm | O52: 160
D53: TU | E53: 3000 | F53: 200 mm | G53: 106000 | H53: 160000 | I53: 150 | J53: NP-3000x200 | K53: 200 | L53: TU 3000-200 | N53: mm | O53: 200
D54: TU | E54: 3000 | F54: 250 mm | G54: 106000 | H54: 160000 | I54: 150 | J54: NP-3000x250 | K54: 250 | L54: TU 3000-250 | N54: mm | O54: 250
D55: TU | E55: 3000 | F55: 300 mm | G55: 106000 | H55: 160000 | I55: 150 | J55: NP-3000x300 | K55: 300 | L55: TU 3000-300 | N55: mm | O55: 300
D56: TU | E56: 5000 | F56: 25 mm | G56: 106000 | H56: 160000 | I56: 150 | J56: NP-5000x25 | K56: 25 | L56: TU 5000-25 | N56: mm | O56: 25
D57: TU | E57: 5000 | F57: 38.1 mm | G57: 106000 | H57: 160000 | I57: 150 | J57: NP-5000x38.1 | K57: 38.1 | L57: TU 5000-38,1 | N57: mm | O57: 38.1
D58: TU | E58: 5000 | F58: 50 mm | G58: 106000 | H58: 160000 | I58: 150 | J58: NP-5000x50 | K58: 50 | L58: TU 5000-50 | N58: mm | O58: 50
D59: TU | E59: 5000 | F59: 63.5 mm | G59: 106000 | H59: 160000 | I59: 150 | J59: NP-5000x63.5 | K59: 63.5 | L59: TU 5000-63,5 | N59: mm | O59: 63.5
D60: TU | E60: 5000 | F60: 80 mm | G60: 106000 | H60: 160000 | I60: 150 | J60: NP-5000x80 | K60: 80 | L60: TU 5000-80 | N60: mm | O60: 80
D61: TU | E61: 5000 | F61: 100 mm | G61: 106000 | H61: 160000 | I61: 150 | J61: NP-5000x100 | K61: 100 | L61: TU 5000-100 | N61: mm | O61: 100
D62: TU | E62: 5000 | F62: 125 mm | G62: 106000 | H62: 160000 | I62: 150 | J62: NP-5000x125 | K62: 125 | L62: TU 5000-125 | N62: mm | O62: 125
D63: TU | E63: 5000 | F63: 160 mm | G63: 106000 | H63: 160000 | I63: 150 | J63: NP-5000x160 | K63: 160 | L63: TU 5000-160 | N63: mm | O63: 160
D64: TU | E64: 5000 | F64: 200 mm | G64: 106000 | H64: 160000 | I64: 150 | J64: NP-5000x200 | K64: 200 | L64: TU 5000-200 | N64: mm | O64: 200
D65: TU | E65: 5000 | F65: 250 mm | G65: 106000 | H65: 160000 | I65: 150 | J65: NP-5000x250 | K65: 250 | L65: TU 5000-250 | N65: mm | O65: 250
D66: TU | E66: 5000 | F66: 300 mm | G66: 106000 | H66: 160000 | I66: 150 | J66: NP-5000x300 | K66: =IF(N66="mm",O66,O66*25.4) -> 300 | L66: TU 5000-300 | N66: =RIGHT(F66,2) -> mm | O66: =VALUE(SUBSTITUTE(LEFT(F66,SEARCH(" ",F66)-1),".",",")) -> 300
D67: TU | E67: 7500 | F67: 25 mm | G67: 106000 | H67: 160000 | I67: 150 | J67: NP-7500x25 | K67: 25 | L67: TU 7500-25 | N67: mm | O67: 25
D68: TU | E68: 7500 | F68: 38.1 mm | G68: 106000 | H68: 160000 | I68: 150 | J68: NP-7500x38.1 | K68: 38.1 | L68: TU 7500-38,1 | N68: mm | O68: 38.1
D69: TU | E69: 7500 | F69: 50 mm | G69: 106000 | H69: 160000 | I69: 150 | J69: NP-7500x50 | K69: 50 | L69: TU 7500-50 | N69: mm | O69: 50
D70: TU | E70: 7500 | F70: 63.5 mm | G70: 106000 | H70: 160000 | I70: 150 | J70: NP-7500x63.5 | K70: 63.5 | L70: TU 7500-63,5 | N70: mm | O70: 63.5
D71: TU | E71: 7500 | F71: 80 mm | G71: 106000 | H71: 160000 | I71: 150 | J71: NP-7500x80 | K71: 80 | L71: TU 7500-80 | N71: mm | O71: 80
D72: TU | E72: 7500 | F72: 100 mm | G72: 106000 | H72: 160000 | I72: 150 | J72: NP-7500x100 | K72: 100 | L72: TU 7500-100 | N72: mm | O72: 100
D73: TU | E73: 7500 | F73: 125 mm | G73: 106000 | H73: 160000 | I73: 150 | J73: NP-7500x125 | K73: 125 | L73: TU 7500-125 | N73: mm | O73: 125
D74: TU | E74: 7500 | F74: 160 mm | G74: 106000 | H74: 160000 | I74: 150 | J74: NP-7500x160 | K74: 160 | L74: TU 7500-160 | N74: mm | O74: 160
D75: TU | E75: 7500 | F75: 200 mm | G75: 106000 | H75: 160000 | I75: 150 | J75: NP-7500x200 | K75: 200 | L75: TU 7500-200 | N75: mm | O75: 200
D76: TU | E76: 7500 | F76: 250 mm | G76: 106000 | H76: 160000 | I76: 150 | J76: NP-7500x250 | K76: 250 | L76: TU 7500-250 | N76: mm | O76: 250
D77: TU | E77: 7500 | F77: 300 mm | G77: 106000 | H77: 160000 | I77: 150 | J77: NP-7500x300 | K77: 300 | L77: TU 7500-300 | N77: mm | O77: 300
D78: TU | E78: 10000 | F78: 25 mm | G78: 106000 | H78: 160000 | I78: 150 | J78: NP-10000x25 | K78: 25 | L78: TU 10000-25 | N78: mm | O78: 25
D79: TU | E79: 10000 | F79: 38.1 mm | G79: 106000 | H79: 160000 | I79: 150 | J79: NP-10000x38.1 | K79: 38.1 | L79: TU 10000-38,1 | N79: mm | O79: 38.1
D80: TU | E80: 10000 | F80: 50 mm | G80: 106000 | H80: 160000 | I80: 150 | J80: NP-10000x50 | K80: 50 | L80: TU 10000-50 | N80: mm | O80: 50
D81: TU | E81: 10000 | F81: 63.5 mm | G81: 106000 | H81: 160000 | I81: 150 | J81: NP-10000x63.5 | K81: 63.5 | L81: TU 10000-63,5 | N81: mm | O81: 63.5
D82: TU | E82: 10000 | F82: 80 mm | G82: 106000 | H82: 160000 | I82: 150 | J82: NP-10000x80 | K82: 80 | L82: TU 10000-80 | N82: mm | O82: 80
D83: TU | E83: 10000 | F83: 100 mm | G83: 106000 | H83: 156000 | I83: 150 | J83: NP-10000x100 | K83: 100 | L83: TU 10000-100 | N83: mm | O83: 100
D84: TU | E84: 10000 | F84: 125 mm | G84: 106000 | H84: 157000 | I84: 150 | J84: NP-10000x125 | K84: 125 | L84: TU 10000-125 | N84: mm | O84: 125
D85: TU | E85: 10000 | F85: 160 mm | G85: 106000 | H85: 158000 | I85: 150 | J85: NP-10000x160 | K85: 160 | L85: TU 10000-160 | N85: mm | O85: 160
D86: TU | E86: 10000 | F86: 200 mm | G86: 106000 | H86: 160000 | I86: 150 | J86: NP-10000x200 | K86: 200 | L86: TU 10000-200 | N86: mm | O86: 200
D87: TU | E87: 10000 | F87: 250 mm | G87: 106000 | H87: 160000 | I87: 150 | J87: NP-10000x250 | K87: 250 | L87: TU 10000-250 | N87: mm | O87: 250
D88: TU | E88: 10000 | F88: 300 mm | G88: 106000 | H88: 160000 | I88: 150 | J88: NP-10000x300 | K88: 300 | L88: TU 10000-300 | N88: mm | O88: 300
D89: K | E89: 500 | F89: 0.25 in | G89: 2000 | H89: 3060 | I89: 180 | J89: T2L-500x0.25 | K89: 6.35 | L89: K 500-6 | N89: in | O89: 0.25
D90: K | E90: 500 | F90: 0.50 in | G90: 2000 | H90: 3060 | I90: 180 | J90: T2L-500x0.50 | K90: 12.7 | L90: K 500-12,5 | N90: in | O90: 0.5
D91: K | E91: 500 | F91: 0.75 in | G91: 2000 | H91: 3060 | I91: 180 | J91: T2L-500x0.75 | K91: 19.05 | L91: K 500-19 | N91: in | O91: 0.75
D92: K | E92: 500 | F92: 1.50 in | G92: 2000 | H92: 3060 | I92: 180 | J92: T2L-500x1.50 | K92: 38.1 | L92: K 500-38,1 | N92: in | O92: 1.5
D93: K | E93: 500 | F93: 2.50 in | G93: 2000 | H93: 3060 | I93: 180 | J93: T2L-500x2.50 | K93: 63.5 | L93: K 500-63,5 | N93: in | O93: 2.5
D94: K | E94: 750 | F94: 0.25 in | G94: 2000 | H94: 3060 | I94: 180 | J94: T2L-750x0.25 | K94: 6.35 | L94: K 750-6 | N94: in | O94: 0.25
D95: K | E95: 750 | F95: 0.50 in | G95: 2000 | H95: 3060 | I95: 180 | J95: T2L-750x0.50 | K95: 12.7 | L95: K 750-12,5 | N95: in | O95: 0.5
D96: K | E96: 750 | F96: 0.75 in | G96: 2000 | H96: 3060 | I96: 180 | J96: T2L-750x0.75 | K96: 19.05 | L96: K 750-19 | N96: in | O96: 0.75
D97: K | E97: 750 | F97: 1.50 in | G97: 2000 | H97: 3060 | I97: 180 | J97: T2L-750x1.50 | K97: 38.1 | L97: K 750-38,1 | N97: in | O97: 1.5
D98: K | E98: 750 | F98: 2.50 in | G98: 2000 | H98: 3060 | I98: 180 | J98: T2L-750x2.50 | K98: 63.5 | L98: K 750-63,5 | N98: =RIGHT(F98,2) -> in | O98: =VALUE(SUBSTITUTE(LEFT(F98,SEARCH(" ",F98)-1),".",",")) -> 2.5
D99: X | E99: 170 | F99: 7 mm | G99: 2000 | H99: 3060 | I99: 180 | J99: T3-170x7 | K99: 7 | L99: X 170-7 | N99: mm | O99: 7
D100: X | E100: 170 | F100: 10 mm | G100: 2000 | H100: 3060 | I100: 180 | J100: T3-170x10 | K100: 10 | L100: X 170-10 | N100: mm | O100: 10
D101: X | E101: 170 | F101: 15 mm | G101: 2000 | H101: 3060 | I101: 180 | J101: T3-170x15 | K101: 15 | L101: X 170-15 | N101: mm | O101: 15
D102: X | E102: 170 | F102: 19 mm | G102: 2000 | H102: 3060 | I102: 180 | J102: T3-170x19 | K102: 19 | L102: X 170-19 | N102: mm | O102: 19
D103: X | E103: 170 | F103: 25 mm | G103: 2000 | H103: 3060 | I103: 180 | J103: T3-170x25 | K103: 25 | L103: X 170-25 | N103: mm | O103: 25
D104: X | E104: 170 | F104: 38 mm | G104: 2000 | H104: 3060 | I104: 180 | J104: T3-170x38 | K104: 38 | L104: X 170-38 | N104: mm | O104: 38
D105: X | E105: 170 | F105: 50 mm | G105: 2000 | H105: 3060 | I105: 180 | J105: T3-170x50 | K105: 50 | L105: X 170-50 | N105: mm | O105: 50
D106: X | E106: 170 | F106: 63 mm | G106: 2000 | H106: 3060 | I106: 180 | J106: T3-170x63 | K106: 63 | L106: X 170-63 | N106: mm | O106: 63
D107: X | E107: 170 | F107: 75 mm | G107: 2000 | H107: 3060 | I107: 180 | J107: T3-170x75 | K107: 75 | L107: X 170-75 | N107: mm | O107: 75
D108: X | E108: 170 | F108: 80 mm | G108: 2000 | H108: 3060 | I108: 180 | J108: T3-170x80 | K108: 80 | L108: X 170-80 | N108: mm | O108: 80
D109: X | E109: 170 | F109: 100 mm | G109: 2000 | H109: 3060 | I109: 180 | J109: T3-170x100 | K109: 100 | L109: X 170-100 | N109: mm | O109: 100
D110: X | E110: 170 | F110: 125 mm | G110: 2000 | H110: 3060 | I110: 180 | J110: T3-170x125 | K110: 125 | L110: X 170-125 | N110: mm | O110: 125
D111: X | E111: 320 | F111: 7 mm | G111: 2000 | H111: 3060 | I111: 180 | J111: T3-320x7 | K111: 7 | L111: X 320-7 | N111: mm | O111: 7
D112: X | E112: 320 | F112: 10 mm | G112: 2000 | H112: 3060 | I112: 180 | J112: T3-320x10 | K112: 10 | L112: X 320-10 | N112: mm | O112: 10
D113: X | E113: 320 | F113: 15 mm | G113: 2000 | H113: 3060 | I113: 180 | J113: T3-320x15 | K113: 15 | L113: X 320-15 | N113: mm | O113: 15
D114: X | E114: 320 | F114: 19 mm | G114: 2000 | H114: 3060 | I114: 180 | J114: T3-320x19 | K114: 19 | L114: X 320-19 | N114: mm | O114: 19
D115: X | E115: 320 | F115: 25 mm | G115: 2000 | H115: 3060 | I115: 180 | J115: T3-320x25 | K115: 25 | L115: X 320-25 | N115: mm | O115: 25
D116: X | E116: 320 | F116: 38 mm | G116: 2000 | H116: 3060 | I116: 180 | J116: T3-320x38 | K116: 38 | L116: X 320-38 | N116: mm | O116: 38
D117: X | E117: 320 | F117: 50 mm | G117: 2000 | H117: 3060 | I117: 180 | J117: T3-320x50 | K117: 50 | L117: X 320-50 | N117: mm | O117: 50
D118: X | E118: 320 | F118: 63 mm | G118: 2000 | H118: 3060 | I118: 180 | J118: T3-320x63 | K118: 63 | L118: X 320-63 | N118: mm | O118: 63
D119: X | E119: 320 | F119: 75 mm | G119: 2000 | H119: 3060 | I119: 180 | J119: T3-320x75 | K119: 75 | L119: X 320-75 | N119: mm | O119: 75
D120: X | E120: 320 | F120: 80 mm | G120: 2000 | H120: 3060 | I120: 180 | J120: T3-320x80 | K120: 80 | L120: X 320-80 | N120: mm | O120: 80
D121: X | E121: 320 | F121: 100 mm | G121: 2000 | H121: 3060 | I121: 180 | J121: T3-320x100 | K121: 100 | L121: X 320-100 | N121: mm | O121: 100
D122: X | E122: 320 | F122: 125 mm | G122: 2000 | H122: 3060 | I122: 180 | J122: T3-320x125 | K122: 125 | L122: X 320-125 | N122: mm | O122: 125
D123: X | E123: 350 | F123: 10 mm | G123: 2000 | H123: 3060 | I123: 180 | J123: T3-350x10 | K123: 10 | L123: X 350-10 | N123: mm | O123: 10
D124: X | E124: 350 | F124: 13 mm | G124: 2000 | H124: 3060 | I124: 180 | J124: T3-350x13 | K124: 13 | L124: X 350-13 | N124: mm | O124: 13
D125: X | E125: 350 | F125: 16 mm | G125: 2000 | H125: 3060 | I125: 180 | J125: T3-350x16 | K125: 16 | L125: X 350-16 | N125: mm | O125: 16
D126: X | E126: 350 | F126: 19 mm | G126: 2000 | H126: 3060 | I126: 180 | J126: T3-350x19 | K126: 19 | L126: X 350-19 | N126: mm | O126: 19
D127: X | E127: 350 | F127: 25 mm | G127: 2000 | H127: 3060 | I127: 180 | J127: T3-350x25 | K127: 25 | L127: X 350-25 | N127: mm | O127: 25
D128: X | E128: 350 | F128: 32 mm | G128: 2000 | H128: 3060 | I128: 180 | J128: T3-350x32 | K128: 32 | L128: X 350-32 | N128: mm | O128: 32
D129: X | E129: 350 | F129: 38 mm | G129: 2000 | H129: 3060 | I129: 180 | J129: T3-350x38 | K129: 38 | L129: X 350-38 | N129: mm | O129: 38
D130: X | E130: 350 | F130: 50 mm | G130: 2000 | H130: 3060 | I130: 180 | J130: T3-350x50 | K130: =IF(N130="mm",O130,O130*25.4) -> 50 | L130: X 350-50 | N130: mm | O130: 50
D131: X | E131: 350 | F131: 63 mm | G131: 2000 | H131: 3060 | I131: 180 | J131: T3-350x63 | K131: 63 | L131: X 350-63 | N131: mm | O131: 63
D132: X | E132: 350 | F132: 75 mm | G132: 2000 | H132: 3060 | I132: 180 | J132: T3-350x75 | K132: 75 | L132: X 350-75 | N132: =RIGHT(F132,2) -> mm | O132: =VALUE(SUBSTITUTE(LEFT(F132,SEARCH(" ",F132)-1),".",",")) -> 75
D133: X | E133: 350 | F133: 80 mm | G133: 2000 | H133: 3060 | I133: 180 | J133: T3-350x80 | K133: 80 | L133: X 350-80 | N133: mm | O133: 80
D134: X | E134: 350 | F134: 100 mm | G134: 2000 | H134: 3060 | I134: 180 | J134: T3-350x100 | K134: 100 | L134: X 350-100 | N134: mm | O134: 100
D135: X | E135: 350 | F135: 125 mm | G135: 2000 | H135: 3060 | I135: 180 | J135: T3-350x125 | K135: 125 | L135: X 350-125 | N135: mm | O135: 125
D136: X | E136: 500 | F136: 10 mm | G136: 2000 | H136: 3060 | I136: 180 | J136: T3-500x10 | K136: 10 | L136: X 500-10 | N136: mm | O136: 10
D137: X | E137: 500 | F137: 13 mm | G137: 2000 | H137: 3060 | I137: 180 | J137: T3-500x13 | K137: 13 | L137: X 500-13 | N137: mm | O137: 13
D138: X | E138: 500 | F138: 16 mm | G138: 2000 | H138: 3060 | I138: 180 | J138: T3-500x16 | K138: 16 | L138: X 500-16 | N138: mm | O138: 16
D139: X | E139: 500 | F139: 19 mm | G139: 2000 | H139: 3060 | I139: 180 | J139: T3-500x19 | K139: 19 | L139: X 500-19 | N139: mm | O139: 19
D140: X | E140: 500 | F140: 25 mm | G140: 2000 | H140: 3060 | I140: 180 | J140: T3-500x25 | K140: 25 | L140: X 500-25 | N140: mm | O140: 25
D141: X | E141: 500 | F141: 32 mm | G141: 2000 | H141: 3060 | I141: 180 | J141: T3-500x32 | K141: 32 | L141: X 500-32 | N141: mm | O141: 32
D142: X | E142: 500 | F142: 38 mm | G142: 2000 | H142: 3060 | I142: 180 | J142: T3-500x38 | K142: 38 | L142: X 500-38 | N142: mm | O142: 38
D143: X | E143: 500 | F143: 50 mm | G143: 2000 | H143: 3060 | I143: 180 | J143: T3-500x50 | K143: 50 | L143: X 500-50 | N143: mm | O143: 50
D144: X | E144: 500 | F144: 63 mm | G144: 2000 | H144: 3060 | I144: 180 | J144: T3-500x63 | K144: 63 | L144: X 500-63 | N144: mm | O144: 63
D145: X | E145: 500 | F145: 75 mm | G145: 2000 | H145: 3060 | I145: 180 | J145: T3-500x75 | K145: 75 | L145: X 500-75 | N145: mm | O145: 75
D146: X | E146: 500 | F146: 80 mm | G146: 2000 | H146: 3060 | I146: 180 | J146: T3-500x80 | K146: 80 | L146: X 500-80 | N146: mm | O146: 80
D147: X | E147: 500 | F147: 100 mm | G147: 2000 | H147: 3060 | I147: 180 | J147: T3-500x100 | K147: 100 | L147: X 500-100 | N147: mm | O147: 100
D148: X | E148: 500 | F148: 125 mm | G148: 2000 | H148: 3060 | I148: 180 | J148: T3-500x125 | K148: 125 | L148: X 500-125 | N148: mm | O148: 125
D149: X | E149: 750 | F149: 10 mm | G149: 2000 | H149: 3060 | I149: 180 | J149: T3-750x10 | K149: 10 | L149: X 750-10 | N149: mm | O149: 10
D150: X | E150: 750 | F150: 13 mm | G150: 2000 | H150: 3060 | I150: 180 | J150: T3-750x13 | K150: 13 | L150: X 750-13 | N150: mm | O150: 13
D151: X | E151: 750 | F151: 16 mm | G151: 2000 | H151: 3060 | I151: 180 | J151: T3-750x16 | K151: 16 | L151: X 750-16 | N151: mm | O151: 16
D152: X | E152: 750 | F152: 19 mm | G152: 2000 | H152: 3060 | I152: 180 | J152: T3-750x19 | K152: 19 | L152: X 750-19 | N152: mm | O152: 19
D153: X | E153: 750 | F153: 25 mm | G153: 2000 | H153: 3060 | I153: 180 | J153: T3-750x25 | K153: 25 | L153: X 750-25 | N153: mm | O153: 25
D154: X | E154: 750 | F154: 32 mm | G154: 2000 | H154: 3060 | I154: 180 | J154: T3-750x32 | K154: 32 | L154: X 750-32 | N154: mm | O154: 32
D155: X | E155: 750 | F155: 38 mm | G155: 2000 | H155: 3060 | I155: 180 | J155: T3-750x38 | K155: 38 | L155: X 750-38 | N155: mm | O155: 38
D156: X | E156: 750 | F156: 50 mm | G156: 2000 | H156: 3060 | I156: 180 | J156: T3-750x50 | K156: 50 | L156: X 750-50 | N156: mm | O156: 50
D157: X | E157: 750 | F157: 63 mm | G157: 2000 | H157: 3060 | I157: 180 | J157: T3-750x63 | K157: 63 | L157: X 750-63 | N157: mm | O157: 63
D158: X | E158: 750 | F158: 75 mm | G158: 2000 | H158: 3060 | I158: 180 | J158: T3-750x75 | K158: 75 | L158: X 750-75 | N158: mm | O158: 75
D159: X | E159: 750 | F159: 80 mm | G159: 2000 | H159: 3060 | I159: 180 | J159: T3-750x80 | K159: 80 | L159: X 750-80 | N159: mm | O159: 80
D160: X | E160: 750 | F160: 100 mm | G160: 2000 | H160: 3060 | I160: 180 | J160: T3-750x100 | K160: 100 | L160: X 750-100 | N160: mm | O160: 100
D161: X | E161: 750 | F161: 125 mm | G161: 2000 | H161: 3060 | I161: 180 | J161: T3-750x125 | K161: 125 | L161: X 750-125 | N161: mm | O161: 125
D162: X | E162: 1000 | F162: 13 mm | G162: 2000 | H162: 3060 | I162: 180 | J162: T3-1000x13 | K162: 13 | L162: X 1000-13 | N162: mm | O162: 13
D163: X | E163: 1000 | F163: 16 mm | G163: 2000 | H163: 3060 | I163: 180 | J163: T3-1000x16 | K163: 16 | L163: X 1000-16 | N163: mm | O163: 16
D164: X | E164: 1000 | F164: 19 mm | G164: 2000 | H164: 3060 | I164: 180 | J164: T3-1000x19 | K164: 19 | L164: X 1000-19 | N164: mm | O164: 19
D165: X | E165: 1000 | F165: 25 mm | G165: 2000 | H165: 3060 | I165: 180 | J165: T3-1000x25 | K165: 25 | L165: X 1000-25 | N165: mm | O165: 25
D166: X | E166: 1000 | F166: 32 mm | G166: 2000 | H166: 3060 | I166: 180 | J166: T3-1000x32 | K166: 32 | L166: X 1000-32 | N166: mm | O166: 32
D167: X | E167: 1000 | F167: 38 mm | G167: 2000 | H167: 3060 | I167: 180 | J167: T3-1000x38 | K167: 38 | L167: X 1000-38 | N167: mm | O167: 38
D168: X | E168: 1000 | F168: 50 mm | G168: 2000 | H168: 3060 | I168: 180 | J168: T3-1000x50 | K168: 50 | L168: X 1000-50 | N168: mm | O168: 50
D169: X | E169: 1000 | F169: 63 mm | G169: 2000 | H169: 3060 | I169: 180 | J169: T3-1000x63 | K169: 63 | L169: X 1000-63 | N169: mm | O169: 63
D170: X | E170: 1000 | F170: 75 mm | G170: 2000 | H170: 3060 | I170: 180 | J170: T3-1000x75 | K170: 75 | L170: X 1000-75 | N170: mm | O170: 75
D171: X | E171: 1000 | F171: 80 mm | G171: 2000 | H171: 3060 | I171: 180 | J171: T3-1000x80 | K171: 80 | L171: X 1000-80 | N171: mm | O171: 80
D172: X | E172: 1000 | F172: 100 mm | G172: 2000 | H172: 3060 | I172: 180 | J172: T3-1000x100 | K172: 100 | L172: X 1000-100 | N172: mm | O172: 100
D173: X | E173: 1000 | F173: 125 mm | G173: 2000 | H173: 3060 | I173: 180 | J173: T3-1000x125 | K173: 125 | L173: X 1000-125 | N173: mm | O173: 125
D174: X | E174: 1500 | F174: 13 mm | G174: 2000 | H174: 3060 | I174: 180 | J174: T3-1500x13 | K174: 13 | L174: X 1500-13 | N174: mm | O174: 13
D175: X | E175: 1500 | F175: 16 mm | G175: 2000 | H175: 3060 | I175: 180 | J175: T3-1500x16 | K175: 16 | L175: X 1500-16 | N175: mm | O175: 16
D176: X | E176: 1500 | F176: 19 mm | G176: 2000 | H176: 3060 | I176: 180 | J176: T3-1500x19 | K176: 19 | L176: X 1500-19 | N176: mm | O176: 19
D177: X | E177: 1500 | F177: 25 mm | G177: 2000 | H177: 3060 | I177: 180 | J177: T3-1500x25 | K177: 25 | L177: X 1500-25 | N177: mm | O177: 25
D178: X | E178: 1500 | F178: 32 mm | G178: 2000 | H178: 3060 | I178: 180 | J178: T3-1500x32 | K178: 32 | L178: X 1500-32 | N178: mm | O178: 32
D179: X | E179: 1500 | F179: 38 mm | G179: 2000 | H179: 3060 | I179: 180 | J179: T3-1500x38 | K179: 38 | L179: X 1500-38 | N179: mm | O179: 38
D180: X | E180: 1500 | F180: 50 mm | G180: 2000 | H180: 3060 | I180: 180 | J180: T3-1500x50 | K180: 50 | L180: X 1500-50 | N180: mm | O180: 50
D181: X | E181: 1500 | F181: 63 mm | G181: 2000 | H181: 3060 | I181: 180 | J181: T3-1500x63 | K181: 63 | L181: X 1500-63 | N181: mm | O181: 63
D182: X | E182: 1500 | F182: 75 mm | G182: 2000 | H182: 3060 | I182: 180 | J182: T3-1500x75 | K182: 75 | L182: X 1500-75 | N182: mm | O182: 75
D183: X | E183: 1500 | F183: 80 mm | G183: 2000 | H183: 3060 | I183: 180 | J183: T3-1500x80 | K183: 80 | L183: X 1500-80 | N183: mm | O183: 80
D184: X | E184: 1500 | F184: 100 mm | G184: 2000 | H184: 3060 | I184: 180 | J184: T3-1500x100 | K184: 100 | L184: X 1500-100 | N184: mm | O184: 100
D185: X | E185: 1500 | F185: 125 mm | G185: 2000 | H185: 3060 | I185: 180 | J185: T3-1500x125 | K185: 125 | L185: X 1500-125 | N185: mm | O185: 125
D186: X | E186: 2400 | F186: 16 mm | G186: 2000 | H186: 3060 | I186: 180 | J186: T3-2400x16 | K186: 16 | L186: X 2400-16 | N186: mm | O186: 16
D187: X | E187: 2400 | F187: 19 mm | G187: 2000 | H187: 3060 | I187: 180 | J187: T3-2400x19 | K187: 19 | L187: X 2400-19 | N187: mm | O187: 19
D188: X | E188: 2400 | F188: 25 mm | G188: 2000 | H188: 3060 | I188: 180 | J188: T3-2400x25 | K188: 25 | L188: X 2400-25 | N188: mm | O188: 25
D189: X | E189: 2400 | F189: 32 mm | G189: 2000 | H189: 3060 | I189: 180 | J189: T3-2400x32 | K189: 32 | L189: X 2400-32 | N189: mm | O189: 32
D190: X | E190: 2400 | F190: 38 mm | G190: 2000 | H190: 3060 | I190: 180 | J190: T3-2400x38 | K190: 38 | L190: X 2400-38 | N190: mm | O190: 38
D191: X | E191: 2400 | F191: 50 mm | G191: 2000 | H191: 3060 | I191: 180 | J191: T3-2400x50 | K191: 50 | L191: X 2400-50 | N191: mm | O191: 50
D192: X | E192: 2400 | F192: 63 mm | G192: 2000 | H192: 3060 | I192: 180 | J192: T3-2400x63 | K192: 63 | L192: X 2400-63 | N192: mm | O192: 63
D193: X | E193: 2400 | F193: 75 mm | G193: 2000 | H193: 3060 | I193: 180 | J193: T3-2400x75 | K193: 75 | L193: X 2400-75 | N193: mm | O193: 75
D194: X | E194: 2400 | F194: 80 mm | G194: 2000 | H194: 3060 | I194: 180 | J194: T3-2400x80 | K194: =IF(N194="mm",O194,O194*25.4) -> 80 | L194: X 2400-80 | N194: mm | O194: 80
D195: X | E195: 2400 | F195: 100 mm | G195: 2000 | H195: 3060 | I195: 180 | J195: T3-2400x100 | K195: 100 | L195: X 2400-100 | N195: mm | O195: 100
D196: X | E196: 2400 | F196: 125 mm | G196: 2000 | H196: 3060 | I196: 180 | J196: T3-2400x125 | K196: 125 | L196: X 2400-125 | N196: =RIGHT(F196,2) -> mm | O196: =VALUE(SUBSTITUTE(LEFT(F196,SEARCH(" ",F196)-1),".",",")) -> 125
D197: X | E197: 4200 | F197: 16 mm | G197: 2000 | H197: 3060 | I197: 180 | J197: T3-4200x16 | K197: 16 | L197: X 4200-16 | N197: mm | O197: 16
D198: X | E198: 4200 | F198: 19 mm | G198: 2000 | H198: 3060 | I198: 180 | J198: T3-4200x19 | K198: 19 | L198: X 4200-19 | N198: mm | O198: 19
D199: X | E199: 4200 | F199: 25 mm | G199: 2000 | H199: 3060 | I199: 180 | J199: T3-4200x25 | K199: 25 | L199: X 4200-25 | N199: mm | O199: 25
D200: X | E200: 4200 | F200: 32 mm | G200: 2000 | H200: 3060 | I200: 180 | J200: T3-4200x32 | K200: 32 | L200: X 4200-32 | N200: mm | O200: 32
... 532 more rows

Sheet Unit conv (hidden)
B5: Units | C5: Metric (bar, kN, mm, °C)
C6: Imperial (psi, lbf, inch, °F)
C8: 1 | D8: 1
A12: Unit convertion
C15: Pressure
B16: =C8 -> 1 | C16: bar | D16: 1
A17: Konverteringsfaktor | B17: =INDEX(D16:D17,B16) -> 1 | C17: psi | D17: 14.5037738
B18: =INDEX(C16:C17,B16) -> bar
C21: Force
B22: =C8 -> 1 | C22: kN | D22: 1
A23: Konverteringsfaktor | B23: =INDEX(D22:D23,B22) -> 1 | C23: lbf | D23: 224.8089
B24: =INDEX(C22:C23,B22) -> kN
C32: Polytrop kurva | E32: Förskjutning för polytropa värden
B33: 1 | C33: Isothermal | D33: 0 | E33: Förskjutning 0 kolumner
A34: Förskjutningsfaktor | B34: =INDEX(D33:D34,B33) -> 0 | C34: Polytropic | D34: 3 | E34: Förskjutning 3 kolumner
A35: Väljer y-värden att plotta
C38: Length
B39: =C8 -> 1 | C39: mm | D39: 1
A40: Konverteringsfaktor | B40: =INDEX(D39:D40,B39) -> 1 | C40: Inch | D40: =1/25.4 -> 0.03937007874
B41: =INDEX(C39:C40,B39) -> mm
C43: Temperature
B44: =C8 -> 1 | C44: °C
C45: °F
B46: =INDEX(C44:C45,B44) -> °C
C53: Surrounding Temperature
C54: Celcius from Fahrenheit
C55: Fahrenheit | D55: Celcius
C56: =Calculator!X20 -> 20 | D56: =(5/9)*(C56-32) -> -6.666666667
C58: Surrounding temperature in C° | D58: =IF(B44=1,Calculator!X20,'Unit conv'!D56) -> 20
C61: Operating temperature
C62: Min
C63: Fahrenheit from Celcius
C64: =Calculator!K10 -> 20.77432505 | D64: =C64*(9/5)+32 -> 69.39378509
C66: MIN Operating min temperature in °C | D66: =IF(B44=1,C64,D64) -> 20.77432505
C68: Max
C69: Fahrenheit from Celcius
C70: =Calculator!K15 -> 30.77432505 | D70: =C70*(9/5)+32 -> 87.39378509
C72: MAX Operating min temperature in °C | D72: =IF(B44=1,C70,D70) -> 30.77432505
C76: Temperaturgränser temperaturstapeldiagram
C77: Celsus | D77: 0 | E77: 100
C78: Fahrenheit | D78: 30 | E78: 210
C80: Gränser | D80: =INDEX(D77:D78,B44) -> 0 | E80: =INDEX(E77:E78,B44) -> 100
C82: Temperaturgräns, varning
C83: 80 | D83: =C83*(9/5)+32 -> 176
C84: Warning_Temperature | D84: =INDEX(C83:D83,B44) -> 80 | E84: °C eller °F

Sheet Fjäderkurva (hidden)
C6: Vi/Vf = (Ff/Fi)^(1/1,4)
C7: Isotermt är Vi/Vf=(Ff/Fi) | J7: Virtuell slagvolym | M7: Vi / Vf | N7: (Vi / Vf)^kappa | O7: Iso t kraft per fj | P7: Diagramförklaring | Q7: Diagramförklaring | S7: Diagramförklaring | T7: Diagramförklaring
O8: kN eller lbf | P8: =IF(Used_Temperature_Unit="°C","Isothermal force at 20 °C","Isothermal force at 68 °F") -> Isothermal force at 20 °C | Q8: ="Isothermal force at running temperature" -> Isothermal force at running temperature | S8: =IF(Used_Temperature_Unit="°C","Polytropic force at 20 °C","Polytropic force at 68 °F") -> Polytropic force at 20 °C | T8: ="Polytropic force at running temperature" -> Polytropic force at running temperature
J9: Kurva
J10: Part_Of_Stroke | K10: Stroke_Vector_mm | L10: Virtual_Volume_Vector | M10: Volume_Ratio_Vector | N10: Pressure_Factor_Vector | O10: Isothermal_Force_Vector | P10: Total_Isothermal_Force_Vector_20C | Q10: Total_Isothermal_Force_Vector_RunningT | R10: Polytropic_Force_Vector | S10: Total_Polytropic_Force_Vector_20C | T10: Total_Polytropic_Force_Vector_RunningT
J11: 0 | K11: =Part_Of_Stroke_Vector*Used_stroke_for_calculation -> 0 | L11: =Virtual_Volume-Stroke_Vector_mm -> 43.08247423 | M11: =Virtual_Volume/Virtual_Volume_Vector -> 1 | N11: =Volume_Ratio_Vector^Kappa -> 1 | O11: =Initial_Force*Volume_Ratio_Vector -> 0.4166666667 | P11: =Isothermal_Force_Vector*User_Number_of_cylinders -> 0.4166666667 | Q11: =Total_Isothermal_Force_Vector_20C*Temperature_Factor -> 0.4248781642 | R11: =Initial_Force*Pressure_Factor_Vector -> 0.4166666667 | S11: =User_Number_of_cylinders*Polytropic_Force_Vector -> 0.4166666667 | T11: =Total_Polytropic_Force_Vector_20C*Temperature_Factor -> 0.4248781642
C12: Used_Stroke_length_in_mm | D12: =IF(Length_unit=1,User_Used_Stroke,User_Used_Stroke/Convertion_factor_length) -> 5 | E12: mm | F12: Omräknat till mm om tum är valt | J12: 0.1 | K12: 0.5 | L12: 42.58247423 | M12: 1.01174192 | N12: 1.016477202 | O12: 0.4215591333 | P12: 0.4215591333 | Q12: 0.4298670495 | R12: 0.4235321675 | S12: 0.4235321675 | T12: 0.4318789675
C13: Product_Stroke_length_in_chosen_Unit | D13: =FLOOR(IF(Length_unit=1,Product_stroke_length_mm,Product_stroke_length_mm*Convertion_factor_length),0.001) -> 7 | E13: mm or inch | J13: 0.2 | K13: 1 | L13: 42.08247423 | M13: 1.023762861 | N13: 1.03342537 | O13: 0.4265678589 | P13: 0.4265678589 | Q13: 0.4349744851 | R13: 0.4305939042 | S13: 0.4305939042 | T13: 0.4390798741
C14: Used stroke for calculation | D14: =IF(Used_Stroke_length_in_mm>Product_stroke_length_mm,Product_stroke_length_mm,Used_Stroke_length_in_mm) -> 5 | E14: mm | F14: Om utnyttjad slagl är större än max sätts max | J14: 0.3 | K14: 1.5 | L14: 41.58247423 | M14: 1.03607289 | N14: 1.050863805 | O14: 0.4316970373 | P14: 0.4316970373 | Q14: 0.4402047473 | R14: 0.4378599187 | S14: 0.4378599187 | T14: 0.4464890842
J15: 0.4 | K15: 2 | L15: 41.08247423 | M15: 1.04868256 | N15: 1.068812843 | O15: 0.4369510665 | P15: 0.4369510665 | Q15: 0.4455623207 | R15: 0.4453386845 | S15: 0.4453386845 | T15: 0.4541152385
C16: Filling_Pressure_in_bar | D16: =User_filling_pressure/Convertion_factor_pressure -> 150 | E16: bar | J16: 0.5 | K16: 2.5 | L16: 40.58247423 | M16: 1.061602947 | N16: 1.087293925 | O16: 0.4423345612 | P16: 0.4423345612 | Q16: 0.4510519111 | R16: 0.4530391354 | S16: 0.4530391354 | T16: 0.4619674468
J17: 0.6 | K17: 3 | L17: 40.08247423 | M17: 1.074845679 | N17: 1.106329673 | O17: 0.4478523663 | P17: 0.4478523663 | Q17: 0.4566784589 | R17: 0.4609706971 | S17: 0.4609706971 | T17: 0.4700553205
J18: 0.7 | K18: 3.5 | L18: 39.58247423 | M18: 1.088422972 | N18: 1.125943969 | O18: 0.4535095716 | P18: 0.4535095716 | Q18: 0.4624471541 | R18: 0.4691433203 | S18: 0.4691433203 | T18: 0.4783890064
J19: 0.8 | K19: 4 | L19: 39.08247423 | M19: 1.102347666 | N19: 1.146162041 | O19: 0.4593115273 | P19: 0.4593115273 | Q19: 0.4683634524 | R19: 0.4775675173 | S19: 0.4775675173 | T19: 0.486979224
C20: Ff/Fi = Vi/Vf = k | D20: =Final_force_Fs/Initial_force_Fi -> 1.194 | F20: Force factor | J20: 0.9 | K20: 4.5 | L20: 38.58247423 | M20: 1.116633267 | N20: 1.167010563 | O20: 0.4652638611 | P20: 0.4652638611 | Q20: 0.4744330923 | R20: 0.4862544012 | S20: 0.4862544012 | T20: 0.4958373056
J21: 1 | K21: 5 | L21: 38.08247423 | M21: 1.13129399 | N21: 1.18851775 | O21: 0.4713724959 | P21: 0.4713724959 | Q21: 0.4806621137 | R21: 0.4952157291 | S21: 0.4952157291 | T21: 0.5049752396
C22: l = k*s / (k-1) | D22: =(Forcefactor*Product_stroke_length_mm)/(Forcefactor-1) -> 43.08247423 | E22: mm | F22: Virtuell volym, Viv
C24: Virtual_Compressed_volume | D24: =Virtual_Volume-Used_stroke_for_calculation -> 38.08247423 | E24: mm | F24: Virtuell slutvolym för utnyttjad slagl, Vfvny
C26: Volume_Ratio Viny / Vfny | D26: =Virtual_Volume/Virtual_Compressed_volume -> 1.13129399
C28: Average_Temperature | D28: =IFERROR((Min_Temperature_Interval_in_Celsius+Max_Temperature_Interval_in_Celcius)*0.5,20) -> 25.77432505
C30: Temperature Factor (273+T)/(237+20) | D30: =(273+Average_Temperature)/(273+20) -> 1.019707594 | K30: =OFFSET(P8,0,Forskjutningsfaktor_Diagram,1,1) -> Isothermal force at 20 °C | L30: =OFFSET(Q8,0,Forskjutningsfaktor_Diagram,1,1) -> Isothermal force at running temperature
J32: Stroke_Vector_for_Diagram | K32: Force_Vector_For_Diagram_20C | L32: Force_Vector_For_Diagram_RunningT
J33: =Stroke_Vector_mm*Convertion_factor_length -> 0 | K33: =OFFSET(Total_Isothermal_Force_Vector_20C:P21,0,Forskjutningsfaktor_Diagram,11,1) -> 0.4166666667 | L33: =OFFSET(Total_Isothermal_Force_Vector_RunningT,0,Forskjutningsfaktor_Diagram,11,1) -> 0.4248781642
J34: 0.5 | K34: 0.4215591333 | L34: 0.4298670495
C35: kappa | D35: 1.4 | J35: 1 | K35: 0.4265678589 | L35: 0.4349744851
C36: Pressure_Factor (Viny / Vfny)^kappa | D36: =Volume_Ratio^Kappa -> 1.18851775 | E36: Detta ska tas multiplicerat med Fi eller Pi | J36: 1.5 | K36: 0.4316970373 | L36: 0.4402047473
J37: 2 | K37: 0.4369510665 | L37: 0.4455623207
J38: 2.5 | K38: 0.4423345612 | L38: 0.4510519111
J39: 3 | K39: 0.4478523663 | L39: 0.4566784589
J40: 3.5 | K40: 0.4535095716 | L40: 0.4624471541
J41: 4 | K41: 0.4593115273 | L41: 0.4683634524
C42: Force_when_compressed | D42: =Filling_Pressure_in_bar*Pressure_Factor -> 178.2776625 | J42: 4.5 | K42: 0.4652638611 | L42: 0.4744330923
J43: 5 | K43: 0.4713724959 | L43: 0.4806621137 | M43: =MAX(K43:L43) -> 0.4806621137
C44: Pressure_Utilisation | D44: =Filling_Pressure_in_bar/Maximum_filling_pressure_bar -> 0.8333333333
C45: Initial_Force | D45: =Pressure_Utilisation*Initial_force_Fi*0.001*Convertion_factor_Force -> 0.4166666667
C46: Total_Initial_Force | D46: =$L$33 -> 0.4248781642
C47: Compressed_Force | D47: =Initial_force_Fi*Volume_Ratio*Pressure_Utilisation*0.001*Convertion_factor_Force -> 0.4713724959 | E47: Isotermt
C48: Total_Compressed_Force | D48: =$L$43 -> 0.4806621137
C50: Error Messages
C51: Part of error message | D51: =CONCATENATE("Maximum allowable used stroke is ",Product_Stroke_length_in_chosen_Unit," ",Used_Length_Unit) -> Maximum allowable used stroke is 7 mm
C52: Error_message_Too_long_Used_Stroke_length | D52: =IF(Used_Stroke_length_in_mm>Product_stroke_length_mm,D51," ") -> 
C54: Error_message_High_Pressure | D54: =IF(User_filling_pressure>Maximum_filling_pressure_bar*Convertion_factor_pressure,"Filling Pressure to High!","") -> 
C56: Error_message_High_Temp | D56: =IFERROR(IF(Max_Temperature_Interval_in_Celcius>80,"High temp. Please contact your distributor for advice.",""),"") -> 
C58: Information Messages
C59: Information_Message_Max_Filling_Pressure | D59: =CONCATENATE("Maximum filling pressure is ",Maximum_filling_pressure_bar*FLOOR(Convertion_factor_pressure,0.01)," ",Used_pressure_unit) -> Maximum filling pressure is 180 bar
C61: Information_Message_Running_Temp | D61: =CONCATENATE("Operating temperature is estimated to be between ",Min_Temperature_interval," ","and ",Max_Temperature_Inteval," ",Used_Temperature_Unit) -> Operating temperature is estimated to be between 21 and 31 °C
C63: Information_Message_Force_at_Contact | D63: =CONCATENATE("Force at contact is ",ROUND(Total_Initial_Force,0)," ",Used_Force_Unit) -> Force at contact is 0 kN
C65: Information_Message_Force_End_Stroke | D65: =CONCATENATE("Force at ",User_Used_Stroke," ",Used_Length_Unit," ","is ",ROUND(Total_Compressed_Force,0)," ",Used_Force_Unit) -> Force at 5 mm is 0 kN
C67: Headers
C68: Header_Force_Diagram | D68: =CONCATENATE("Total force of ",User_Number_of_cylinders," gas spring",IF(User_Number_of_cylinders>1,"s","")," in ",Used_Force_Unit) -> Total force of 1 gas spring in kN

Sheet Tempdatabladet
A1: Nya kolumner | C1: Gröna kolumner visas i databladet
F3: Kolumn F
F4: Tagit bort listboxarna/MC
AG6: Införs i steg
C7: T4SC- | D7: CU4 | F7: Strokelength | G7: Utilized | H7: Fill pressure | I7: Frequency | J7: Env./Tool | K7: Env./Tool | L7: Env./Tool | P7: Estimated running | R7: =P7 -> Estimated running | V7: F° env./tool | AB7: =P7 -> Estimated running | AG7: 1
G8: strokelength | J8: temperature | K8: temperature | L8: temperature | M8: Rörlängd | N8: Röryta | O8: Fjäderfaktor | P8: temperature between: | R8: temperature between: | V8: temp. | AB8: =P8 -> temperature between: | AG8: 1
C9: Spring Size | D9: Spring Size | G9: [mm] | H9: [Bar] | I9: [spm] | J9: [°C] | K9: [°F] | L9: [°C] | M9: L (approx) | N9: A | O9: Kf | P9: [°C] | Q9: [°C] | R9: [°C] | S9: [°C] | T9: P som [°F] | U9: Q som [°F] | V9: to C° | W9: N + T | X9: U + 10°C | Y9: U to F° | Z9: V to F° | AA9: [°F] | AB9: [°F] | AC9: [°C] | AD9: [°C] | AG9: 1
A10: =CONCATENATE("CU4"," ",D10) -> CU4 420 | C10: 420 | D10: 420 | F10: =Product_stroke_length_mm -> 7 | G10: =Used_stroke_for_calculation -> 5 | H10: =Filling_Pressure_in_bar -> 150 | I10: =User_SPM -> 20 | J10: =Surrounding_temperature_in_C° -> 20 | K10: 77 | L10: =5/9*(K10-32) -> 25 | M10: =39.1+2.146*F10 -> 54.122 | N10: =24.9*PI()*M10*0.01 -> 42.33729012 | O10: =0.49+0.017*F10-0.00037*F10^2 -> 0.59087 | P10: =G10*H10*I10*(G10/F10)^1.1/(150*N10*O10)+J10 -> 22.7608586 | Q10: =P10+10 -> 32.7608586 | R10: 22.7608586 | S10: 32.7608586 | T10: =9/5*R10+32 -> 72.96954547 | U10: =9/5*S10+32 -> 90.96954547 | V10: =5/9*(K10-32) -> 25 | W10: =P10+V10 -> 47.7608586 | X10: =W10+10 -> 57.7608586 | Y10: =9/5*W10+32 -> 117.9695455 | Z10: =9/5*X10+32 -> 135.9695455 | AA10: =Y10 -> 117.9695455 | AB10: 135.9695455 | AC10: =5/9*(AA10-32) -> 47.7608586 | AD10: =5/9*(AB10-32) -> 57.7608586 | AE10: =IF(Q10>80,"High temp. Please contact your distributor for advice",IF(H10>150,"Too high charging pressure!","")) ->  | AF10: =AE10 ->  | AG10: 1 | AH10: Samma som CU | AN10: 33 | AO10: 43
A11: =CONCATENATE("CU4"," ",D11) -> CU4 740 | C11: 740 | D11: 740 | F11: 7 | G11: 5 | H11: 150 | I11: 20 | J11: 20 | K11: 77 | L11: =5/9*(K11-32) -> 25 | M11: =45+2*F11 -> 59 | N11: =32*PI()*M11*0.01 -> 59.3132693 | O11: =2.5-0.039*F11 -> 2.227 | P11: =G11*H11*I11*(G11/F11)^1.1/(150*N11*O11)+J11 -> 20.522862 | Q11: 30.522862 | R11: 20.522862 | S11: 30.522862 | T11: =9/5*R11+32 -> 68.9411516 | U11: 86.9411516 | V11: =5/9*(K11-32) -> 25 | W11: =P11+V11 -> 45.522862 | X11: =W11+10 -> 55.522862 | Y11: =9/5*W11+32 -> 113.9411516 | Z11: 131.9411516 | AA11: 113.9411516 | AB11: 131.9411516 | AC11: =5/9*(AA11-32) -> 45.522862 | AD11: 55.522862 | AF11: =AE11 ->  | AG11: 1 | AH11: Samma som CU | AN11: 30 | AO11: 40
A12: CU4 1000 | C12: 1000 | D12: 1000 | F12: 7 | G12: 5 | H12: 150 | I12: 20 | J12: 20 | K12: 77 | L12: 25 | M12: =38.9+2.88*F12 -> 59.06 | N12: =37.9*PI()*M12*0.01 -> 70.32059314 | O12: =0.8248-0.002*F12 -> 0.8108 | P12: 21.21133118 | Q12: 31.21133118 | R12: 21.21133118 | S12: 31.21133118 | T12: 70.18039612 | U12: 88.18039612 | V12: 25 | W12: 46.21133118 | X12: 56.21133118 | Y12: 115.1803961 | Z12: 133.1803961 | AA12: 115.1803961 | AB12: 133.1803961 | AC12: 46.21133118 | AD12: 56.21133118 | AG12: 1 | AH12: Samma som CU | AN12: 28 | AO12: 38
A13: CU4 1800 | C13: 1800 | D13: 1800 | F13: 7 | G13: 5 | H13: 150 | I13: 20 | J13: 20 | K13: 77 | L13: 25 | M13: =46.6+2.535*F13 -> 64.345 | N13: =50.2*PI()*M13*0.01 -> 101.4771812 | O13: =0.8713-0.0118*F13 -> 0.7887 | P13: 20.86293667 | Q13: 30.86293667 | R13: 20.86293667 | S13: 30.86293667 | T13: 69.55328601 | U13: 87.55328601 | V13: 25 | W13: 45.86293667 | X13: 55.86293667 | Y13: 114.553286 | Z13: 132.553286 | AA13: 114.553286 | AB13: 132.553286 | AC13: 45.86293667 | AD13: 55.86293667 | AG13: 1 | AH13: Samma som CU + slagl. 65 | AN13: 30 | AO13: 40
A14: CU4 2900 | C14: 2900 | D14: 2900 | F14: 7 | G14: 5 | H14: 150 | I14: 20 | J14: 20 | K14: 77 | L14: 25 | M14: =55+2*F14 -> 69 | N14: =63.2*PI()*M14*0.01 -> 136.9985724 | O14: =1.2-0.0181*F14 -> 1.0733 | P14: 20.46970155 | Q14: 30.46970155 | R14: 20.46970155 | S14: 30.46970155 | T14: 68.84546278 | U14: 86.84546278 | V14: 25 | W14: 45.46970155 | X14: 55.46970155 | Y14: 113.8454628 | Z14: 131.8454628 | AA14: 113.8454628 | AB14: 131.8454628 | AC14: 45.46970155 | AD14: 55.46970155 | AG14: 1 | AH14: Samma som CU + slagl. 65 | AN14: 29 | AO14: 39
A15: CU4 4700 | C15: 4700 | D15: 4700 | F15: 7 | G15: 5 | H15: 150 | I15: 20 | J15: 20 | K15: 77 | L15: 25 | M15: =40+3*F15 -> 61 | N15: =75.2*PI()*M15*0.01 -> 144.1111382 | O15: 0.43 | P15: 21.11453358 | Q15: 31.11453358 | R15: 21.11453358 | S15: 31.11453358 | T15: 70.00616044 | U15: 88.00616044 | V15: 25 | W15: 46.11453358 | X15: 56.11453358 | Y15: 115.0061604 | Z15: 133.0061604 | AA15: 115.0061604 | AB15: 133.0061604 | AC15: 46.11453358 | AD15: 56.11453358 | AG15: 1 | AH15: Samma som CU + slagl. 65 | AN15: 27 | AO15: 37
A16: CU4 7500 | C16: 7500 | D16: 7500 | F16: 7 | G16: 5 | H16: 150 | I16: 20 | J16: 20 | K16: 77 | L16: 25 | M16: =50+3*F16 -> 71 | N16: =95.2*PI()*M16*0.01 -> 212.3465306 | O16: 0.3 | P16: 21.08415839 | Q16: 31.08415839 | R16: 21.08415839 | S16: 31.08415839 | T16: 69.95148511 | U16: 87.95148511 | V16: 25 | W16: 46.08415839 | X16: 56.08415839 | Y16: 114.9514851 | Z16: 132.9514851 | AA16: 114.9514851 | AB16: 132.9514851 | AC16: 46.08415839 | AD16: 56.08415839 | AG16: 1 | AH16: Samma som CU + slagl. 65 | AN16: 27 | AO16: 37
A17: CU4 11800 | C17: 11800 | D17: 11800 | F17: 7 | G17: 5 | H17: 150 | I17: 20 | J17: 20 | K17: 77 | L17: 25 | M17: =60+3*F17 -> 81 | N17: =120.2*PI()*M17*0.01 -> 305.8717439 | O17: =0.247-0.0023*F17 -> 0.2309 | P17: 20.9779032 | Q17: 30.9779032 | R17: 20.9779032 | S17: 30.9779032 | T17: 69.76022577 | U17: 87.76022577 | V17: 25 | W17: 45.9779032 | X17: 55.9779032 | Y17: 114.7602258 | Z17: 132.7602258 | AA17: 114.7602258 | AB17: 132.7602258 | AC17: 45.9779032 | AD17: 55.9779032 | AG17: 1 | AH17: Samma som CU + slagl. 65 | AN17: 29 | AO17: 39
A18: CU4 18300 | C18: 18300 | D18: 18300 | F18: 7 | G18: 5 | H18: 150 | I18: 20 | J18: 20 | K18: 77 | L18: 25 | M18: =70+3*F18 -> 91 | N18: =150.2*PI()*M18*0.01 -> 429.3991671 | O18: =0.25-0.0011*F18 -> 0.2423 | P18: 20.66381116 | Q18: 30.66381116 | R18: 20.66381116 | S18: 30.66381116 | T18: 69.19486009 | U18: 87.19486009 | V18: 25 | W18: 45.66381116 | X18: 55.66381116 | Y18: 114.1948601 | Z18: 132.1948601 | AA18: 114.1948601 | AB18: 132.1948601 | AC18: 45.66381116 | AD18: 55.66381116 | AG18: 1 | AH18: Samma som CU + slagl. 65 | AN18: 27 | AO18: 37
C21: T5- | D21: CX | F21: Strokelength | G21: Utilized | H21: Fill pressure | I21: Frequency | J21: Env./Tool | K21: Env./Tool | L21: Env./Tool | P21: Estimated running | R21: =P21 -> Estimated running | V21: F° env./tool | AB21: =P21 -> Estimated running | AG21: 1
G22: strokelength | J22: temperature | K22: temperature | L22: temperature | P22: temperature between: | R22: temperature between: | V22: temp. | AB22: =P22 -> temperature between: | AG22: 1
C23: Spring Size | D23: Spring Size | G23: [mm] | H23: [Bar] | I23: [spm] | J23: [°C] | K23: [°F] | L23: [°C] | P23: [°C] | Q23: [°C] | R23: [°C] | S23: =Q23 -> [°C] | T23: P som [°F] | U23: Q som [°F] | V23: to C° | W23: N + T | X23: U + 10°C | Y23: U to F° | Z23: V to F° | AA23: [°F] | AB23: [°F] | AC23: [°C] | AD23: [°C] | AG23: 1
A24: =CONCATENATE("CX"," ",D24) -> CX 500 | C24: 500 | D24: 500 | F24: =Product_stroke_length_mm -> 7 | G24: =Used_stroke_for_calculation -> 5 | H24: =Filling_Pressure_in_bar -> 150 | I24: =User_SPM -> 20 | J24: =Surrounding_temperature_in_C° -> 20 | K24: 77 | L24: 25 | P24: =0.8*(75*(I24/((IF(F24=10,26834,(IF(F24=15,28528,(IF(F24=25,30815,(IF(F24=38,32827,(IF(F24=50,34215,(IF(F24=63,35431,(IF(F24=80,36732,0))))))))))))))*G24^-1.65))*(H24/185)^1.4)+J24 ->  | Q24: =P24+10 ->  | S24: =Q24 ->  | V24: =5/9*(K24-32) -> 25 | W24: =P24+V24 ->  | Y24: =9/5*W24+32 ->  | AE24: =IF(Q24>80,"High temp. Please contact your distributor for advice",IF(H24>200,"Too high charging pressure!","")) ->  | AG24: 1 | AH24: Värden från Avdo. 0,8 för att korrespondera mot graf i broschyren där hundra grader tillåts | AN24: 32 | AO24: 42
A25: =CONCATENATE("CX"," ",D25) -> CX 1000 | C25: 1000 | D25: 1000 | F25: =Product_stroke_length_mm -> 7 | G25: =Used_stroke_for_calculation -> 5 | H25: =Filling_Pressure_in_bar -> 150 | I25: =User_SPM -> 20 | J25: =Surrounding_temperature_in_C° -> 20 | K25: 77 | L25: 25 | P25: =0.8*(75*(I25/((IF(F25=10,110943,(IF(F25=15,120314,(IF(F25=25,133256,(IF(F25=38,144895,(IF(F25=50,153071,(IF(F25=63,160312,(IF(F25=80,168157,0))))))))))))))*G25^-1.9))*(H25/120)^1.4)+J25 ->  | Q25: =P25+10 ->  | S25: =Q25 ->  | V25: 25 | AE25: =IF(Q25>80,"High temp. Please contact your distributor for advice",IF(H25>200,"Too high charging pressure!","")) ->  | AG25: 1 | AH25: Värden från Avdo. 0,8 för att korrespondera mot graf i broschyren där hundra grader tillåts | AN25: 32 | AO25: 42
A26: CX 1900 | C26: 1900 | D26: 1900 | F26: =Product_stroke_length_mm -> 7 | G26: =Used_stroke_for_calculation -> 5 | H26: =Filling_Pressure_in_bar -> 150 | I26: =User_SPM -> 20 | J26: =Surrounding_temperature_in_C° -> 20 | K26: 77 | L26: 25 | P26: =0.8*(75*(I26/((IF(F26=10,201684,(IF(F26=15,223653,(IF(F26=25,254769,(IF(F26=38,283476,(IF(F26=50,304025,(IF(F26=63,322480,(IF(F26=80,342736,0))))))))))))))*G26^-2.25))*(H26/165)^1.4)+J26 ->  | Q26: =P26+10 ->  | S26: =Q26 ->  | V26: 25 | AE26: =IF(Q26>80,"High temp. Please contact your distributor for advice",IF(H26>200,"Too high charging pressure!","")) ->  | AG26: 1 | AH26: Värden från Avdo. 0,8 för att korrespondera mot graf i broschyren där hundra grader tillåts | AN26: 34 | AO26: 44
C29: T2L- | D29: K | F29: Strokelength | G29: Utilized | H29: Fill pressure | I29: Frequency | J29: Env./Tool | K29: Env./Tool | L29: Env./Tool | P29: Estimated running | R29: =P29 -> Estimated running | V29: F° env./tool | AB29: =P29 -> Estimated running | AG29: 1
G30: strokelength | J30: temperature | K30: temperature | L30: temperature | M30: Fjäderfaktor | N30: Tryckfaktor | O30: Slagfaktor | P30: temperature between: | R30: temperature between: | V30: temp. | AB30: =P30 -> temperature between: | AG30: 1
C31: Spring Size | D31: Spring Size | G31: [mm] | H31: [Bar] | I31: [spm] | J31: [°C] | K31: [°F] | L31: [°C] | M31: K1 | N31: Kp | O31: Ks | P31: [°C] | Q31: [°C] | R31: [°C] | S31: =Q31 -> [°C] | T31: P som [°F] | U31: Q som [°F] | V31: to C° | W31: N + T | X31: U + 10°C | Y31: U to F° | Z31: V to F° | AA31: [°F] | AB31: [°F] | AC31: [°C] | AD31: [°C] | AG31: 1
A32: K 500 | C32: 500 | D32: K500 | F32: =Product_stroke_length_mm -> 7 | G32: =Used_stroke_for_calculation -> 5 | H32: =Filling_Pressure_in_bar -> 150 | I32: =User_SPM -> 20 | J32: =Surrounding_temperature_in_C° -> 20 | K32: 77 | L32: 25 | M32: =0.00000157*F32^2-0.00026*F32+0.0139 -> 0.01215693 | N32: =0.2*(H32/150)^2+0.3*(H32/150)+0.5 -> 1 | O32: =0.1554*EXP(1.7*(G32/F32))+0.15 -> 0.6733697285 | P32: =F32*I32*M32*N32*O32+J32 -> 21.14605521 | Q32: =P32+10 -> 31.14605521 | R32: 21.14605521 | S32: =Q32 -> 31.14605521 | T32: 70.06289938 | U32: 88.06289938 | V32: 25 | W32: 46.14605521 | X32: 56.14605521 | Y32: 115.0628994 | Z32: 133.0628994 | AA32: 115.0628994 | AB32: 133.0628994 | AC32: 46.14605521 | AD32: 56.14605521 | AE32: =IF(Q32>80,"High temp. Please contact your distributor for advice",IF(H32>150,"Too high charging pressure!","")) ->  | AG32: 1 | AH32: Samma värden som KS idag | AN32: 28 | AO32: 38
A33: K 750 | C33: 750 | D33: K750 | F33: =Product_stroke_length_mm -> 7 | G33: =Used_stroke_for_calculation -> 5 | H33: =Filling_Pressure_in_bar -> 150 | I33: =User_SPM -> 20 | J33: =Surrounding_temperature_in_C° -> 20 | K33: 77 | L33: 25 | M33: =0.0000020455*F33^2-0.00037599*F33+0.02 -> 0.0174682995 | N33: =0.3*(H33/150)^2+0.3*(H33/150)+0.4 -> 1 | O33: =0.1564*EXP(1.75*(G33/F33))+0.1 -> 0.6458896385 | P33: =F33*I33*M33*N33*O33+J33 -> 21.57956311 | Q33: =P33+10 -> 31.57956311 | R33: 21.57956311 | S33: =Q33 -> 31.57956311 | T33: 70.8432136 | U33: 88.8432136 | V33: 25 | W33: 46.57956311 | X33: 56.57956311 | Y33: 115.8432136 | Z33: 133.8432136 | AA33: 115.8432136 | AB33: 133.8432136 | AC33: 46.57956311 | AD33: 56.57956311 | AE33: =IF(Q33>80,"High temp. Please contact your distributor for advice",IF(H33>150,"Too high charging pressure!","")) ->  | AG33: 1 | AH33: Samma värden som KS idag | AN33: 27 | AO33: 37
A34: K 1500 | C34: 1500 | D34: K1500 | F34: =Product_stroke_length_mm -> 7 | G34: =Used_stroke_for_calculation -> 5 | H34: =Filling_Pressure_in_bar -> 150 | I34: =User_SPM -> 20 | J34: =Surrounding_temperature_in_C° -> 20 | K34: 77 | L34: 25 | M34: =-0.00000035*F34^2+0.000016*F34+0.0097 -> 0.00979485 | N34: =0.65*(H34/150)^2+0.06*(H34/150)+0.29 -> 1 | O34: =0.0699*EXP(2.6*(G34/F34))+0.059 -> 0.5067381193 | P34: =F34*I34*M34*N34*O34+J34 -> 20.69487934 | Q34: =P34+10 -> 30.69487934 | R34: 20.69487934 | S34: =Q34 -> 30.69487934 | T34: 69.25078281 | U34: 87.25078281 | V34: 25 | W34: 45.69487934 | X34: 55.69487934 | Y34: 114.2507828 | Z34: 132.2507828 | AA34: 114.2507828 | AB34: 132.2507828 | AC34: 45.69487934 | AD34: 55.69487934 | AE34: =IF(Q34>80,"High temp. Please contact your distributor for advice",IF(H34>150,"Too high charging pressure!","")) ->  | AG34: 1 | AH34: Samma värden som idag | AN34: 31 | AO34: 41
C37: T2 LCF | D37: LCF | F37: Strokelength | G37: Utilized | H37: Fill pressure | I37: Frequency | J37: Env./Tool | K37: Env./Tool | L37: Env./Tool | P37: Estimated running | R37: =P37 -> Estimated running | V37: F° env./tool | AB37: =P37 -> Estimated running | AG37: 2
G38: strokelength | J38: temperature | K38: temperature | L38: temperature | M38: Fjäderfaktor | N38: Tryckfaktor | O38: Slagfaktor | P38: temperature between: | R38: temperature between: | V38: temp. | AB38: =P38 -> temperature between: | AG38: 2
C39: Spring Size | D39: Spring Size | G39: [mm] | H39: [Bar] | I39: [spm] | J39: [°C] | K39: [°F] | L39: [°C] | M39: K1 | N39: Kp | O39: Ks | P39: [°C] | Q39: [°C] | R39: [°C] | S39: [°C] | T39: P som [°F] | U39: Q som [°F] | V39: to C° | W39: N + T | X39: U + 10°C | Y39: U to F° | Z39: V to F° | AA39: [°F] | AB39: [°F] | AC39: [°C] | AD39: [°C] | AG39: 2
A40: =CONCATENATE("LCF"," ",D40) -> LCF 750 | C40: 750 | D40: 750 | F40: =Product_stroke_length_mm -> 7 | G40: =Used_stroke_for_calculation -> 5 | H40: =Filling_Pressure_in_bar -> 150 | I40: =User_SPM -> 20 | J40: =Surrounding_temperature_in_C° -> 20 | K40: 77 | L40: 25 | M40: =-0.0000002*F40^2+0.00005*F40+0.0132 -> 0.0135402 | N40: =0.88*(H40/150)+0.12 -> 1 | O40: =0.3551*(G40/F40)^2+0.5449*(G40/F40)+0.1 -> 0.6703877551 | P40: =F40*I40*M40*N40*O40+J40-2 -> 19.2708058 | Q40: =P40+10 -> 29.2708058 | R40: 19.2708058 | S40: 29.2708058 | T40: 66.68745044 | U40: 84.68745044 | V40: 25 | W40: 44.2708058 | X40: 54.2708058 | Y40: 111.6874504 | Z40: 129.6874504 | AA40: 111.6874504 | AB40: 129.6874504 | AC40: 44.2708058 | AD40: 54.2708058 | AE40: =IF(Q40>80,"High temp. Please contact your distributor for advice",IF(H40>150,"Too high charging pressure!","")) ->  | AG40: 2 | AH40: Samma värden som TU | AN40: 37 | AO40: 47
A41: =CONCATENATE("LCF"," ",D41) -> LCF 1500 | C41: 1500 | D41: 1500 | F41: =Product_stroke_length_mm -> 7 | G41: =Used_stroke_for_calculation -> 5 | H41: =Filling_Pressure_in_bar -> 150 | I41: =User_SPM -> 20 | J41: =Surrounding_temperature_in_C° -> 20 | K41: 77 | L41: 25 | M41: =-0.00000015*F41^2+0.000027*F41+0.0145 -> 0.01468165 | N41: =0.88*(H41/150)+0.12 -> 1 | O41: =0.82*(G41/F41)^2+0.075*(G41/F41)+0.1 -> 0.5719387755 | P41: =F41*I41*M41*N41*O41+J41 -> 21.17558069 | Q41: =P41+10 -> 31.17558069 | R41: 21.17558069 | S41: 31.17558069 | T41: 70.11604524 | U41: 88.11604524 | V41: 25 | W41: 46.17558069 | X41: 56.17558069 | Y41: 115.1160452 | Z41: 133.1160452 | AA41: 115.1160452 | AB41: 133.1160452 | AC41: 46.17558069 | AD41: 56.17558069 | AE41: =IF(Q41>80,"High temp. Please contact your distributor for advice",IF(H41>150,"Too high charging pressure!","")) ->  | AG41: 2 | AH41: Samma värden som TU | AN41: 38 | AO41: 48
A42: LCF 3000 | C42: 3000 | D42: 3000 | F42: =Product_stroke_length_mm -> 7 | G42: =Used_stroke_for_calculation -> 5 | H42: =Filling_Pressure_in_bar -> 150 | I42: =User_SPM -> 20 | J42: =Surrounding_temperature_in_C° -> 20 | K42: 77 | L42: 25 | M42: =0.00000005*F42^2-0.000034*F42+0.0186 -> 0.01836445 | N42: =0.75*(H42/150)+0.25 -> 1 | O42: =0.82*(G42/F42)^2+0.075*(G42/F42)+0.1 -> 0.5719387755 | P42: =F42*I42*M42*N42*O42+J42 -> 21.47046775 | Q42: =P42+10 -> 31.47046775 | R42: 21.47046775 | S42: 31.47046775 | T42: 70.64684194 | U42: 88.64684194 | V42: 25 | W42: 46.47046775 | X42: 56.47046775 | Y42: 115.6468419 | Z42: 133.6468419 | AA42: 115.6468419 | AB42: 133.6468419 | AC42: 46.47046775 | AD42: 56.47046775 | AE42: =IF(Q42>80,"High temp. Please contact your distributor for advice",IF(H42>150,"Too high charging pressure!","")) ->  | AG42: 2 | AH42: Samma värden som TU | AN42: 38 | AO42: 48
A43: LCF 5000 | C43: 5000 | D43: 5000 | F43: =Product_stroke_length_mm -> 7 | G43: =Used_stroke_for_calculation -> 5 | H43: =Filling_Pressure_in_bar -> 150 | I43: =User_SPM -> 20 | J43: =Surrounding_temperature_in_C° -> 20 | K43: 77 | L43: 25 | M43: =-0.000003*F43+0.0155 -> 0.015479 | N43: =0.89*(H43/150)+0.11 -> 1 | O43: =0.82*(G43/F43)^2+0.075*(G43/F43)+0.1 -> 0.5719387755 | P43: =F43*I43*M43*N43*O43+J43 -> 21.23942564 | Q43: =P43+10 -> 31.23942564 | R43: 21.23942564 | S43: 31.23942564 | T43: 70.23096616 | U43: 88.23096616 | V43: 25 | W43: 46.23942564 | X43: 56.23942564 | Y43: 115.2309662 | Z43: 133.2309662 | AA43: 115.2309662 | AB43: 133.2309662 | AC43: 46.23942564 | AD43: 56.23942564 | AE43: =IF(Q43>80,"High temp. Please contact your distributor for advice",IF(H43>150,"Too high charging pressure!","")) ->  | AG43: 2 | AH43: Samma värden som TU | AN43: 38 | AO43: 48
A44: =CONCATENATE("LCF"," ",D44) -> LCF 7500 | C44: 7500 | D44: 7500 | F44: =Product_stroke_length_mm -> 7 | G44: =Used_stroke_for_calculation -> 5 | H44: =Filling_Pressure_in_bar -> 150 | I44: =User_SPM -> 20 | J44: =Surrounding_temperature_in_C° -> 20 | K44: 77 | L44: 25 | M44: =-0.000018*F44+0.025 -> 0.024874 | N44: =0.85*(H44/150)+0.15 -> 1 | O44: =0.82*(G44/F44)^2+0.075*(G44/F44)+0.1 -> 0.5719387755 | P44: =F44*I44*M44*N44*O44+J44 -> 21.99169671 | Q44: =P44+10 -> 31.99169671 | R44: 21.99169671 | S44: 31.99169671 | T44: 71.58505409 | U44: 89.58505409 | V44: 25 | W44: 46.99169671 | X44: 56.99169671 | Y44: 116.5850541 | Z44: 134.5850541 | AA44: 116.5850541 | AB44: 134.5850541 | AC44: 46.99169671 | AD44: 56.99169671 | AE44: =IF(Q44>80,"High temp. Please contact your distributor for advice",IF(H44>150,"Too high charging pressure!","")) ->  | AG44: 2 | AH44: Samma värden som TU | AN44: 44 | AO44: 54
C47: T2-180 | D47: M2 | F47: Strokelength | G47: Utilized | H47: Fill pressure | I47: Frequency | J47: Env./Tool | K47: Env./Tool | L47: Env./Tool | P47: Estimated running | R47: =P47 -> Estimated running | V47: F° env./tool | AB47: =P47 -> Estimated running | AG47: 2
G48: strokelength | J48: temperature | K48: temperature | L48: temperature | N48: Tryck-och | P48: temperature between: | R48: =P48 -> temperature between: | V48: temp. | AB48: =P48 -> temperature between: | AG48: 2
C49: Spring Size | D49: Spring Size | G49: [mm] | H49: [Bar] | I49: [spm] | J49: [°C] | K49: [°F] | L49: [°C] | M49: Slaglängdsfaktor | N49: SPM-faktor | O49: %-faktor | P49: [°C] | Q49: [°C] | R49: =P49 -> [°C] | S49: =Q49 -> [°C] | T49: P som [°F] | U49: Q som [°F] | V49: to C° | W49: N + T | X49: U + 10°C | Y49: U to F° | Z49: V to F° | AA49: [°F] | AB49: [°F] | AC49: [°C] | AD49: [°C] | AG49: 2
A50: M2 180 | C50: T2-180 | D50: M2 | F50: =Product_stroke_length_mm -> 7 | G50: =Used_stroke_for_calculation -> 5 | H50: =Filling_Pressure_in_bar -> 150 | I50: =User_SPM -> 20 | J50: =Surrounding_temperature_in_C° -> 20 | K50: 77 | L50: 25 | M50: =-0.000620370414004661*F50^2+0.268331957994321*F50+0.785664791280596 -> 2.633590347 | N50: =(-0.000399199129692736*H50^2+0.164059801283639*H50+1.91164754348779)*(0.00709866427117971*I50^2-0.480884167541125*I50+16.1629135875712) -> 164.5947785 | O50: =0.00174145400538405*(100*G50/F50)^2-0.0253949962177752*(100*G50/F50)+6.92530631030808 -> 13.99634742 | P50: =((M50*N50*O50)*0.000200885124608251+3.84189422736609)+J50 -> 25.0606783 | Q50: =P50+10 -> 35.0606783 | R50: =P50 -> 25.0606783 | S50: =Q50 -> 35.0606783 | T50: 77.10922093 | U50: 95.10922093 | V50: 25 | W50: 50.0606783 | X50: 60.0606783 | Y50: 122.1092209 | Z50: 140.1092209 | AA50: 122.1092209 | AB50: 140.1092209 | AC50: 50.0606783 | AD50: 60.0606783 | AE50: =IF(Q50>80,"High temp. Please contact your distributor for advice",IF(H50>180,"Too high charging pressure!","")) ->  | AG50: 2 | AH50: Nya tester | AN50: 56 | AO50: 66
C53: T2-200 | D53: MC3 | F53: Strokelength | G53: Utilized | H53: Fill pressure | I53: Frequency | J53: Env./Tool | K53: Env./Tool | L53: Env./Tool | P53: Estimated running | R53: =P53 -> Estimated running | V53: F° env./tool | AB53: =P53 -> Estimated running | AG53: 2
G54: strokelength | J54: temperature | K54: temperature | L54: temperature | N54: Tryck-och | P54: temperature between: | R54: =P54 -> temperature between: | V54: temp. | AB54: =P54 -> temperature between: | AG54: 2
C55: Spring Size | D55: Spring Size | G55: [mm] | H55: [Bar] | I55: [spm] | J55: [°C] | K55: [°F] | L55: [°C] | M55: Slaglängdsfaktor | N55: SPM-faktor | O55: %-faktor | P55: [°C] | Q55: [°C] | R55: =P55 -> [°C] | S55: =Q55 -> [°C] | T55: P som [°F] | U55: Q som [°F] | V55: to C° | W55: N + T | X55: U + 10°C | Y55: U to F° | Z55: V to F° | AA55: [°F] | AB55: [°F] | AC55: [°C] | AD55: [°C] | AG55: 2
A56: MC3 200 | C56: T2-200 | D56: MC3 | F56: =Product_stroke_length_mm -> 7 | G56: =Used_stroke_for_calculation -> 5 | H56: =Filling_Pressure_in_bar -> 150 | I56: =User_SPM -> 20 | J56: =Surrounding_temperature_in_C° -> 20 | K56: 77 | L56: 25 | M56: =-0.000620370414004661*F56^2+0.268331957994321*F56+0.785664791280596 -> 2.633590347 | N56: =(-0.000399199129692736*H56^2+0.164059801283639*H56+1.91164754348779)*(0.00709866427117971*I56^2-0.480884167541125*I56+16.1629135875712) -> 164.5947785 | O56: =0.00174145400538405*(100*G56/F56)^2-0.0253949962177752*(100*G56/F56)+6.92530631030808 -> 13.99634742 | P56: =(((M56*N56*O56)*0.000200885124608251+3.84189422736609)*0.9)+J56 -> 24.55461047 | Q56: =P56+10 -> 34.55461047 | R56: =P56 -> 24.55461047 | S56: =Q56 -> 34.55461047 | T56: 76.19829884 | U56: 94.19829884 | V56: 25 | W56: 49.55461047 | X56: 59.55461047 | Y56: 121.1982988 | Z56: 139.1982988 | AA56: 121.1982988 | AB56: 139.1982988 | AC56: 49.55461047 | AD56: 59.55461047 | AE56: =IF(Q56>80,"High temp. Please contact your distributor for advice",IF(H56>180,"Too high charging pressure!","")) ->  | AG56: 2 | AH56: Använd samma som M2 | AN56: 51 | AO56: 61
C59: T3- | D59: Power Line X | F59: Strokelength | G59: Utilized | H59: Fill pressure | I59: Frequency | J59: Env./Tool | K59: Env./Tool | L59: Env./Tool | P59: Estimated running | R59: =P59 -> Estimated running | V59: F° env./tool | AB59: =P59 -> Estimated running | AG59: 1
G60: strokelength | J60: temperature | K60: temperature | L60: temperature | M60: Fjäderfaktor | N60: Tryckfaktor | O60: Slagfaktor | P60: temperature between: | R60: temperature between: | V60: temp. | AB60: =P60 -> temperature between: | AG60: 1
C61: Spring Size | D61: Spring Size | G61: [mm] | H61: [Bar] | I61: [spm] | J61: [°C] | K61: [°F] | L61: [°C] | M61: K1 | N61: Kp | O61: Ks | P61: [°C] | Q61: [°C] | R61: [°C] | S61: [°C] | T61: P som [°F] | U61: Q som [°F] | V61: to C° | W61: N + T | X61: U + 10°C | Y61: U to F° | Z61: V to F° | AA61: [°F] | AB61: [°F] | AC61: [°C] | AD61: [°C] | AG61: 1
A62: =CONCATENATE("X"," ",D62) -> X 170 | C62: 170 | D62: 170 | F62: =Product_stroke_length_mm -> 7 | G62: =Used_stroke_for_calculation -> 5 | H62: =Filling_Pressure_in_bar -> 150 | I62: =User_SPM -> 20 | J62: =Surrounding_temperature_in_C° -> 20 | K62: 77 | L62: 25 | M62: =0.0125 -> 0.0125 | N62: =0.88*(H62/180)+0.12 -> 0.8533333333 | O62: =(G62/F62)^1.15 -> 0.6791297552 | P62: =F62*I62*M62*N62*O62+J62 -> 21.0141671 | Q62: =P62+10 -> 31.0141671 | R62: 21.0141671 | S62: 31.0141671 | T62: 69.82550078 | U62: 87.82550078 | V62: 25 | W62: 46.0141671 | X62: 56.0141671 | Y62: 114.8255008 | Z62: 132.8255008 | AA62: 114.8255008 | AB62: 132.8255008 | AC62: 46.0141671 | AD62: 56.0141671 | AE62: =IF(Q62>80,"High temp. Please contact your distributor for advice",IF(H62>180,"Too high charging pressure!","")) ->  | AG62: 1 | AH62: Samma värden som idag | AN62: 34 | AO62: 44
A63: =CONCATENATE("X"," ",D63) -> X 320 | C63: 320 | D63: 320 | F63: 7 | G63: 5 | H63: 150 | I63: 20 | J63: 20 | K63: 77 | L63: 25 | M63: =-0.0000681414497203971*F63+0.023229141 -> 0.02275215085 | N63: =0.76*(H63/180)+0.24 -> 0.8733333333 | O63: 0.6791297552 | P63: =F63*I63*M63*N63*O63+J63-2 -> 19.88922329 | Q63: =P63+10 -> 29.88922329 | R63: 19.88922329 | S63: 29.88922329 | T63: 67.80060191 | U63: 85.80060191 | V63: 25 | W63: 44.88922329 | X63: 54.88922329 | Y63: 112.8006019 | Z63: 130.8006019 | AA63: 112.8006019 | AB63: 130.8006019 | AC63: 44.88922329 | AD63: 54.88922329 | AE63: =IF(Q63>80,"High temp. Please contact your distributor for advice",IF(H63>180,"Too high charging pressure!","")) ->  | AG63: 1 | AH63: Samma värden som idag | AN63: 36 | AO63: 46
A64: X 350 | C64: 350 | D64: 350 | F64: 7 | G64: 5 | H64: 150 | I64: 20 | J64: 20 | K64: 77 | L64: 25 | M64: =-0.0000557409944506719*F64+0.012735192 -> 0.01234500504 | N64: =0.78*(H64/180)+0.22 -> 0.87 | O64: 0.6791297552 | P64: =F64*I64*M64*N64*O64+J64 -> 21.02115418 | Q64: 31.02115418 | R64: 21.02115418 | S64: 31.02115418 | T64: 69.83807752 | U64: 87.83807752 | V64: 25 | W64: 46.02115418 | X64: 56.02115418 | Y64: 114.8380775 | Z64: 132.8380775 | AA64: 114.8380775 | AB64: 132.8380775 | AC64: 46.02115418 | AD64: 56.02115418 | AE64: =IF(Q64>80,"High temp. Please contact your distributor for advice",IF(H64>180,"Too high charging pressure!","")) ->  | AG64: 1 | AH64: Samma värden som idag | AN64: 31 | AO64: 41
A65: X 500 | C65: 500 | D65: 500 | F65: 7 | G65: 5 | H65: 150 | I65: 20 | J65: 20 | K65: 77 | L65: 25 | M65: =-0.0000286323189548996*F65+0.01030877 -> 0.01010834377 | N65: =0.69*(H65/150)+0.31 -> 1 | O65: 0.6791297552 | P65: 20.96108278 | Q65: 30.96108278 | R65: 20.96108278 | S65: 30.96108278 | T65: 69.72994901 | U65: 87.72994901 | V65: 25 | W65: 45.96108278 | X65: 55.96108278 | Y65: 114.729949 | Z65: 132.729949 | AA65: 114.729949 | AB65: 132.729949 | AC65: 45.96108278 | AD65: 55.96108278 | AE65: =IF(Q65>80,"High temp. Please contact your distributor for advice",IF(H65>150,"Too high charging pressure!","")) ->  | AG65: 1 | AH65: Samma värden som idag | AN65: 32 | AO65: 42
A66: X 750 | C66: 750 | D66: 750 | F66: 7 | G66: 5 | H66: 150 | I66: 20 | J66: 20 | K66: 77 | L66: 25 | M66: =-5.21759415768633E-06*F66+0.011064444 -> 0.01102792084 | N66: =0.7*(H66/150)+0.3 -> 1 | O66: 0.6791297552 | P66: 21.04851449 | Q66: 31.04851449 | R66: 21.04851449 | S66: 31.04851449 | T66: 69.88732607 | U66: 87.88732607 | V66: 25 | W66: 46.04851449 | X66: 56.04851449 | Y66: 114.8873261 | Z66: 132.8873261 | AA66: 114.8873261 | AB66: 132.8873261 | AC66: 46.04851449 | AD66: 56.04851449 | AG66: 1 | AH66: Samma värden som idag | AN66: 34 | AO66: 44
A67: X 1000 | C67: 1000 | D67: 1000 | F67: 7 | G67: 5 | H67: 150 | I67: 20 | J67: 20 | K67: 77 | L67: 25 | M67: =-3.37582158982632E-06*F67+0.012213964 -> 0.01219033325 | N67: =0.79*(H67/150)+0.21 -> 1 | O67: 0.6791297552 | P67: 21.15903452 | Q67: 31.15903452 | R67: 21.15903452 | S67: 31.15903452 | T67: 70.08626214 | U67: 88.08626214 | V67: 25 | W67: 46.15903452 | X67: 56.15903452 | Y67: 115.0862621 | Z67: 133.0862621 | AA67: 115.0862621 | AB67: 133.0862621 | AC67: 46.15903452 | AD67: 56.15903452 | AG67: 1 | AH67: Samma värden som idag | AN67: 36 | AO67: 46
A68: X 1500 | C68: 1500 | D68: 1500 | F68: 7 | G68: 5 | H68: 150 | I68: 20 | J68: 20 | K68: 77 | L68: 25 | M68: =-0.0000115814333465656*F68+0.0161709 -> 0.01608982997 | N68: =0.84*(H68/150)+0.16 -> 1 | O68: 0.6791297552 | P68: 21.52979152 | Q68: 31.52979152 | R68: 21.52979152 | S68: 31.52979152 | T68: 70.75362474 | U68: 88.75362474 | V68: 25 | W68: 46.52979152 | X68: 56.52979152 | Y68: 115.7536247 | Z68: 133.7536247 | AA68: 115.7536247 | AB68: 133.7536247 | AC68: 46.52979152 | AD68: 56.52979152 | AG68: 1 | AH68: Samma värden som idag | AN68: 38 | AO68: 48
A69: X 2400 | C69: 2400 | D69: 2400 | F69: 7 | G69: 5 | H69: 150 | I69: 20 | J69: 20 | K69: 77 | L69: 25 | M69: 0.01582 | N69: =0.87*(H69/150)+0.13 -> 1 | O69: 0.6791297552 | P69: 21.50413658 | Q69: 31.50413658 | R69: 21.50413658 | S69: 31.50413658 | T69: 70.70744585 | U69: 88.70744585 | V69: 25 | W69: 46.50413658 | X69: 56.50413658 | Y69: 115.7074458 | Z69: 133.7074458 | AA69: 115.7074458 | AB69: 133.7074458 | AC69: 46.50413658 | AD69: 56.50413658 | AG69: 1 | AH69: Samma värden som idag | AN69: 39 | AO69: 49
A70: X 4200 | C70: 4200 | D70: 4200 | F70: 7 | G70: 5 | H70: 150 | I70: 20 | J70: 20 | K70: 77 | L70: 25 | M70: 0.01369 | N70: =0.8*(H70/150)+0.2 -> 1 | O70: 0.6791297552 | P70: 21.30162009 | Q70: 31.30162009 | R70: 21.30162009 | S70: 31.30162009 | T70: 70.34291616 | U70: 88.34291616 | V70: 25 | W70: 46.30162009 | X70: 56.30162009 | Y70: 115.3429162 | Z70: 133.3429162 | AA70: 115.3429162 | AB70: 133.3429162 | AC70: 46.30162009 | AD70: 56.30162009 | AG70: 1 | AH70: Samma värden som idag | AN70: 37 | AO70: 47
A71: X 6600 | C71: 6600 | D71: 6600 | F71: 7 | G71: 5 | H71: 150 | I71: 20 | J71: 20 | K71: 77 | L71: 25 | M71: 0.01339 | N71: =0.74*(H71/150)+0.26 -> 1 | O71: 0.6791297552 | P71: 21.27309664 | Q71: 31.27309664 | R71: 21.27309664 | S71: 31.27309664 | T71: 70.29157395 | U71: 88.29157395 | V71: 25 | W71: 46.27309664 | X71: 56.27309664 | Y71: 115.291574 | Z71: 133.291574 | AA71: 115.291574 | AB71: 133.291574 | AC71: 46.27309664 | AD71: 56.27309664 | AG71: 1 | AH71: Samma värden som idag | AN71: 37 | AO71: 47
A72: X 9500 | C72: 9500 | D72: 9500 | F72: 7 | G72: 5 | H72: 150 | I72: 20 | J72: 20 | K72: 77 | L72: 25 | M72: =-0.0000191040326040326*F72+0.011165147 -> 0.01103141877 | N72: =0.77*(H72/150)+0.23 -> 1 | O72: 0.6791297552 | P72: 21.04884706 | Q72: 31.04884706 | R72: 21.04884706 | S72: 31.04884706 | T72: 69.88792471 | U72: 87.88792471 | V72: 25 | W72: 46.04884706 | X72: 56.04884706 | Y72: 114.8879247 | Z72: 132.8879247 | AA72: 114.8879247 | AB72: 132.8879247 | AC72: 46.04884706 | AD72: 56.04884706 | AG72: 1 | AH72: Samma värden som idag | AN72: 33 | AO72: 43
A73: X 20000 | C73: 20000 | D73: 20000 | F73: 7 | G73: 5 | H73: 150 | I73: 20 | J73: 20 | K73: 77 | L73: 25 | M73: =0.0000242305296039432*H73*F73*(100*G73/F73) -> 1.81728972 | N73: =0.000200697723517146*I73*F73*G73/F73*100*0.0121957161724547*F73*I73 -> 3.426713461 | O73: =0.116667676767677*H73 -> 17.50015152 | P73: =J73+(O73*N73*M73*0.000233655270520329+4.89453401490754) -> 24.91999759 | Q73: =P73+10 -> 34.91999759 | R73: 24.91999759 | S73: 34.91999759 | T73: 76.85599566 | U73: 94.85599566 | V73: 25 | W73: 49.91999759 | X73: 59.91999759 | Y73: 121.8559957 | Z73: 139.8559957 | AA73: 121.8559957 | AB73: 139.8559957 | AC73: 49.91999759 | AD73: 59.91999759 | AG73: 2 | AH73: Nya tester | AN73: 32 | AO73: 42
C76: T3T- | D76: Power Line XG | F76: Strokelength | G76: Utilized | H76: Fill pressure | I76: Frequency | J76: Env./Tool | K76: Env./Tool | L76: Env./Tool | P76: Estimated running | R76: =P76 -> Estimated running | V76: F° env./tool | AB76: =P76 -> Estimated running | AG76: 1
G77: strokelength | J77: temperature | K77: temperature | L77: temperature | M77: Fjäderfaktor | N77: Tryckfaktor | O77: Slagfaktor | P77: temperature between: | R77: temperature between: | V77: temp. | AB77: =P77 -> temperature between: | AG77: 1
C78: Spring Size | D78: Spring Size | G78: [mm] | H78: [Bar] | I78: [spm] | J78: [°C] | K78: [°F] | L78: [°C] | M78: K1 | N78: Kp | O78: Ks | P78: [°C] | Q78: [°C] | R78: [°C] | S78: [°C] | T78: P som [°F] | U78: Q som [°F] | V78: to C° | W78: N + T | X78: U + 10°C | Y78: U to F° | Z78: V to F° | AA78: [°F] | AB78: [°F] | AC78: [°C] | AD78: [°C] | AG78: 1
A79: =CONCATENATE("XG"," ",D79) -> XG 350 | C79: 350 | D79: 350 | F79: =Product_stroke_length_mm -> 7 | G79: =Used_stroke_for_calculation -> 5 | H79: =Filling_Pressure_in_bar -> 150 | I79: =User_SPM -> 20 | J79: =Surrounding_temperature_in_C° -> 20 | K79: 77 | L79: =5/9*(K79-32) -> 25 | M79: =-0.0000557409944506719*F79+0.012735192 -> 0.01234500504 | N79: =0.78*(H79/180)+0.22 -> 0.87 | O79: =(G79/F79)^1.15 -> 0.6791297552 | P79: =F79*I79*M79*N79*O79+J79 -> 21.02115418 | Q79: =P79+10 -> 31.02115418 | R79: 21.02115418 | S79: 31.02115418 | T79: =9/5*R79+32 -> 69.83807752 | U79: 87.83807752 | V79: 25 | W79: 46.02115418 | X79: =W79+10 -> 56.02115418 | Y79: 114.8380775 | Z79: 132.8380775 | AA79: =Y79 -> 114.8380775 | AB79: 132.8380775 | AC79: =5/9*(AA79-32) -> 46.02115418 | AD79: 56.02115418 | AE79: =IF(Q79>80,"High temp. Please contact your distributor for advice",IF(H79>180,"Too high charging pressure!","")) ->  | AF79: =AE79 ->  | AG79: 1 | AH79: Samma värden som X 350 | AN79: 31 | AO79: 41
A80: =CONCATENATE("XG"," ",D80) -> XG 500 | C80: 500 | D80: 500 | F80: 7 | G80: 5 | H80: 150 | I80: 20 | J80: 20 | K80: 77 | L80: 25 | M80: =-0.0000286323189548996*F80+0.01030877 -> 0.01010834377 | N80: =0.69*(H80/150)+0.31 -> 1 | O80: 0.6791297552 | P80: 20.96108278 | Q80: 30.96108278 | R80: 20.96108278 | S80: 30.96108278 | T80: 69.72994901 | U80: 87.72994901 | V80: 25 | W80: 45.96108278 | X80: 55.96108278 | Y80: 114.729949 | Z80: 132.729949 | AA80: 114.729949 | AB80: 132.729949 | AC80: 45.96108278 | AD80: 55.96108278 | AE80: =IF(Q80>80,"High temp. Please contact your distributor for advice",IF(H80>150,"Too high charging pressure!","")) ->  | AG80: 1 | AH80: Samma värden som X 500 | AN80: 32 | AO80: 42
A81: XG 750 | C81: 750 | D81: 750 | F81: 7 | G81: 5 | H81: 150 | I81: 20 | J81: 20 | K81: 77 | L81: 25 | M81: =-5.21759415768633E-06*F81+0.011064444 -> 0.01102792084 | N81: =0.7*(H81/150)+0.3 -> 1 | O81: 0.6791297552 | P81: 21.04851449 | Q81: 31.04851449 | R81: 21.04851449 | S81: 31.04851449 | T81: 69.88732607 | U81: 87.88732607 | V81: 25 | W81: 46.04851449 | X81: 56.04851449 | Y81: 114.8873261 | Z81: 132.8873261 | AA81: 114.8873261 | AB81: 132.8873261 | AC81: 46.04851449 | AD81: 56.04851449 | AG81: 1 | AH81: Samma värden som X 750 | AN81: 34 | AO81: 44
A82: XG 1000 | C82: 1000 | D82: 1000 | F82: 7 | G82: 5 | H82: 150 | I82: 20 | J82: 20 | K82: 77 | L82: 25 | M82: =-3.37582158982632E-06*F82+0.012213964 -> 0.01219033325 | N82: =0.79*(H82/150)+0.21 -> 1 | O82: 0.6791297552 | P82: 21.15903452 | Q82: 31.15903452 | R82: 21.15903452 | S82: 31.15903452 | T82: 70.08626214 | U82: 88.08626214 | V82: 25 | W82: 46.15903452 | X82: 56.15903452 | Y82: 115.0862621 | Z82: 133.0862621 | AA82: 115.0862621 | AB82: 133.0862621 | AC82: 46.15903452 | AD82: 56.15903452 | AG82: 1 | AH82: Samma värden som X 1000 | AN82: 36 | AO82: 46
A83: XG 1500 | C83: 1500 | D83: 1500 | F83: 7 | G83: 5 | H83: 150 | I83: 20 | J83: 20 | K83: 77 | L83: 25 | M83: =-0.0000115814333465656*F83+0.0161709 -> 0.01608982997 | N83: =0.84*(H83/150)+0.16 -> 1 | O83: 0.6791297552 | P83: 21.52979152 | Q83: 31.52979152 | R83: 21.52979152 | S83: 31.52979152 | T83: 70.75362474 | U83: 88.75362474 | V83: 25 | W83: 46.52979152 | X83: 56.52979152 | Y83: =9/5*W83+32 -> 115.7536247 | Z83: 133.7536247 | AA83: 115.7536247 | AB83: 133.7536247 | AC83: 46.52979152 | AD83: 56.52979152 | AG83: 1 | AH83: Samma värden som X 1500 | AN83: 38 | AO83: 48
A84: XG 2400 | C84: 2400 | D84: 2400 | F84: 7 | G84: 5 | H84: 150 | I84: 20 | J84: 20 | K84: 77 | L84: 25 | M84: 0.01582 | N84: =0.87*(H84/150)+0.13 -> 1 | O84: 0.6791297552 | P84: 21.50413658 | Q84: 31.50413658 | R84: 21.50413658 | S84: 31.50413658 | T84: 70.70744585 | U84: 88.70744585 | V84: 25 | W84: 46.50413658 | X84: 56.50413658 | Y84: 115.7074458 | Z84: 133.7074458 | AA84: 115.7074458 | AB84: 133.7074458 | AC84: 46.50413658 | AD84: 56.50413658 | AG84: 1 | AH84: Samma värden som X 2400 | AN84: 39 | AO84: 49
A85: XG 4200 | C85: 4200 | D85: 4200 | F85: 7 | G85: 5 | H85: 150 | I85: 20 | J85: 20 | K85: 77 | L85: 25 | M85: 0.01369 | N85: =0.8*(H85/150)+0.2 -> 1 | O85: 0.6791297552 | P85: 21.30162009 | Q85: 31.30162009 | R85: 21.30162009 | S85: 31.30162009 | T85: 70.34291616 | U85: 88.34291616 | V85: 25 | W85: 46.30162009 | X85: 56.30162009 | Y85: 115.3429162 | Z85: 133.3429162 | AA85: 115.3429162 | AB85: 133.3429162 | AC85: 46.30162009 | AD85: 56.30162009 | AG85: 1 | AH85: Samma värden som X 4200 | AN85: 37 | AO85: 47
A86: XG 6600 | C86: 6600 | D86: 6600 | F86: 7 | G86: 5 | H86: 150 | I86: 20 | J86: 20 | K86: 77 | L86: 25 | M86: 0.01339 | N86: =0.74*(H86/150)+0.26 -> 1 | O86: 0.6791297552 | P86: 21.27309664 | Q86: 31.27309664 | R86: 21.27309664 | S86: 31.27309664 | T86: 70.29157395 | U86: 88.29157395 | V86: 25 | W86: 46.27309664 | X86: 56.27309664 | Y86: 115.291574 | Z86: 133.291574 | AA86: 115.291574 | AB86: 133.291574 | AC86: 46.27309664 | AD86: 56.27309664 | AG86: 1 | AH86: Samma värden som X 6600 | AN86: 37 | AO86: 47
C87: 9500 | D87: finns ej | F87: 7 | G87: 5 | H87: 150 | I87: 20 | J87: 20 | K87: 77 | L87: 25 | M87: =-0.0000191040326040326*F87+0.011165147 -> 0.01103141877 | N87: =0.77*(H87/150)+0.23 -> 1 | O87: 0.6791297552 | P87: 21.04884706 | Q87: 31.04884706 | R87: 21.04884706 | S87: 31.04884706 | T87: 69.88792471 | U87: 87.88792471 | V87: 25 | W87: 46.04884706 | X87: 56.04884706 | Y87: 114.8879247 | Z87: 132.8879247 | AA87: 114.8879247 | AB87: 132.8879247 | AC87: 46.04884706 | AD87: 56.04884706 | AG87: 3 | AH87: Samma värden som X9500 | AN87: 33 | AO87: 43
C90: T2-50 | D90: R12 | F90: Strokelength | G90: Utilized | H90: Fill pressure | I90: Frequency | J90: Env./Tool | K90: Env./Tool | L90: Env./Tool | P90: Estimated running | V90: F° env./tool | AB90: =P90 -> Estimated running | AG90: 3
G91: strokelength | J91: temperature | K91: temperature | L91: temperature | N91: Tryck-och | P91: temperature between: | V91: temp. | AB91: =P91 -> temperature between: | AG91: 3
C92: Spring Size | D92: Spring Size | G92: [mm] | H92: [Bar] | I92: [spm] | J92: [°C] | K92: [°F] | L92: [°C] | M92: Slaglängdsfaktor | N92: SPM-faktor | O92: %-faktor | P92: [°C] | Q92: [°C] | T92: P som [°F] | U92: Q som [°F] | V92: to C° | W92: N + T | X92: U + 10°C | Y92: U to F° | Z92: V to F° | AA92: [°F] | AB92: [°F] | AC92: [°C] | AD92: [°C] | AG92: 3
A93: R12 | C93: T2-50 | D93: R12 | F93: =Product_stroke_length_mm -> 7 | G93: =Used_stroke_for_calculation -> 5 | H93: =Filling_Pressure_in_bar -> 150 | I93: =User_SPM -> 20 | J93: =Surrounding_temperature_in_C° -> 20 | K93: 77 | L93: 25 | M93: =0*F93^2+0.0773842904727491*F93+1.38869038428296 -> 1.930380418 | N93: =(0*H93^2+0.0218685433000524*H93+3.25496045048892)*(0.00155475011645089*I93^2-0.0694414388077009*I93+3.14993259505957) -> 15.57350682 | O93: =0.0860769264525189*(100*G93/F93)-0.119238195541514 -> 6.029113694 | P93: =((M93*N93*O93)*0.00491291957951706-0.116151420334139)+J93 -> 20.77432505 | Q93: =P93+10 -> 30.77432505 | R93: =P93 -> 20.77432505 | S93: =Q93 -> 30.77432505 | T93: 69.39378509 | U93: 87.39378509 | V93: =5/9*(K93-32) -> 25 | W93: =P93+V93 -> 45.77432505 | X93: 55.77432505 | Y93: 114.3937851 | Z93: 132.3937851 | AA93: 114.3937851 | AB93: 132.3937851 | AC93: 45.77432505 | AD93: 55.77432505 | AE93: =IF(Q93>80,"High temp. Please contact your distributor for advice",IF(H93>180,"Too high charging pressure!","")) ->  | AG93: 3 | AH93: Nya tester | AN93: 28 | AO93: 38
C96: T2-70 | D96: R15 | F96: Strokelength | G96: Utilized | H96: Fill pressure | I96: Frequency | J96: Env./Tool | K96: Env./Tool | L96: Env./Tool | P96: Estimated running | V96: F° env./tool | AB96: =P96 -> Estimated running | AG96: 3
G97: strokelength | J97: temperature | K97: temperature | L97: temperature | N97: Tryck-och | P97: temperature between: | V97: temp. | AB97: =P97 -> temperature between: | AG97: 3
C98: Spring Size | D98: Spring Size | G98: [mm] | H98: [Bar] | I98: [spm] | J98: [°C] | K98: [°F] | L98: [°C] | M98: Slaglängdsfaktor | N98: SPM-faktor | O98: %-faktor | P98: [°C] | Q98: [°C] | T98: P som [°F] | U98: Q som [°F] | V98: to C° | W98: N + T | X98: U + 10°C | Y98: U to F° | Z98: V to F° | AA98: [°F] | AB98: [°F] | AC98: [°C] | AD98: [°C] | AG98: 3
A99: R15 | C99: T2-70 | D99: R15 | F99: =Product_stroke_length_mm -> 7 | G99: =Used_stroke_for_calculation -> 5 | H99: =Filling_Pressure_in_bar -> 150 | I99: =User_SPM -> 20 | J99: =Surrounding_temperature_in_C° -> 20 | K99: 77 | L99: 25 | M99: =0*F99^2+0.101700563349931*F99+1.05952116662376 -> 1.77142511 | N99: =(0*H99^2+0.025631766517952*H99+3.91514433290844)*(0.000827721825636666*I99^2+0.00507305883455402*I99+3.03783330199938) -> 26.92985897 | O99: =0.0859722222222222*(100*G99/F99)+1.01562037037037 -> 7.156493386 | P99: =((M99*N99*O99)*0.0028145556115581+0.145637978570093)+J99 -> 21.10651318 | Q99: =P99+10 -> 31.10651318 | R99: =P99 -> 21.10651318 | S99: =Q99 -> 31.10651318 | T99: 69.99172372 | U99: 87.99172372 | V99: 25 | W99: 46.10651318 | X99: 56.10651318 | Y99: 114.9917237 | Z99: 132.9917237 | AA99: 114.9917237 | AB99: 132.9917237 | AC99: 46.10651318 | AD99: 56.10651318 | AE99: =IF(Q99>80,"High temp. Please contact your distributor for advice",IF(H99>180,"Too high charging pressure!","")) ->  | AG99: 3 | AH99: Nya tester | AN99: 29 | AO99: 39
C102: T2-90 | D102: R19 | F102: Strokelength | G102: Utilized | H102: Fill pressure | I102: Frequency | J102: Env./Tool | K102: Env./Tool | L102: Env./Tool | P102: Estimated running | R102: =P102 -> Estimated running | V102: F° env./tool | AB102: =P102 -> Estimated running | AG102: 2
G103: strokelength | J103: temperature | K103: temperature | L103: temperature | N103: Tryck-och | P103: temperature between: | R103: =P103 -> temperature between: | V103: temp. | AB103: =P103 -> temperature between: | AG103: 2
C104: Spring Size | D104: Spring Size | G104: [mm] | H104: [Bar] | I104: [spm] | J104: [°C] | K104: [°F] | L104: [°C] | M104: Slaglängdsfaktor | N104: SPM-faktor | O104: %-faktor | P104: [°C] | Q104: [°C] | R104: =P104 -> [°C] | S104: =Q104 -> [°C] | T104: P som [°F] | U104: Q som [°F] | V104: to C° | W104: N + T | X104: U + 10°C | Y104: U to F° | Z104: V to F° | AA104: [°F] | AB104: [°F] | AC104: [°C] | AD104: [°C] | AG104: 2
A105: R19 | C105: T2-90 | D105: R19 | F105: =Product_stroke_length_mm -> 7 | G105: =Used_stroke_for_calculation -> 5 | H105: =Filling_Pressure_in_bar -> 150 | I105: =User_SPM -> 20 | J105: =Surrounding_temperature_in_C° -> 20 | K105: 77 | L105: 25 | M105: =-0.000305883384051968*F105^2+0.156486863440078*F105+1.29999288234444 -> 2.380412641 | N105: =(0*H105^2+0.02389494890977*H105+6.72599823905976)*(0.00227350762618537*I105^2-0.03*I105+3.13727121454514) -> 35.53604086 | O105: =0.0991536412606766*(100*G105/F105)+2.0166981641606 -> 9.099101111 | P105: =((M105*N105*O105)*0.000754142112906586+0.237377105445892)+J105 -> 20.81783801 | Q105: =P105+10 -> 30.81783801 | R105: =P105 -> 20.81783801 | S105: =R105+10 -> 30.81783801 | T105: 69.47210841 | U105: 87.47210841 | V105: 25 | W105: 45.81783801 | X105: 55.81783801 | Y105: 114.4721084 | Z105: 132.4721084 | AA105: 114.4721084 | AB105: 132.4721084 | AC105: 45.81783801 | AD105: 55.81783801 | AE105: =IF(Q105>80,"High temp. Please contact your distributor for advice",IF(H105>180,"Too high charging pressure!","")) ->  | AF105: =AE105 ->  | AG105: 2 | AH105: Nya tester | AN105: 27 | AO105: 37
C108: NPL- | D108: TL | F108: Strokelength | G108: Utilized | H108: Fill pressure | I108: Frequency | J108: Env./Tool | K108: Env./Tool | L108: Env./Tool | P108: Estimated running | R108: =P108 -> Estimated running | V108: F° env./tool | AB108: =P108 -> Estimated running | AG108: 1
G109: strokelength | J109: temperature | K109: temperature | L109: temperature | M109: Fjäderfaktor | N109: Tryckfaktor | O109: Slagfaktor | P109: temperature between: | R109: temperature between: | V109: temp. | AB109: =P109 -> temperature between: | AG109: 1
C110: Spring Size | D110: Spring Size | G110: [mm] | H110: [Bar] | I110: [spm] | J110: [°C] | K110: [°F] | L110: [°C] | M110: K1 | N110: Kp | O110: Ks | P110: [°C] | Q110: [°C] | R110: [°C] | S110: [°C] | T110: P som [°F] | U110: Q som [°F] | V110: to C° | W110: N + T | X110: U + 10°C | Y110: U to F° | Z110: V to F° | AA110: [°F] | AB110: [°F] | AC110: [°C] | AD110: [°C] | AG110: 1
A111: =CONCATENATE("TL"," ",D111) -> TL 750 | C111: 750 | D111: 750 | F111: =Product_stroke_length_mm -> 7 | G111: =Used_stroke_for_calculation -> 5 | H111: =Filling_Pressure_in_bar -> 150 | I111: =User_SPM -> 20 | J111: =Surrounding_temperature_in_C° -> 20 | K111: 77 | L111: 25 | M111: =-0.0000002*F111^2+0.00005*F111+0.0132 -> 0.0135402 | N111: =0.88*(H111/150)+0.12 -> 1 | O111: =0.3551*(G111/F111)^2+0.5449*(G111/F111)+0.1 -> 0.6703877551 | P111: =F111*I111*M111*N111*O111+J111-2 -> 19.2708058 | Q111: =P111+10 -> 29.2708058 | R111: 19.2708058 | S111: 29.2708058 | T111: 66.68745044 | U111: 84.68745044 | V111: 25 | W111: 44.2708058 | X111: 54.2708058 | Y111: 111.6874504 | Z111: 129.6874504 | AA111: 111.6874504 | AB111: 129.6874504 | AC111: 44.2708058 | AD111: 54.2708058 | AE111: =IF(Q111>80,"High temp. Please contact your distributor for advice",IF(H111>150,"Too high charging pressure!","")) ->  | AF111: =AE111 ->  | AG111: 1 | AH111: Samma värden som TU 750 | AN111: 34 | AO111: 44
A112: =CONCATENATE("TL"," ",D112) -> TL 1500 | C112: 1500 | D112: 1500 | F112: =Product_stroke_length_mm -> 7 | G112: =Used_stroke_for_calculation -> 5 | H112: =Filling_Pressure_in_bar -> 150 | I112: =User_SPM -> 20 | J112: =Surrounding_temperature_in_C° -> 20 | K112: 77 | L112: 25 | M112: =-0.00000015*F112^2+0.000027*F112+0.0145 -> 0.01468165 | N112: =0.88*(H112/150)+0.12 -> 1 | O112: =0.82*(G112/F112)^2+0.075*(G112/F112)+0.1 -> 0.5719387755 | P112: =F112*I112*M112*N112*O112+J112 -> 21.17558069 | Q112: =P112+10 -> 31.17558069 | R112: 21.17558069 | S112: 31.17558069 | T112: 70.11604524 | U112: 88.11604524 | V112: 25 | W112: 46.17558069 | X112: 56.17558069 | Y112: 115.1160452 | Z112: 133.1160452 | AA112: 115.1160452 | AB112: 133.1160452 | AC112: 46.17558069 | AD112: 56.17558069 | AE112: =IF(Q112>80,"High temp. Please contact your distributor for advice",IF(H112>150,"Too high charging pressure!","")) ->  | AF112: =AE112 ->  | AG112: 1 | AH112: Samma värden som TU 1500 | AN112: 38 | AO112: 48
A113: TL 3000 | C113: 3000 | D113: 3000 | F113: =Product_stroke_length_mm -> 7 | G113: =Used_stroke_for_calculation -> 5 | H113: =Filling_Pressure_in_bar -> 150 | I113: =User_SPM -> 20 | J113: =Surrounding_temperature_in_C° -> 20 | K113: 77 | L113: 25 | M113: =0.00000005*F113^2-0.000034*F113+0.0186 -> 0.01836445 | N113: =0.75*(H113/150)+0.25 -> 1 | O113: =0.82*(G113/F113)^2+0.075*(G113/F113)+0.1 -> 0.5719387755 | P113: =F113*I113*M113*N113*O113+J113 -> 21.47046775 | Q113: =P113+10 -> 31.47046775 | R113: 21.47046775 | S113: 31.47046775 | T113: 70.64684194 | U113: 88.64684194 | V113: 25 | W113: 46.47046775 | X113: 56.47046775 | Y113: 115.6468419 | Z113: 133.6468419 | AA113: 115.6468419 | AB113: 133.6468419 | AC113: 46.47046775 | AD113: 56.47046775 | AE113: =IF(Q113>80,"High temp. Please contact your distributor for advice",IF(H113>150,"Too high charging pressure!","")) ->  | AF113: =AE113 ->  | AG113: 1 | AH113: Samma värden som TU 3000 | AN113: 47 | AO113: 57
A114: TL 5000 | C114: 5000 | D114: 5000 | F114: =Product_stroke_length_mm -> 7 | G114: =Used_stroke_for_calculation -> 5 | H114: =Filling_Pressure_in_bar -> 150 | I114: =User_SPM -> 20 | J114: =Surrounding_temperature_in_C° -> 20 | K114: 77 | L114: 25 | M114: =-0.000003*F114+0.0155 -> 0.015479 | N114: =0.89*(H114/150)+0.11 -> 1 | O114: =0.82*(G114/F114)^2+0.075*(G114/F114)+0.1 -> 0.5719387755 | P114: =F114*I114*M114*N114*O114+J114 -> 21.23942564 | Q114: =P114+10 -> 31.23942564 | R114: 21.23942564 | S114: 31.23942564 | T114: 70.23096616 | U114: 88.23096616 | V114: 25 | W114: 46.23942564 | X114: 56.23942564 | Y114: 115.2309662 | Z114: 133.2309662 | AA114: 115.2309662 | AB114: 133.2309662 | AC114: 46.23942564 | AD114: 56.23942564 | AE114: =IF(Q114>80,"High temp. Please contact your distributor for advice",IF(H114>150,"Too high charging pressure!","")) ->  | AF114: =AE114 ->  | AG114: 1 | AH114: Samma värden som TU 5000 | AN114: 38 | AO114: 48
A115: TL 7500 | C115: 7500 | D115: 7500 | F115: =Product_stroke_length_mm -> 7 | G115: =Used_stroke_for_calculation -> 5 | H115: =Filling_Pressure_in_bar -> 150 | I115: =User_SPM -> 20 | J115: =Surrounding_temperature_in_C° -> 20 | K115: 77 | L115: 25 | M115: =-0.000018*F115+0.025 -> 0.024874 | N115: =0.85*(H115/150)+0.15 -> 1 | O115: =0.82*(G115/F115)^2+0.075*(G115/F115)+0.1 -> 0.5719387755 | P115: =F115*I115*M115*N115*O115+J115 -> 21.99169671 | Q115: =P115+10 -> 31.99169671 | R115: 21.99169671 | S115: 31.99169671 | T115: 71.58505409 | U115: 89.58505409 | V115: 25 | W115: 46.99169671 | X115: 56.99169671 | Y115: 116.5850541 | Z115: 134.5850541 | AA115: 116.5850541 | AB115: 134.5850541 | AC115: 46.99169671 | AD115: 56.99169671 | AE115: =IF(Q115>80,"High temp. Please contact your distributor for advice",IF(H115>150,"Too high charging pressure!","")) ->  | AF115: =AE115 ->  | AG115: 1 | AH115: Samma värden som TU 7500 | AN115: 44 | AO115: 54
N117: Tryck-och
C118: NP- | D118: TU | F118: Strokelength | G118: Utilized | H118: Fill pressure | I118: Frequency | J118: Env./Tool | K118: Env./Tool | L118: Env./Tool | M118: Slaglängdsfaktor | N118: SPM-faktor | O118: %-faktor | P118: Estimated running | R118: =P118 -> Estimated running | V118: F° env./tool | AB118: =P118 -> Estimated running | AG118: 1
G119: strokelength | J119: temperature | K119: temperature | L119: temperature | M119: Fjäderfaktor | N119: Tryckfaktor | O119: Slagfaktor | P119: temperature between: | R119: temperature between: | V119: temp. | AB119: =P119 -> temperature between: | AG119: 1
C120: Spring Size | D120: Spring Size | G120: [mm] | H120: [Bar] | I120: [spm] | J120: [°C] | K120: [°F] | L120: [°C] | M120: K1 | N120: Kp | O120: Ks | P120: [°C] | Q120: [°C] | R120: [°C] | S120: [°C] | T120: P som [°F] | U120: Q som [°F] | V120: to C° | W120: N + T | X120: U + 10°C | Y120: U to F° | Z120: V to F° | AA120: [°F] | AB120: [°F] | AC120: [°C] | AD120: [°C] | AG120: 1
A121: =CONCATENATE("TU"," ",D121) -> TU 250 | C121: 250 | D121: 250 | F121: =Product_stroke_length_mm -> 7 | G121: =Used_stroke_for_calculation -> 5 | H121: =Filling_Pressure_in_bar -> 150 | I121: =User_SPM -> 20 | J121: =Surrounding_temperature_in_C° -> 20 | K121: 77 | L121: 25 | M121: =0*F121^2+0.191028214047924*F121+1.19489445411071 -> 2.532091952 | N121: =(0*H121^2+0.0198307891272208*H121+11.9649416367658)*(0*I121^2+0.0630821558264525*I121+9.92754833295433) -> 167.1615971 | O121: =0.0557716256805885*(100*G121/F121)+9.77007422382933 -> 13.75376177 | P121: =((M121*N121*O121)*0.000375660733019535-0.345071041185781)+J121 -> 21.84185091 | Q121: =P121+10 -> 31.84185091 | R121: 21.84185091 | S121: 31.84185091 | T121: 71.31533164 | U121: 89.31533164 | V121: 25 | W121: 46.84185091 | X121: 56.84185091 | Y121: 116.3153316 | Z121: 134.3153316 | AA121: 116.3153316 | AB121: 134.3153316 | AC121: 46.84185091 | AD121: 56.84185091 | AE121: =IF(Q121>80,"High temp. Please contact your distributor for advice",IF(H121>150,"Too high charging pressure!","")) ->  | AF121: =AE121 ->  | AG121: 1 | AH121: Nya tester | AN121: 42 | AO121: 52
A122: =CONCATENATE("TU"," ",D122) -> TU 500 | C122: 500 | D122: 500 | F122: 7 | G122: 5 | H122: 150 | I122: 20 | J122: 20 | K122: 77 | L122: 25 | M122: =-0.00000013726*F122^2-0.0000076261*F122+0.0133 -> 0.01323989156 | N122: =0.1645*EXP(1.7*(H122/150))+0.1 -> 1.000464346 | O122: =0.496*(G122/F122)^2+0.4572*(G122/F122)+0.05 -> 0.6296326531 | P122: =(F122*I122*M122*N122*O122)+J122 -> 21.16761945 | Q122: =P122+10 -> 31.16761945 | R122: 21.16761945 | S122: 31.16761945 | T122: 70.10171502 | U122: 88.10171502 | V122: 25 | W122: 46.16761945 | X122: 56.16761945 | Y122: 115.101715 | Z122: 133.101715 | AA122: 115.101715 | AB122: 133.101715 | AC122: 46.16761945 | AD122: 56.16761945 | AG122: 1 | AH122: Samma värden som idag | AN122: 29 | AO122: 39
A123: TU 750 | C123: 750 | D123: 750 | F123: 7 | G123: 5 | H123: 150 | I123: 20 | J123: 20 | K123: 77 | L123: 25 | M123: =-0.0000002*F123^2+0.00005*F123+0.0132 -> 0.0135402 | N123: =0.88*(H123/150)+0.12 -> 1 | O123: =0.3551*(G123/F123)^2+0.5449*(G123/F123)+0.1 -> 0.6703877551 | P123: =F123*I123*M123*N123*O123+J123-2 -> 19.2708058 | Q123: =P123+10 -> 29.2708058 | R123: 19.2708058 | S123: 29.2708058 | T123: 66.68745044 | U123: 84.68745044 | V123: 25 | W123: 44.2708058 | X123: 54.2708058 | Y123: 111.6874504 | Z123: 129.6874504 | AA123: 111.6874504 | AB123: 129.6874504 | AC123: 44.2708058 | AD123: 54.2708058 | AG123: 1 | AH123: Samma värden som idag | AN123: 33 | AO123: 43
A124: TU 1500 | C124: 1500 | D124: 1500 | F124: 7 | G124: 5 | H124: 150 | I124: 20 | J124: 20 | K124: 77 | L124: 25 | M124: =-0.00000015*F124^2+0.000027*F124+0.0145 -> 0.01468165 | N124: =0.88*(H124/150)+0.12 -> 1 | O124: =0.82*(G124/F124)^2+0.075*(G124/F124)+0.1 -> 0.5719387755 | P124: =F124*I124*M124*N124*O124+J124 -> 21.17558069 | Q124: 31.17558069 | R124: 21.17558069 | S124: 31.17558069 | T124: 70.11604524 | U124: 88.11604524 | V124: 25 | W124: 46.17558069 | X124: 56.17558069 | Y124: 115.1160452 | Z124: 133.1160452 | AA124: 115.1160452 | AB124: 133.1160452 | AC124: 46.17558069 | AD124: 56.17558069 | AG124: 1 | AH124: Samma värden som idag | AN124: 38 | AO124: 48
A125: TU 3000 | C125: 3000 | D125: 3000 | F125: 7 | G125: 5 | H125: 150 | I125: 20 | J125: 20 | K125: 77 | L125: 25 | M125: =0.00000005*F125^2-0.000034*F125+0.0186 -> 0.01836445 | N125: =0.75*(H125/150)+0.25 -> 1 | O125: =0.82*(G125/F125)^2+0.075*(G125/F125)+0.1 -> 0.5719387755 | P125: =F125*I125*M125*N125*O125+J125 -> 21.47046775 | Q125: 31.47046775 | R125: 21.47046775 | S125: 31.47046775 | T125: 70.64684194 | U125: 88.64684194 | V125: 25 | W125: 46.47046775 | X125: 56.47046775 | Y125: 115.6468419 | Z125: 133.6468419 | AA125: 115.6468419 | AB125: 133.6468419 | AC125: 46.47046775 | AD125: 56.47046775 | AG125: 1 | AH125: Samma värden som idag | AN125: 38 | AO125: 48
A126: TU 5000 | C126: 5000 | D126: 5000 | F126: 7 | G126: 5 | H126: 150 | I126: 20 | J126: 20 | K126: 77 | L126: 25 | M126: =-0.000003*F126+0.0155 -> 0.015479 | N126: =0.89*(H126/150)+0.11 -> 1 | O126: =0.82*(G126/F126)^2+0.075*(G126/F126)+0.1 -> 0.5719387755 | P126: =F126*I126*M126*N126*O126+J126 -> 21.23942564 | Q126: 31.23942564 | R126: 21.23942564 | S126: 31.23942564 | T126: 70.23096616 | U126: 88.23096616 | V126: 25 | W126: 46.23942564 | X126: 56.23942564 | Y126: 115.2309662 | Z126: 133.2309662 | AA126: 115.2309662 | AB126: 133.2309662 | AC126: 46.23942564 | AD126: 56.23942564 | AG126: 1 | AH126: Samma värden som idag | AN126: 38 | AO126: 48
A127: TU 7500 | C127: 7500 | D127: 7500 | F127: 7 | G127: 5 | H127: 150 | I127: 20 | J127: 20 | K127: 77 | L127: 25 | M127: =-0.000018*F127+0.025 -> 0.024874 | N127: =0.85*(H127/150)+0.15 -> 1 | O127: =0.82*(G127/F127)^2+0.075*(G127/F127)+0.1 -> 0.5719387755 | P127: =F127*I127*M127*N127*O127+J127 -> 21.99169671 | Q127: 31.99169671 | R127: 21.99169671 | S127: 31.99169671 | T127: 71.58505409 | U127: 89.58505409 | V127: 25 | W127: 46.99169671 | X127: 56.99169671 | Y127: 116.5850541 | Z127: 134.5850541 | AA127: 116.5850541 | AB127: 134.5850541 | AC127: 46.99169671 | AD127: 56.99169671 | AG127: 1 | AH127: Samma värden som idag | AN127: 44 | AO127: 54
A128: TU 10000 | C128: 10000 | D128: 10000 | F128: 7 | G128: 5 | H128: 150 | I128: 20 | J128: 20 | K128: 77 | L128: 25 | M128: =-0.00000004*F128^2+0.000015*F128+0.0145 -> 0.01460304 | N128: =0.9*(H128/150)+0.1 -> 1 | O128: =0.82*(G128/F128)^2+0.075*(G128/F128)+0.1 -> 0.5719387755 | P128: =F128*I128*M128*N128*O128+J128 -> 21.16928627 | Q128: 31.16928627 | R128: 21.16928627 | S128: 31.16928627 | T128: 70.10471529 | U128: 88.10471529 | V128: 25 | W128: 46.16928627 | X128: 56.16928627 | Y128: 115.1047153 | Z128: 133.1047153 | AA128: 115.1047153 | AB128: 133.1047153 | AC128: 46.16928627 | AD128: 56.16928627 | AG128: 1 | AH128: Samma värden som idag | AN128: 38 | AO128: 48
C131: Finns ej | D131: TUR | F131: Strokelength | G131: Utilized | H131: Fill pressure | I131: Frequency | J131: Env./Tool | K131: Env./Tool | L131: Env./Tool | P131: Estimated running | R131: =P131 -> Estimated running | V131: F° env./tool | AB131: =P131 -> Estimated running | AG131: 1
G132: strokelength | J132: temperature | K132: temperature | L132: temperature | M132: Fjäderfaktor | N132: Tryckfaktor | O132: Slagfaktor | P132: temperature between: | R132: =P132 -> temperature between: | V132: temp. | AB132: =P132 -> temperature between: | AG132: 1
D133: Spring Size | G133: [mm] | H133: [Bar] | I133: [spm] | J133: [°C] | K133: [°F] | L133: [°C] | M133: K1 | N133: Kp | O133: Ks | P133: [°C] | Q133: [°C] | R133: =P133 -> [°C] | S133: =Q133 -> [°C] | T133: P som [°F] | U133: Q som [°F] | V133: to C° | W133: N + T | X133: U + 10°C | Y133: U to F° | Z133: V to F° | AA133: [°F] | AB133: [°F] | AC133: [°C] | AD133: [°C] | AG133: 1
A134: =CONCATENATE("TUR"," ",D134) -> TUR 10000 | D134: 10000 | F134: =Product_stroke_length_mm -> 7 | G134: =Used_stroke_for_calculation -> 5 | H134: =Filling_Pressure_in_bar -> 150 | I134: =User_SPM -> 20 | J134: =Surrounding_temperature_in_C° -> 20 | K134: 77 | L134: 25 | M134: =-0.00000004*F134^2+0.000015*F134+0.0145 -> 0.01460304 | N134: =0.9*(H134/150)+0.1 -> 1 | O134: =0.82*(G134/F134)^2+0.075*(G134/F134)+0.1 -> 0.5719387755 | P134: =F134*I134*M134*N134*O134+J134 -> 21.16928627 | Q134: =P134+10 -> 31.16928627 | R134: =P134 -> 21.16928627 | S134: =Q134 -> 31.16928627 | T134: 70.10471529 | U134: 88.10471529 | V134: 25 | W134: 46.16928627 | X134: 56.16928627 | Y134: 115.1047153 | Z134: 133.1047153 | AA134: 115.1047153 | AB134: 133.1047153 | AC134: 46.16928627 | AD134: 56.16928627 | AE134: =IF(Q134>80,"High temp. Please contact your distributor for advice",IF(H134>150,"Too high charging pressure!","")) ->  | AF134: =AE134 ->  | AG134: 1 | AH134: Samma värden som TU | AN134: 38 | AO134: 48
C137: Finns ej | D137: TUS | F137: Strokelength | G137: Utilized | H137: Fill pressure | I137: Frequency | J137: Env./Tool | K137: Env./Tool | L137: Env./Tool | P137: Estimated running | R137: =P137 -> Estimated running | V137: F° env./tool | AB137: =P137 -> Estimated running | AG137: 1
G138: strokelength | J138: temperature | K138: temperature | L138: temperature | M138: Fjäderfaktor | N138: Tryckfaktor | O138: Slagfaktor | P138: temperature between: | R138: temperature between: | V138: temp. | AB138: =P138 -> temperature between: | AG138: 1
D139: Spring Size | G139: [mm] | H139: [Bar] | I139: [spm] | J139: [°C] | K139: [°F] | L139: [°C] | M139: K1 | N139: Kp | O139: Ks | P139: [°C] | Q139: [°C] | R139: [°C] | S139: [°C] | T139: P som [°F] | U139: Q som [°F] | V139: to C° | W139: N + T | X139: U + 10°C | Y139: U to F° | Z139: V to F° | AA139: [°F] | AB139: [°F] | AC139: [°C] | AD139: [°C] | AG139: 1
A140: =CONCATENATE("TUS"," ",D140) -> TUS 750 | D140: 750 | F140: =Product_stroke_length_mm -> 7 | G140: =Used_stroke_for_calculation -> 5 | H140: =Filling_Pressure_in_bar -> 150 | I140: =User_SPM -> 20 | J140: =Surrounding_temperature_in_C° -> 20 | K140: 77 | L140: =5/9*(K140-32) -> 25 | M140: =-0.0000002*F140^2+0.00005*F140+0.0132 -> 0.0135402 | N140: =0.88*(H140/150)+0.12 -> 1 | O140: =0.3551*(G140/F140)^2+0.5449*(G140/F140)+0.1 -> 0.6703877551 | P140: =F140*I140*M140*N140*O140+J140-2 -> 19.2708058 | Q140: =P140+10 -> 29.2708058 | R140: 19.2708058 | S140: 29.2708058 | T140: =9/5*R140+32 -> 66.68745044 | U140: 84.68745044 | V140: 25 | W140: 44.2708058 | X140: =W140+10 -> 54.2708058 | Y140: 111.6874504 | Z140: 129.6874504 | AA140: =Y140 -> 111.6874504 | AB140: 129.6874504 | AC140: =5/9*(AA140-32) -> 44.2708058 | AD140: 54.2708058 | AE140: =IF(Q140>80,"High temp. Please contact your distributor for advice",IF(H140>150,"Too high charging pressure!","")) ->  | AF140: =AE140 ->  | AG140: 1 | AH140: Samma värden som TU | AN140: 37 | AO140: 47
A141: =CONCATENATE("TUS"," ",D141) -> TUS 1500 | D141: 1500 | F141: =Product_stroke_length_mm -> 7 | G141: =Used_stroke_for_calculation -> 5 | H141: =Filling_Pressure_in_bar -> 150 | I141: =User_SPM -> 20 | J141: =Surrounding_temperature_in_C° -> 20 | K141: 77 | L141: 25 | M141: =-0.00000015*F141^2+0.000027*F141+0.0145 -> 0.01468165 | N141: =0.88*(H141/150)+0.12 -> 1 | O141: =0.82*(G141/F141)^2+0.075*(G141/F141)+0.1 -> 0.5719387755 | P141: =F141*I141*M141*N141*O141+J141 -> 21.17558069 | Q141: =P141+10 -> 31.17558069 | R141: 21.17558069 | S141: 31.17558069 | T141: 70.11604524 | U141: 88.11604524 | V141: 25 | W141: 46.17558069 | X141: 56.17558069 | Y141: 115.1160452 | Z141: 133.1160452 | AA141: 115.1160452 | AB141: 133.1160452 | AC141: 46.17558069 | AD141: 56.17558069 | AE141: =IF(Q141>80,"High temp. Please contact your distributor for advice",IF(H141>150,"Too high charging pressure!","")) ->  | AG141: 1 | AH141: Samma värden som TU | AN141: 38 | AO141: 48
A142: TUS 3000 | D142: 3000 | F142: =Product_stroke_length_mm -> 7 | G142: =Used_stroke_for_calculation -> 5 | H142: =Filling_Pressure_in_bar -> 150 | I142: =User_SPM -> 20 | J142: =Surrounding_temperature_in_C° -> 20 | K142: 77 | L142: 25 | M142: =0.00000005*F142^2-0.000034*F142+0.0186 -> 0.01836445 | N142: =0.75*(H142/150)+0.25 -> 1 | O142: =0.82*(G142/F142)^2+0.075*(G142/F142)+0.1 -> 0.5719387755 | P142: =F142*I142*M142*N142*O142+J142 -> 21.47046775 | Q142: =P142+10 -> 31.47046775 | R142: 21.47046775 | S142: 31.47046775 | T142: 70.64684194 | U142: 88.64684194 | V142: 25 | W142: 46.47046775 | X142: 56.47046775 | Y142: 115.6468419 | Z142: 133.6468419 | AA142: 115.6468419 | AB142: 133.6468419 | AC142: 46.47046775 | AD142: 56.47046775 | AE142: =IF(Q142>80,"High temp. Please contact your distributor for advice",IF(H142>150,"Too high charging pressure!","")) ->  | AG142: 1 | AH142: Samma värden som TU | AN142: 38 | AO142: 48
A143: TUS 5000 | D143: 5000 | F143: =Product_stroke_length_mm -> 7 | G143: =Used_stroke_for_calculation -> 5 | H143: =Filling_Pressure_in_bar -> 150 | I143: =User_SPM -> 20 | J143: =Surrounding_temperature_in_C° -> 20 | K143: 77 | L143: 25 | M143: =-0.000003*F143+0.0155 -> 0.015479 | N143: =0.89*(H143/150)+0.11 -> 1 | O143: =0.82*(G143/F143)^2+0.075*(G143/F143)+0.1 -> 0.5719387755 | P143: =F143*I143*M143*N143*O143+J143 -> 21.23942564 | Q143: =P143+10 -> 31.23942564 | R143: 21.23942564 | S143: 31.23942564 | T143: 70.23096616 | U143: 88.23096616 | V143: 25 | W143: 46.23942564 | X143: 56.23942564 | Y143: 115.2309662 | Z143: 133.2309662 | AA143: 115.2309662 | AB143: 133.2309662 | AC143: 46.23942564 | AD143: 56.23942564 | AE143: =IF(Q143>80,"High temp. Please contact your distributor for advice",IF(H143>150,"Too high charging pressure!","")) ->  | AG143: 1 | AH143: Samma värden som TU | AN143: 38 | AO143: 48
A144: TUS 7500 | D144: 7500 | F144: =Product_stroke_length_mm -> 7 | G144: =Used_stroke_for_calculation -> 5 | H144: =Filling_Pressure_in_bar -> 150 | I144: =User_SPM -> 20 | J144: =Surrounding_temperature_in_C° -> 20 | K144: 77 | L144: 25 | M144: =-0.000018*F144+0.025 -> 0.024874 | N144: =0.85*(H144/150)+0.15 -> 1 | O144: =0.82*(G144/F144)^2+0.075*(G144/F144)+0.1 -> 0.5719387755 | P144: =F144*I144*M144*N144*O144+J144 -> 21.99169671 | Q144: =P144+10 -> 31.99169671 | R144: 21.99169671 | S144: 31.99169671 | T144: 71.58505409 | U144: 89.58505409 | V144: 25 | W144: 46.99169671 | X144: 56.99169671 | Y144: 116.5850541 | Z144: 134.5850541 | AA144: 116.5850541 | AB144: 134.5850541 | AC144: 46.99169671 | AD144: 56.99169671 | AE144: =IF(Q144>80,"High temp. Please contact your distributor for advice",IF(H144>150,"Too high charging pressure!","")) ->  | AG144: 1 | AH144: Samma värden som TU | AN144: 44 | AO144: 54
C147: T4- | D147: TX | F147: Strokelength | G147: Utilized | H147: Fill pressure | I147: Frequency | J147: Env./Tool | K147: Env./Tool | L147: Env./Tool | N147: Tryckfaktor Kp | P147: Estimated running | R147: =P147 -> Estimated running | V147: F° env./tool | AB147: =P147 -> Estimated running | AG147: 1
G148: strokelength | J148: temperature | K148: temperature | L148: temperature | M148: Fjäderfaktor K1 | N148: Tryck-och | O148: Slagfaktor Ks | P148: temperature between: | R148: =P148 -> temperature between: | V148: temp. | AB148: =P148 -> temperature between: | AG148: 1
C149: Spring Size | D149: Spring Size | G149: [mm] | H149: [Bar] | I149: [spm] | J149: [°C] | K149: [°F] | L149: [°C] | M149: Slaglängdsfaktor | N149: SPM-faktor | O149: %-faktor | P149: [°C] | Q149: [°C] | R149: =P149 -> [°C] | S149: =Q149 -> [°C] | T149: P som [°F] | U149: Q som [°F] | V149: to C° | W149: N + T | X149: U + 10°C | Y149: U to F° | Z149: V to F° | AA149: [°F] | AB149: [°F] | AC149: [°C] | AD149: [°C] | AG149: 1
A150: =CONCATENATE("TX"," ",D150) -> TX 750 | C150: 750 | D150: 750 | F150: =Product_stroke_length_mm -> 7 | G150: =Used_stroke_for_calculation -> 5 | H150: =Filling_Pressure_in_bar -> 150 | I150: =User_SPM -> 20 | J150: =Surrounding_temperature_in_C° -> 20 | K150: 77 | L150: 25 | M150: =-0.00000013726*F150^2-0.0000076261*F150+0.0133 -> 0.01323989156 | N150: =0.1645*EXP(1.7*(H150/150))+0.1 -> 1.000464346 | O150: =0.496*(G150/F150)^2+0.4572*(G150/F150)+0.05 -> 0.6296326531 | P150: =((F150*I150*M150*N150*O150)*0.9)+J150 -> 21.05085751 | Q150: =P150+10 -> 31.05085751 | R150: =P150 -> 21.05085751 | S150: =Q150 -> 31.05085751 | T150: 69.89154352 | U150: 87.89154352 | V150: =5/9*(K150-32) -> 25 | W150: =P150+V150 -> 46.05085751 | X150: 56.05085751 | Y150: =9/5*W150+32 -> 114.8915435 | Z150: 132.8915435 | AA150: 114.8915435 | AB150: 132.8915435 | AC150: 46.05085751 | AD150: 56.05085751 | AE150: =IF(Q150>80,"High temp. Please contact your distributor for advice",IF(H150>150,"Too high charging pressure!","")) ->  | AG150: 2 | AH150: Nya tester alt. samma som TU 500 | AN150: 31 | AO150: 41
A151: =CONCATENATE("TX"," ",D151) -> TX 1000 | C151: 1000 | D151: 1000 | F151: 7 | G151: 5 | H151: 150 | I151: 20 | J151: 20 | K151: 77 | L151: 25 | M151: =-0.0000002*F151^2+0.00005*F151+0.0132 -> 0.0135402 | N151: =0.88*(H151/150)+0.12 -> 1 | O151: =0.3551*(G151/F151)^2+0.5449*(G151/F151)+0.1 -> 0.6703877551 | P151: =F151*I151*M151*N151*O151+J151-2 -> 19.2708058 | Q151: 29.2708058 | R151: =P151 -> 19.2708058 | S151: 29.2708058 | T151: 66.68745044 | U151: 84.68745044 | V151: 25 | W151: 44.2708058 | X151: 54.2708058 | Y151: 111.6874504 | Z151: 129.6874504 | AA151: 111.6874504 | AB151: 129.6874504 | AC151: 44.2708058 | AD151: 54.2708058 | AG151: 1 | AH151: Samma värden som TU 750 | AN151: 39 | AO151: 49
A152: TX 1500 | C152: 1500 | D152: 1500 | F152: 7 | G152: 5 | H152: 150 | I152: 20 | J152: 20 | K152: 77 | L152: 25 | M152: =0.123963746670613*F152 -> 0.8677462267 | N152: =(0.0703967741935484*H152+5.52354838709677)*(0.000530647743213614*I152^2+0.274166602843941*I152) -> 91.60255999 | O152: =(100*G152/F152)*0.171918187168923 -> 12.27987051 | P152: =J152+(M152*N152*O152*0.000731558156516041+4.52833074925737) -> 25.24240437 | Q152: 35.24240437 | R152: 25.24240437 | S152: 35.24240437 | T152: 77.43632786 | U152: 95.43632786 | V152: 25 | W152: 50.24240437 | X152: 60.24240437 | Y152: 122.4363279 | Z152: 140.4363279 | AA152: 122.4363279 | AB152: 140.4363279 | AC152: 50.24240437 | AD152: 60.24240437 | AG152: 2 | AH152: Nya tester | AN152: 37 | AO152: 47
A153: TX 2400 | C153: 2400 | D153: 2400 | F153: 7 | G153: 5 | H153: 150 | I153: 20 | J153: 20 | K153: 77 | L153: 25 | M153: =-0.00000015*F153^2+0.000027*F153+0.0145 -> 0.01468165 | N153: =0.88*(H153/150)+0.12 -> 1 | O153: =0.82*(G153/F153)^2+0.075*(G153/F153)+0.1 -> 0.5719387755 | P153: =F153*I153*M153*N153*O153+J153 -> 21.17558069 | Q153: 31.17558069 | R153: 21.17558069 | S153: 31.17558069 | T153: 70.11604524 | U153: 88.11604524 | V153: 25 | W153: 46.17558069 | X153: 56.17558069 | Y153: 115.1160452 | Z153: 133.1160452 | AA153: 115.1160452 | AB153: 133.1160452 | AC153: 46.17558069 | AD153: 56.17558069 | AG153: 1 | AH153: Samma värden som TU 1500 | AN153: 41 | AO153: 51
A154: TX 4200 | C154: 4200 | D154: 4200 | F154: 7 | G154: 5 | H154: 150 | I154: 20 | J154: 20 | K154: 77 | L154: 25 | M154: =0.00000005*F154^2-0.000034*F154+0.0186 -> 0.01836445 | N154: =0.75*(H154/150)+0.25 -> 1 | O154: =0.82*(G154/F154)^2+0.075*(G154/F154)+0.1 -> 0.5719387755 | P154: =F154*I154*M154*N154*O154+J154 -> 21.47046775 | Q154: 31.47046775 | R154: 21.47046775 | S154: 31.47046775 | T154: 70.64684194 | U154: 88.64684194 | V154: 25 | W154: 46.47046775 | X154: 56.47046775 | Y154: 115.6468419 | Z154: 133.6468419 | AA154: 115.6468419 | AB154: 133.6468419 | AC154: 46.47046775 | AD154: 56.47046775 | AG154: 1 | AH154: Samma värden som TU 3000 | AN154: 41 | AO154: 51
A155: TX 6600 | C155: 6600 | D155: 6600 | F155: 7 | G155: 5 | H155: 150 | I155: 20 | J155: 20 | K155: 77 | L155: 25 | M155: =-0.000003*F155+0.0155 -> 0.015479 | N155: =0.89*(H155/150)+0.11 -> 1 | O155: =0.82*(G155/F155)^2+0.075*(G155/F155)+0.1 -> 0.5719387755 | P155: =F155*I155*M155*N155*O155+J155 -> 21.23942564 | Q155: 31.23942564 | R155: 21.23942564 | S155: 31.23942564 | T155: 70.23096616 | U155: 88.23096616 | V155: 25 | W155: 46.23942564 | X155: 56.23942564 | Y155: 115.2309662 | Z155: 133.2309662 | AA155: 115.2309662 | AB155: 133.2309662 | AC155: 46.23942564 | AD155: 56.23942564 | AG155: 1 | AH155: Samma värden som TU 5000 | AN155: 40 | AO155: 50
A156: TX 9500 | C156: 9500 | D156: 9500 | F156: 7 | G156: 5 | H156: 150 | I156: 20 | J156: 20 | K156: 77 | L156: 25 | M156: =-0.000018*F156+0.025 -> 0.024874 | N156: =0.85*(H156/150)+0.15 -> 1 | O156: =0.82*(G156/F156)^2+0.075*(G156/F156)+0.1 -> 0.5719387755 | P156: =F156*I156*M156*N156*O156+J156 -> 21.99169671 | Q156: 31.99169671 | R156: 21.99169671 | S156: 31.99169671 | T156: 71.58505409 | U156: 89.58505409 | V156: 25 | W156: 46.99169671 | X156: 56.99169671 | Y156: 116.5850541 | Z156: 134.5850541 | AA156: 116.5850541 | AB156: 134.5850541 | AC156: 46.99169671 | AD156: 56.99169671 | AG156: 1 | AH156: Samma värden som TU 7500 | AN156: 48 | AO156: 58
A157: TX 20000 | C157: 20000 | D157: 20000 | F157: 7 | G157: 5 | H157: 150 | I157: 20 | J157: 20 | K157: 77 | L157: 25 | M157: =-0.00000004*F157^2+0.000015*F157+0.0145 -> 0.01460304 | N157: =0.9*(H157/150)+0.1 -> 1 | O157: =0.82*(G157/F157)^2+0.075*(G157/F157)+0.1 -> 0.5719387755 | P157: =F157*I157*M157*N157*O157+J157 -> 21.16928627 | Q157: 31.16928627 | R157: 21.16928627 | S157: 31.16928627 | T157: 70.10471529 | U157: 88.10471529 | V157: 25 | W157: 46.16928627 | X157: 56.16928627 | Y157: 115.1047153 | Z157: 133.1047153 | AA157: 115.1047153 | AB157: 133.1047153 | AC157: 46.16928627 | AD157: 56.16928627 | AG157: 2 | AH157: Nya tester alt. samma som TU 10T | AN157: 41 | AO157: 51
D161: Kopia av X-data | F161: Strokelength | G161: Utilized | H161: Fill pressure | I161: Frequency | J161: Env./Tool | K161: Env./Tool | L161: Env./Tool | P161: Estimated running | R161: =P161 -> Estimated running | V161: F° env./tool | AB161: =P161 -> Estimated running | AG161: 1
D162: 2017-05-29 | G162: strokelength | J162: temperature | K162: temperature | L162: temperature | M162: Fjäderfaktor | N162: Tryckfaktor | O162: Slagfaktor | P162: temperature between: | R162: temperature between: | V162: temp. | AB162: =P162 -> temperature between: | AG162: 1
C163: Spring Size | D163: Spring Size | G163: [mm] | H163: [Bar] | I163: [spm] | J163: [°C] | K163: [°F] | L163: [°C] | M163: K1 | N163: Kp | O163: Ks | P163: [°C] | Q163: [°C] | R163: [°C] | S163: =Q163 -> [°C] | T163: P som [°F] | U163: Q som [°F] | V163: to C° | W163: N + T | X163: U + 10°C | Y163: U to F° | Z163: V to F° | AA163: [°F] | AB163: [°F] | AC163: [°C] | AD163: [°C] | AG163: 1
A164: =CONCATENATE("XF"," ",D164) -> XF 750 | C164: 750 | D164: 750 | F164: =Product_stroke_length_mm -> 7 | G164: =Used_stroke_for_calculation -> 5 | H164: =Filling_Pressure_in_bar -> 150 | I164: =User_SPM -> 20 | J164: =Surrounding_temperature_in_C° -> 20 | K164: 77 | L164: =5/9*(K164-32) -> 25 | M164: =-5.21759415768633E-06*F164+0.011064444 -> 0.01102792084 | N164: =0.7*(H164/150)+0.3 -> 1 | O164: =(G164/F164)^1.15 -> 0.6791297552 | P164: =F164*I164*M164*N164*O164+J164 -> 21.04851449 | Q164: =P164+10 -> 31.04851449 | R164: 21.04851449 | S164: 31.04851449 | T164: =9/5*R164+32 -> 69.88732607 | U164: =9/5*S164+32 -> 87.88732607 | V164: =5/9*(K164-32) -> 25 | W164: =P164+V164 -> 46.04851449 | X164: =W164+10 -> 56.04851449 | Y164: =9/5*W164+32 -> 114.8873261 | Z164: =9/5*X164+32 -> 132.8873261 | AA164: =Y164 -> 114.8873261 | AB164: =Z164 -> 132.8873261 | AC164: =5/9*(AA164-32) -> 46.04851449 | AD164: =5/9*(AB164-32) -> 56.04851449 | AE164: =IF(Q164>80,"High temp. Please contact your distributor for advice",IF(H164>150,"Too high charging pressure!","")) ->  | AF164: =AE164 ->  | AG164: 1 | AH164: Samma värden som idag | AN164: 34 | AO164: 44
A165: XF 1000 | C165: 1000 | D165: 1000 | F165: =Product_stroke_length_mm -> 7 | G165: =Used_stroke_for_calculation -> 5 | H165: =Filling_Pressure_in_bar -> 150 | I165: =User_SPM -> 20 | J165: =Surrounding_temperature_in_C° -> 20 | K165: 77 | L165: 25 | M165: =-3.37582158982632E-06*F165+0.012213964 -> 0.01219033325 | N165: =0.79*(H165/150)+0.21 -> 1 | O165: 0.6791297552 | P165: 21.15903452 | Q165: 31.15903452 | R165: 21.15903452 | S165: 31.15903452 | T165: 70.08626214 | U165: 88.08626214 | V165: 25 | W165: 46.15903452 | X165: 56.15903452 | Y165: 115.0862621 | Z165: 133.0862621 | AA165: 115.0862621 | AB165: 133.0862621 | AC165: 46.15903452 | AD165: 56.15903452 | AG165: 1 | AH165: Samma värden som idag | AN165: 36 | AO165: 46
A166: XF 1500 | C166: 1500 | D166: 1500 | F166: =Product_stroke_length_mm -> 7 | G166: =Used_stroke_for_calculation -> 5 | H166: =Filling_Pressure_in_bar -> 150 | I166: =User_SPM -> 20 | J166: =Surrounding_temperature_in_C° -> 20 | K166: 77 | L166: 25 | M166: =-0.0000115814333465656*F166+0.0161709 -> 0.01608982997 | N166: =0.84*(H166/150)+0.16 -> 1 | O166: 0.6791297552 | P166: 21.52979152 | Q166: 31.52979152 | R166: 21.52979152 | S166: 31.52979152 | T166: 70.75362474 | U166: 88.75362474 | V166: 25 | W166: 46.52979152 | X166: 56.52979152 | Y166: 115.7536247 | Z166: 133.7536247 | AA166: 115.7536247 | AB166: 133.7536247 | AC166: 46.52979152 | AD166: 56.52979152 | AG166: 1 | AH166: Samma värden som idag | AN166: 38 | AO166: 48
A167: XF 2400 | C167: 2400 | D167: 2400 | F167: =Product_stroke_length_mm -> 7 | G167: =Used_stroke_for_calculation -> 5 | H167: =Filling_Pressure_in_bar -> 150 | I167: =User_SPM -> 20 | J167: =Surrounding_temperature_in_C° -> 20 | K167: 77 | L167: 25 | M167: 0.01582 | N167: =0.87*(H167/150)+0.13 -> 1 | O167: 0.6791297552 | P167: 21.50413658 | Q167: 31.50413658 | R167: 21.50413658 | S167: 31.50413658 | T167: 70.70744585 | U167: 88.70744585 | V167: 25 | W167: 46.50413658 | X167: 56.50413658 | Y167: 115.7074458 | Z167: 133.7074458 | AA167: 115.7074458 | AB167: 133.7074458 | AC167: 46.50413658 | AD167: 56.50413658 | AG167: 1 | AH167: Samma värden som idag | AN167: 39 | AO167: 49

Sheet KallerTemp (hidden)
A1: Detta är värden ur katalog/MC | D1: Serie | E1: Modell | F1: Slagl | G1: Fi | H1: Fs | I1: Tryck | J1: StrCode
D2: TU | E2: 250 | F2: 10 | G2: 2650 | H2: 3500 | I2: 150 | J2: TU 250-10
D3: TU | E3: 250 | F3: 12.7 | G3: 2650 | H3: 3500 | I3: 150 | J3: TU 250-12,7
D4: TU | E4: 250 | F4: 16 | G4: 2650 | H4: 3500 | I4: 150 | J4: TU 250-16 | M4: Not:
D5: TU | E5: 250 | F5: 25 | G5: 2650 | H5: 3500 | I5: 150 | J5: TU 250-25 | M5: 2017-01-11 | N5: CU4, CX, K, LCF, XG, R12, R15, TL, TUS, TUR inlagda
D6: TU | E6: 250 | F6: 38.1 | G6: 2650 | H6: 3500 | I6: 150 | J6: TU 250-38,1
D7: TU | E7: 250 | F7: 50 | G7: 2650 | H7: 3500 | I7: 150 | J7: TU 250-50
D8: TU | E8: 250 | F8: 63.5 | G8: 2650 | H8: 3500 | I8: 150 | J8: TU 250-63,5
D9: TU | E9: 250 | F9: 80 | G9: 2650 | H9: 3500 | I9: 150 | J9: TU 250-80
D10: TU | E10: 250 | F10: 100 | G10: 2650 | H10: 3500 | I10: 150 | J10: TU 250-100
D11: TU | E11: 250 | F11: 125 | G11: 2650 | H11: 3500 | I11: 150 | J11: TU 250-125
D12: TU | E12: 500 | F12: 10 | G12: 4700 | H12: 6000 | I12: 150 | J12: TU 500-10
D13: TU | E13: 500 | F13: 12.7 | G13: 4700 | H13: 6100 | I13: 150 | J13: TU 500-12,7
D14: TU | E14: 500 | F14: 25 | G14: 4700 | H14: 6400 | I14: 150 | J14: TU 500-25
D15: TU | E15: 500 | F15: 38.1 | G15: 4700 | H15: 6500 | I15: 150 | J15: TU 500-38,1
D16: TU | E16: 500 | F16: 50 | G16: 4700 | H16: 6600 | I16: 150 | J16: TU 500-50
D17: TU | E17: 500 | F17: 63.5 | G17: 4700 | H17: 6600 | I17: 150 | J17: TU 500-63,5
D18: TU | E18: 500 | F18: 80 | G18: 4700 | H18: 6700 | I18: 150 | J18: TU 500-80
D19: TU | E19: 500 | F19: 100 | G19: 4700 | H19: 6700 | I19: 150 | J19: TU 500-100
D20: TU | E20: 500 | F20: 125 | G20: 4700 | H20: 6700 | I20: 150 | J20: TU 500-125
D21: TU | E21: 500 | F21: 160 | G21: 4700 | H21: 6700 | I21: 150 | J21: TU 500-160
D22: TU | E22: 750 | F22: 12.7 | G22: 7400 | H22: 12000 | I22: 150 | J22: TU 750-12,7
D23: TU | E23: 750 | F23: 25 | G23: 7400 | H23: 12000 | I23: 150 | J23: TU 750-25
D24: TU | E24: 750 | F24: 38.1 | G24: 7400 | H24: 12000 | I24: 150 | J24: TU 750-38,1
D25: TU | E25: 750 | F25: 50 | G25: 7400 | H25: 12000 | I25: 150 | J25: TU 750-50
D26: TU | E26: 750 | F26: 63.5 | G26: 7400 | H26: 12000 | I26: 150 | J26: TU 750-63,5
D27: TU | E27: 750 | F27: 80 | G27: 7400 | H27: 12000 | I27: 150 | J27: TU 750-80
D28: TU | E28: 750 | F28: 100 | G28: 7400 | H28: 12000 | I28: 150 | J28: TU 750-100
D29: TU | E29: 750 | F29: 125 | G29: 7400 | H29: 12100 | I29: 150 | J29: TU 750-125
D30: TU | E30: 750 | F30: 160 | G30: 7400 | H30: 12100 | I30: 150 | J30: TU 750-160
D31: TU | E31: 750 | F31: 200 | G31: 7400 | H31: 12100 | I31: 150 | J31: TU 750-200
D32: TU | E32: 750 | F32: 250 | G32: 7400 | H32: 12100 | I32: 150 | J32: TU 750-250
D33: TU | E33: 750 | F33: 300 | G33: 7400 | H33: 12100 | I33: 150 | J33: TU 750-300
D34: TU | E34: 1500 | F34: 25 | G34: 15000 | H34: 23000 | I34: 150 | J34: TU 1500-25
D35: TU | E35: 1500 | F35: 38.1 | G35: 15000 | H35: 23000 | I35: 150 | J35: TU 1500-38,1
D36: TU | E36: 1500 | F36: 50 | G36: 15000 | H36: 23000 | I36: 150 | J36: TU 1500-50
D37: TU | E37: 1500 | F37: 63.5 | G37: 15000 | H37: 23000 | I37: 150 | J37: TU 1500-63,5
D38: TU | E38: 1500 | F38: 80 | G38: 15000 | H38: 23000 | I38: 150 | J38: TU 1500-80
D39: TU | E39: 1500 | F39: 100 | G39: 15000 | H39: 23000 | I39: 150 | J39: TU 1500-100
D40: TU | E40: 1500 | F40: 125 | G40: 15000 | H40: 23000 | I40: 150 | J40: TU 1500-125
D41: TU | E41: 1500 | F41: 160 | G41: 15000 | H41: 23000 | I41: 150 | J41: TU 1500-160
D42: TU | E42: 1500 | F42: 200 | G42: 15000 | H42: 23000 | I42: 150 | J42: TU 1500-200
D43: TU | E43: 1500 | F43: 250 | G43: 15000 | H43: 23000 | I43: 150 | J43: TU 1500-250
D44: TU | E44: 1500 | F44: 300 | G44: 15000 | H44: 23000 | I44: 150 | J44: TU 1500-300
D45: TU | E45: 3000 | F45: 25 | G45: 30000 | H45: 42000 | I45: 150 | J45: TU 3000-25
D46: TU | E46: 3000 | F46: 38.1 | G46: 30000 | H46: 43000 | I46: 150 | J46: TU 3000-38,1
D47: TU | E47: 3000 | F47: 50 | G47: 30000 | H47: 44000 | I47: 150 | J47: TU 3000-50
D48: TU | E48: 3000 | F48: 63.5 | G48: 30000 | H48: 45000 | I48: 150 | J48: TU 3000-63,5
D49: TU | E49: 3000 | F49: 80 | G49: 30000 | H49: 46000 | I49: 150 | J49: TU 3000-80
D50: TU | E50: 3000 | F50: 100 | G50: 30000 | H50: 47000 | I50: 150 | J50: TU 3000-100
D51: TU | E51: 3000 | F51: 125 | G51: 30000 | H51: 47000 | I51: 150 | J51: TU 3000-125
D52: TU | E52: 3000 | F52: 160 | G52: 30000 | H52: 47000 | I52: 150 | J52: TU 3000-160
D53: TU | E53: 3000 | F53: 200 | G53: 30000 | H53: 48000 | I53: 150 | J53: TU 3000-200
D54: TU | E54: 3000 | F54: 250 | G54: 30000 | H54: 48000 | I54: 150 | J54: TU 3000-250
D55: TU | E55: 3000 | F55: 300 | G55: 30000 | H55: 48000 | I55: 150 | J55: TU 3000-300
D56: TU | E56: 5000 | F56: 25 | G56: 50000 | H56: 71000 | I56: 150 | J56: TU 5000-25
D57: TU | E57: 5000 | F57: 38.1 | G57: 50000 | H57: 75000 | I57: 150 | J57: TU 5000-38,1
D58: TU | E58: 5000 | F58: 50 | G58: 50000 | H58: 77000 | I58: 150 | J58: TU 5000-50
D59: TU | E59: 5000 | F59: 63.5 | G59: 50000 | H59: 80000 | I59: 150 | J59: TU 5000-63,5
D60: TU | E60: 5000 | F60: 80 | G60: 50000 | H60: 81000 | I60: 150 | J60: TU 5000-80
D61: TU | E61: 5000 | F61: 100 | G61: 50000 | H61: 82000 | I61: 150 | J61: TU 5000-100
D62: TU | E62: 5000 | F62: 125 | G62: 50000 | H62: 82000 | I62: 150 | J62: TU 5000-125
D63: TU | E63: 5000 | F63: 160 | G63: 50000 | H63: 83000 | I63: 150 | J63: TU 5000-160
D64: TU | E64: 5000 | F64: 200 | G64: 50000 | H64: 84000 | I64: 150 | J64: TU 5000-200
D65: TU | E65: 5000 | F65: 250 | G65: 50000 | H65: 84000 | I65: 150 | J65: TU 5000-250
D66: TU | E66: 5000 | F66: 300 | G66: 50000 | H66: 84000 | I66: 150 | J66: TU 5000-300
D67: TU | E67: 7500 | F67: 25 | G67: 75000 | H67: 105000 | I67: 150 | J67: TU 7500-25
D68: TU | E68: 7500 | F68: 38.1 | G68: 75000 | H68: 110000 | I68: 150 | J68: TU 7500-38,1
D69: TU | E69: 7500 | F69: 50 | G69: 75000 | H69: 113000 | I69: 150 | J69: TU 7500-50
D70: TU | E70: 7500 | F70: 63.5 | G70: 75000 | H70: 115000 | I70: 150 | J70: TU 7500-63,5
D71: TU | E71: 7500 | F71: 80 | G71: 75000 | H71: 117000 | I71: 150 | J71: TU 7500-80
D72: TU | E72: 7500 | F72: 100 | G72: 75000 | H72: 119000 | I72: 150 | J72: TU 7500-100
D73: TU | E73: 7500 | F73: 125 | G73: 75000 | H73: 121000 | I73: 150 | J73: TU 7500-125
D74: TU | E74: 7500 | F74: 160 | G74: 75000 | H74: 122000 | I74: 150 | J74: TU 7500-160
D75: TU | E75: 7500 | F75: 200 | G75: 75000 | H75: 123000 | I75: 150 | J75: TU 7500-200
D76: TU | E76: 7500 | F76: 250 | G76: 75000 | H76: 124000 | I76: 150 | J76: TU 7500-250
D77: TU | E77: 7500 | F77: 300 | G77: 75000 | H77: 124000 | I77: 150 | J77: TU 7500-300
D78: TU | E78: 10000 | F78: 25 | G78: 106000 | H78: 138000 | I78: 150 | J78: TU 10000-25
D79: TU | E79: 10000 | F79: 38.1 | G79: 106000 | H79: 143000 | I79: 150 | J79: TU 10000-38,1
D80: TU | E80: 10000 | F80: 50 | G80: 106000 | H80: 147000 | I80: 150 | J80: TU 10000-50
D81: TU | E81: 10000 | F81: 63.5 | G81: 106000 | H81: 150000 | I81: 150 | J81: TU 10000-63,5
D82: TU | E82: 10000 | F82: 80 | G82: 106000 | H82: 152000 | I82: 150 | J82: TU 10000-80
D83: TU | E83: 10000 | F83: 100 | G83: 106000 | H83: 156000 | I83: 150 | J83: TU 10000-100
D84: TU | E84: 10000 | F84: 125 | G84: 106000 | H84: 157000 | I84: 150 | J84: TU 10000-125
D85: TU | E85: 10000 | F85: 160 | G85: 106000 | H85: 158000 | I85: 150 | J85: TU 10000-160
D86: TU | E86: 10000 | F86: 200 | G86: 106000 | H86: 160000 | I86: 150 | J86: TU 10000-200
D87: TU | E87: 10000 | F87: 250 | G87: 106000 | H87: 160000 | I87: 150 | J87: TU 10000-250
D88: TU | E88: 10000 | F88: 300 | G88: 106000 | H88: 160000 | I88: 150 | J88: TU 10000-300
D89: X | E89: 170 | F89: 7 | G89: 1700 | H89: 2800 | I89: 180 | J89: X 170-7
D90: X | E90: 170 | F90: 10 | G90: 1700 | H90: 2800 | I90: 180 | J90: X 170-10
D91: X | E91: 170 | F91: 15 | G91: 1700 | H91: 2800 | I91: 180 | J91: X 170-15
D92: X | E92: 170 | F92: 19 | G92: 1700 | H92: 2800 | I92: 180 | J92: X 170-19
D93: X | E93: 170 | F93: 25 | G93: 1700 | H93: 2800 | I93: 180 | J93: X 170-25
D94: X | E94: 170 | F94: 38 | G94: 1700 | H94: 2800 | I94: 180 | J94: X 170-38
D95: X | E95: 170 | F95: 50 | G95: 1700 | H95: 2800 | I95: 180 | J95: X 170-50
D96: X | E96: 170 | F96: 63 | G96: 1700 | H96: 2800 | I96: 180 | J96: X 170-63
D97: X | E97: 170 | F97: 75 | G97: 1700 | H97: 2800 | I97: 180 | J97: X 170-75
D98: X | E98: 170 | F98: 80 | G98: 1700 | H98: 2800 | I98: 180 | J98: X 170-80
D99: X | E99: 170 | F99: 100 | G99: 1700 | H99: 2800 | I99: 180 | J99: X 170-100
D100: X | E100: 170 | F100: 125 | G100: 1700 | H100: 2800 | I100: 180 | J100: X 170-125
D101: X | E101: 320 | F101: 7 | G101: 3200 | H101: 4800 | I101: 180 | J101: X 320-7
D102: X | E102: 320 | F102: 10 | G102: 3200 | H102: 4900 | I102: 180 | J102: X 320-10
D103: X | E103: 320 | F103: 15 | G103: 3200 | H103: 5100 | I103: 180 | J103: X 320-15
D104: X | E104: 320 | F104: 19 | G104: 3200 | H104: 5100 | I104: 180 | J104: X 320-19
D105: X | E105: 320 | F105: 25 | G105: 3200 | H105: 5200 | I105: 180 | J105: X 320-25
D106: X | E106: 320 | F106: 38 | G106: 3200 | H106: 5300 | I106: 180 | J106: X 320-38
D107: X | E107: 320 | F107: 50 | G107: 3200 | H107: 5300 | I107: 180 | J107: X 320-50
D108: X | E108: 320 | F108: 63 | G108: 3200 | H108: 5300 | I108: 180 | J108: X 320-63
D109: X | E109: 320 | F109: 75 | G109: 3200 | H109: 5300 | I109: 180 | J109: X 320-75
D110: X | E110: 320 | F110: 80 | G110: 3200 | H110: 5300 | I110: 180 | J110: X 320-80
D111: X | E111: 320 | F111: 100 | G111: 3200 | H111: 5300 | I111: 180 | J111: X 320-100
D112: X | E112: 320 | F112: 125 | G112: 3200 | H112: 5300 | I112: 180 | J112: X 320-125
D113: X | E113: 350 | F113: 10 | G113: 3600 | H113: 5900 | I113: 180 | J113: X 350-10
D114: X | E114: 350 | F114: 13 | G114: 3600 | H114: 5200 | I114: 180 | J114: X 350-13
D115: X | E115: 350 | F115: 16 | G115: 3600 | H115: 5300 | I115: 180 | J115: X 350-16
D116: X | E116: 350 | F116: 19 | G116: 3600 | H116: 5600 | I116: 180 | J116: X 350-19
D117: X | E117: 350 | F117: 25 | G117: 3600 | H117: 5500 | I117: 180 | J117: X 350-25
D118: X | E118: 350 | F118: 32 | G118: 3600 | H118: 5500 | I118: 180 | J118: X 350-32
D119: X | E119: 350 | F119: 38 | G119: 3600 | H119: 5500 | I119: 180 | J119: X 350-38
D120: X | E120: 350 | F120: 50 | G120: 3600 | H120: 5600 | I120: 180 | J120: X 350-50
D121: X | E121: 350 | F121: 63 | G121: 3600 | H121: 5500 | I121: 180 | J121: X 350-63
D122: X | E122: 350 | F122: 75 | G122: 3600 | H122: 5500 | I122: 180 | J122: X 350-75
D123: X | E123: 350 | F123: 80 | G123: 3600 | H123: 5500 | I123: 180 | J123: X 350-80
D124: X | E124: 350 | F124: 100 | G124: 3600 | H124: 5500 | I124: 180 | J124: X 350-100
D125: X | E125: 350 | F125: 125 | G125: 3600 | H125: 5500 | I125: 180 | J125: X 350-125
D126: X | E126: 500 | F126: 10 | G126: 4700 | H126: 7200 | I126: 150 | J126: X 500-10
D127: X | E127: 500 | F127: 13 | G127: 4700 | H127: 7100 | I127: 150 | J127: X 500-13
D128: X | E128: 500 | F128: 16 | G128: 4700 | H128: 7200 | I128: 150 | J128: X 500-16
D129: X | E129: 500 | F129: 19 | G129: 4700 | H129: 7400 | I129: 150 | J129: X 500-19
D130: X | E130: 500 | F130: 25 | G130: 4700 | H130: 7300 | I130: 150 | J130: X 500-25
D131: X | E131: 500 | F131: 32 | G131: 4700 | H131: 7200 | I131: 150 | J131: X 500-32
D132: X | E132: 500 | F132: 38 | G132: 4700 | H132: 7200 | I132: 150 | J132: X 500-38
D133: X | E133: 500 | F133: 50 | G133: 4700 | H133: 7200 | I133: 150 | J133: X 500-50
D134: X | E134: 500 | F134: 63 | G134: 4700 | H134: 7200 | I134: 150 | J134: X 500-63
D135: X | E135: 500 | F135: 75 | G135: 4700 | H135: 7100 | I135: 150 | J135: X 500-75
D136: X | E136: 500 | F136: 80 | G136: 4700 | H136: 7100 | I136: 150 | J136: X 500-80
D137: X | E137: 500 | F137: 100 | G137: 4700 | H137: 7100 | I137: 150 | J137: X 500-100
D138: X | E138: 500 | F138: 125 | G138: 4700 | H138: 7100 | I138: 150 | J138: X 500-125
D139: X | E139: 750 | F139: 10 | G139: 7400 | H139: 12100 | I139: 150 | J139: X 750-10
D140: X | E140: 750 | F140: 13 | G140: 7400 | H140: 12100 | I140: 150 | J140: X 750-13
D141: X | E141: 750 | F141: 16 | G141: 7400 | H141: 12100 | I141: 150 | J141: X 750-16
D142: X | E142: 750 | F142: 19 | G142: 7400 | H142: 11700 | I142: 150 | J142: X 750-19
D143: X | E143: 750 | F143: 25 | G143: 7400 | H143: 11800 | I143: 150 | J143: X 750-25
D144: X | E144: 750 | F144: 32 | G144: 7400 | H144: 11800 | I144: 150 | J144: X 750-32
D145: X | E145: 750 | F145: 38 | G145: 7400 | H145: 11800 | I145: 150 | J145: X 750-38
D146: X | E146: 750 | F146: 50 | G146: 7400 | H146: 11800 | I146: 150 | J146: X 750-50
D147: X | E147: 750 | F147: 63 | G147: 7400 | H147: 11800 | I147: 150 | J147: X 750-63
D148: X | E148: 750 | F148: 75 | G148: 7400 | H148: 11900 | I148: 150 | J148: X 750-75
D149: X | E149: 750 | F149: 80 | G149: 7400 | H149: 11900 | I149: 150 | J149: X 750-80
D150: X | E150: 750 | F150: 100 | G150: 7400 | H150: 11900 | I150: 150 | J150: X 750-100
D151: X | E151: 750 | F151: 125 | G151: 7400 | H151: 11900 | I151: 150 | J151: X 750-125
D152: X | E152: 1000 | F152: 13 | G152: 9200 | H152: 13800 | I152: 150 | J152: X 1000-13
D153: X | E153: 1000 | F153: 16 | G153: 9200 | H153: 13800 | I153: 150 | J153: X 1000-16
D154: X | E154: 1000 | F154: 19 | G154: 9200 | H154: 14000 | I154: 150 | J154: X 1000-19
D155: X | E155: 1000 | F155: 25 | G155: 9200 | H155: 14200 | I155: 150 | J155: X 1000-25
D156: X | E156: 1000 | F156: 32 | G156: 9200 | H156: 14300 | I156: 150 | J156: X 1000-32
D157: X | E157: 1000 | F157: 38 | G157: 9200 | H157: 14500 | I157: 150 | J157: X 1000-38
D158: X | E158: 1000 | F158: 50 | G158: 9200 | H158: 14600 | I158: 150 | J158: X 1000-50
D159: X | E159: 1000 | F159: 63 | G159: 9200 | H159: 14700 | I159: 150 | J159: X 1000-63
D160: X | E160: 1000 | F160: 75 | G160: 9200 | H160: 14700 | I160: 150 | J160: X 1000-75
D161: X | E161: 1000 | F161: 80 | G161: 9200 | H161: 14800 | I161: 150 | J161: X 1000-80
D162: X | E162: 1000 | F162: 100 | G162: 9200 | H162: 14800 | I162: 150 | J162: X 1000-100
D163: X | E163: 1000 | F163: 125 | G163: 9200 | H163: 14800 | I163: 150 | J163: X 1000-125
D164: X | E164: 1500 | F164: 13 | G164: 15000 | H164: 24000 | I164: 150 | J164: X 1500-13
D165: X | E165: 1500 | F165: 16 | G165: 15000 | H165: 24100 | I165: 150 | J165: X 1500-16
D166: X | E166: 1500 | F166: 19 | G166: 15000 | H166: 24200 | I166: 150 | J166: X 1500-19
D167: X | E167: 1500 | F167: 25 | G167: 15000 | H167: 24300 | I167: 150 | J167: X 1500-25
D168: X | E168: 1500 | F168: 32 | G168: 15000 | H168: 23800 | I168: 150 | J168: X 1500-32
D169: X | E169: 1500 | F169: 38 | G169: 15000 | H169: 23900 | I169: 150 | J169: X 1500-38
D170: X | E170: 1500 | F170: 50 | G170: 15000 | H170: 24000 | I170: 150 | J170: X 1500-50
D171: X | E171: 1500 | F171: 63 | G171: 15000 | H171: 24100 | I171: 150 | J171: X 1500-63
D172: X | E172: 1500 | F172: 75 | G172: 15000 | H172: 24200 | I172: 150 | J172: X 1500-75
D173: X | E173: 1500 | F173: 80 | G173: 15000 | H173: 24200 | I173: 150 | J173: X 1500-80
D174: X | E174: 1500 | F174: 100 | G174: 15000 | H174: 24300 | I174: 150 | J174: X 1500-100
D175: X | E175: 1500 | F175: 125 | G175: 15000 | H175: 24300 | I175: 150 | J175: X 1500-125
D176: X | E176: 2400 | F176: 16 | G176: 24000 | H176: 38300 | I176: 150 | J176: X 2400-16
D177: X | E177: 2400 | F177: 19 | G177: 24000 | H177: 38500 | I177: 150 | J177: X 2400-19
D178: X | E178: 2400 | F178: 25 | G178: 24000 | H178: 38700 | I178: 150 | J178: X 2400-25
D179: X | E179: 2400 | F179: 32 | G179: 24000 | H179: 38600 | I179: 150 | J179: X 2400-32
D180: X | E180: 2400 | F180: 38 | G180: 24000 | H180: 38400 | I180: 150 | J180: X 2400-38
D181: X | E181: 2400 | F181: 50 | G181: 24000 | H181: 39200 | I181: 150 | J181: X 2400-50
D182: X | E182: 2400 | F182: 63 | G182: 24000 | H182: 39200 | I182: 150 | J182: X 2400-63
D183: X | E183: 2400 | F183: 75 | G183: 24000 | H183: 39200 | I183: 150 | J183: X 2400-75
D184: X | E184: 2400 | F184: 80 | G184: 24000 | H184: 39200 | I184: 150 | J184: X 2400-80
D185: X | E185: 2400 | F185: 100 | G185: 24000 | H185: 39300 | I185: 150 | J185: X 2400-100
D186: X | E186: 2400 | F186: 125 | G186: 24000 | H186: 39300 | I186: 150 | J186: X 2400-125
D187: X | E187: 4200 | F187: 16 | G187: 42000 | H187: 61700 | I187: 150 | J187: X 4200-16
D188: X | E188: 4200 | F188: 19 | G188: 42000 | H188: 63700 | I188: 150 | J188: X 4200-19
D189: X | E189: 4200 | F189: 25 | G189: 42000 | H189: 60800 | I189: 150 | J189: X 4200-25
D190: X | E190: 4200 | F190: 32 | G190: 42000 | H190: 64300 | I190: 150 | J190: X 4200-32
D191: X | E191: 4200 | F191: 38 | G191: 42000 | H191: 65800 | I191: 150 | J191: X 4200-38
D192: X | E192: 4200 | F192: 50 | G192: 42000 | H192: 67000 | I192: 150 | J192: X 4200-50
D193: X | E193: 4200 | F193: 63 | G193: 42000 | H193: 67800 | I193: 150 | J193: X 4200-63
D194: X | E194: 4200 | F194: 75 | G194: 42000 | H194: 68000 | I194: 150 | J194: X 4200-75
D195: X | E195: 4200 | F195: 80 | G195: 42000 | H195: 68600 | I195: 150 | J195: X 4200-80
D196: X | E196: 4200 | F196: 100 | G196: 42000 | H196: 69100 | I196: 150 | J196: X 4200-100
D197: X | E197: 4200 | F197: 125 | G197: 42000 | H197: 69600 | I197: 150 | J197: X 4200-125
D198: X | E198: 6600 | F198: 16 | G198: 66300 | H198: 89000 | I198: 150 | J198: X 6600-16
D199: X | E199: 6600 | F199: 19 | G199: 66300 | H199: 91000 | I199: 150 | J199: X 6600-19
D200: X | E200: 6600 | F200: 25 | G200: 66300 | H200: 93900 | I200: 150 | J200: X 6600-25
... 663 more rows

Sheet Hyson-Kaller conv
C1: Hyson Reference | D1: Kaller Str Code | F1: Hyson Reference | G1: Kaller Str Code
C2: T2L-300 | D2: TU 250 | F2: T2L-300x10 | G2: TU 250-10
C3: NP-500 | D3: TU 500 | F3: T2L-300x0.50 | G3: TU 250-12,7
C4: NP-750 | D4: TU 750 | F4: T2L-300x16 | G4: TU 250-16
C5: NP-1500 | D5: TU 1500 | F5: T2L-300x25 | G5: TU 250-25
C6: NP-3000 | D6: TU 3000 | F6: T2L-300x1.50 | G6: TU 250-38,1
C7: NP-5000 | D7: TU 5000 | F7: T2L-300x50 | G7: TU 250-50
C8: NP-7500 | D8: TU 7500 | F8: T2L-300x2.50 | G8: TU 250-63,5
C9: NP-10000 | D9: TU 10000 | F9: T2L-300x80 | G9: TU 250-80
C10: T2L-500 | D10: K 500 | F10: T2L-300x100 | G10: TU 250-100
C11: T2L-750 | D11: K 750 | F11: T2L-300x125 | G11: TU 250-125
C12: T3-170 | D12: X 170 | F12: NP-500x10 | G12: TU 500-10
C13: T3-320 | D13: X 320 | F13: NP-500x12.7 | G13: TU 500-12,7
C14: T3-350 | D14: X 350 | F14: NP-500x25 | G14: TU 500-25
C15: T3-500 | D15: X 500 | F15: NP-500x38.1 | G15: TU 500-38,1
C16: T3-750 | D16: X 750 | F16: NP-500x50 | G16: TU 500-50
C17: T3-1000 | D17: X 1000 | F17: NP-500x63.5 | G17: TU 500-63,5
C18: T3-1500 | D18: X 1500 | F18: NP-500x80 | G18: TU 500-80
C19: T3-2400 | D19: X 2400 | F19: NP-500x100 | G19: TU 500-100
C20: T3-4200 | D20: X 4200 | F20: NP-500x125 | G20: TU 500-125
C21: T3-6600 | D21: X 6600 | F21: NP-500x160 | G21: TU 500-160
C22: T3-9500 | D22: X 9500 | F22: NP-750x12.7 | G22: TU 750-12,7
C23: T3-20000 | D23: X 20000 | F23: NP-750x25 | G23: TU 750-25
C24: T4-750 | D24: TX 750 | F24: NP-750x38.1 | G24: TU 750-38,1
C25: T4-1000 | D25: TX 1000 | F25: NP-750x50 | G25: TU 750-50
C26: T4-1500 | D26: TX 1500 | F26: NP-750x63.5 | G26: TU 750-63,5
C27: T4-2400 | D27: TX 2400 | F27: NP-750x80 | G27: TU 750-80
C28: T4-4200 | D28: TX 4200 | F28: NP-750x100 | G28: TU 750-100
C29: T4-6600 | D29: TX 6600 | F29: NP-750x125 | G29: TU 750-125
C30: T4-9500 | D30: TX 9500 | F30: NP-750x160 | G30: TU 750-160
C31: T4-20000 | D31: TX 20000 | F31: NP-750x200 | G31: TU 750-200
C32: NPL-750 | D32: TL 750 | F32: NP-750x250 | G32: TU 750-250
C33: NPL-1500 | D33: TL 1500 | F33: NP-750x300 | G33: TU 750-300
C34: NPL-3000 | D34: TL 3000 | F34: NP-1500x25 | G34: TU 1500-25
C35: NPL-5000 | D35: TL 5000 | F35: NP-1500x38.1 | G35: TU 1500-38,1
C36: NPL-7500 | D36: TL 7500 | F36: NP-1500x50 | G36: TU 1500-50
C37: T2-50 | D37: R12 | F37: NP-1500x63.5 | G37: TU 1500-63,5
C38: T2-70 | D38: R15 | F38: NP-1500x80 | G38: TU 1500-80
C39: T2-90 | D39: R19 | F39: NP-1500x100 | G39: TU 1500-100
C40: T2-180 | D40: M2 | F40: NP-1500x125 | G40: TU 1500-125
C41: T2-200 | D41: MC3 | F41: NP-1500x160 | G41: TU 1500-160
C42: T3T-350 | D42: XG 350 | F42: NP-1500x200 | G42: TU 1500-200
C43: T3T-500 | D43: XG 500 | F43: NP-1500x250 | G43: TU 1500-250
C44: T3T-750 | D44: XG 750 | F44: NP-1500x300 | G44: TU 1500-300
C45: T3T-1000 | D45: XG 1000 | F45: NP-3000x25 | G45: TU 3000-25
C46: T3T-1500 | D46: XG 1500 | F46: NP-3000x38.1 | G46: TU 3000-38,1
C47: T3T-2400 | D47: XG 2400 | F47: NP-3000x50 | G47: TU 3000-50
C48: T3T-4200 | D48: XG 4200 | F48: NP-3000x63.5 | G48: TU 3000-63,5
C49: T3T-6600 | D49: XG 6600 | F49: NP-3000x80 | G49: TU 3000-80
C50: T3T-9500 | D50: XG 9500 | F50: NP-3000x100 | G50: TU 3000-100
C51: T3F-750 | D51: XF 750 | F51: NP-3000x125 | G51: TU 3000-125
C52: T3F-1000 | D52: XF 1000 | F52: NP-3000x160 | G52: TU 3000-160
C53: T3F-1500 | D53: XF 1500 | F53: NP-3000x200 | G53: TU 3000-200
C54: T3F-2400 | D54: XF 2400 | F54: NP-3000x250 | G54: TU 3000-250
C55: T4SC-420 | D55: CU4 420 | F55: NP-3000x300 | G55: TU 3000-300
C56: T4SC-740 | D56: CU4 740 | F56: NP-5000x25 | G56: TU 5000-25
C57: T4SC-1000 | D57: CU4 1000 | F57: NP-5000x38.1 | G57: TU 5000-38,1
C58: T4SC-1800 | D58: CU4 1800 | F58: NP-5000x50 | G58: TU 5000-50
C59: T4SC-2900 | D59: CU4 2900 | F59: NP-5000x63.5 | G59: TU 5000-63,5
C60: T4SC-4700 | D60: CU4 4700 | F60: NP-5000x80 | G60: TU 5000-80
C61: T4SC-7500 | D61: CU4 7500 | F61: NP-5000x100 | G61: TU 5000-100
C62: T4SC-11800 | D62: CU4 11800 | F62: NP-5000x125 | G62: TU 5000-125
C63: T4SC-18300 | D63: CU4 18300 | F63: NP-5000x160 | G63: TU 5000-160
C64: T5-500 | D64: CX 500 | F64: NP-5000x200 | G64: TU 5000-200
C65: T5-1000 | D65: CX 1000 | F65: NP-5000x250 | G65: TU 5000-250
C66: T5-1900 | D66: CX 1900 | F66: NP-5000x300 | G66: TU 5000-300
C67: TNKB-1000 | D67: X 1000 | F67: NP-7500x25 | G67: TU 7500-25
C68: TNKB-2400 | D68: X 2400 | F68: NP-7500x38.1 | G68: TU 7500-38,1
C69: TNKB-2400 | D69: X 2400 | F69: NP-7500x50 | G69: TU 7500-50
C70: TNKB-4200 | D70: X 4200 | F70: NP-7500x63.5 | G70: TU 7500-63,5
C71: TNKB-6600 | D71: X 6600 | F71: NP-7500x80 | G71: TU 7500-80
C72: TNKT-1000 | D72: X 1000 | F72: NP-7500x100 | G72: TU 7500-100
C73: TNKT-2400 | D73: X 2400 | F73: NP-7500x125 | G73: TU 7500-125
C74: TNKT-4200 | D74: X 4200 | F74: NP-7500x160 | G74: TU 7500-160
C75: TNKT-6600 | D75: X 6600 | F75: NP-7500x200 | G75: TU 7500-200
C76: TNKS-1000 | D76: X 1000 | F76: NP-7500x250 | G76: TU 7500-250
C77: TNKS-2400 | D77: X 2400 | F77: NP-7500x300 | G77: TU 7500-300
C78: TNKS-4200 | D78: X 4200 | F78: NP-10000x25 | G78: TU 10000-25
C79: TNKS-6600 | D79: X 6600 | F79: NP-10000x38.1 | G79: TU 10000-38,1
C80: TNK-400 | D80: TU 500 | F80: NP-10000x50 | G80: TU 10000-50
A81: Nya 20210902 | C81: T2-750P | D81: TL 750 | F81: NP-10000x63.5 | G81: TU 10000-63,5
C82: T2B-1500 | D82: TL 1500 | F82: NP-10000x80 | G82: TU 10000-80
C83: T2B-3000 | D83: TL 3000 | F83: NP-10000x100 | G83: TU 10000-100
C84: T2B-5000 | D84: TL 5000 | F84: NP-10000x125 | G84: TU 10000-125
F85: NP-10000x160 | G85: TU 10000-160
F86: NP-10000x200 | G86: TU 10000-200
F87: NP-10000x250 | G87: TU 10000-250
F88: NP-10000x300 | G88: TU 10000-300
F89: T2L-500x0.25 | G89: K 500-6
F90: T2L-500x0.50 | G90: K 500-12,5
F91: T2L-500x0.75 | G91: K 500-19
F92: T2L-500x1.50 | G92: K 500-38,1
F93: T2L-500x2.50 | G93: K 500-63,5
F94: T2L-750x0.25 | G94: K 750-6
F95: T2L-750x0.50 | G95: K 750-12,5
F96: T2L-750x0.75 | G96: K 750-19
F97: T2L-750x1.50 | G97: K 750-38,1
F98: T2L-750x2.50 | G98: K 750-63,5
F99: T3-170x7 | G99: X 170-7
F100: T3-170x10 | G100: X 170-10
F101: T3-170x15 | G101: X 170-15
F102: T3-170x19 | G102: X 170-19
F103: T3-170x25 | G103: X 170-25
F104: T3-170x38 | G104: X 170-38
F105: T3-170x50 | G105: X 170-50
F106: T3-170x63 | G106: X 170-63
F107: T3-170x75 | G107: X 170-75
F108: T3-170x80 | G108: X 170-80
F109: T3-170x100 | G109: X 170-100
F110: T3-170x125 | G110: X 170-125
F111: T3-320x7 | G111: X 320-7
F112: T3-320x10 | G112: X 320-10
F113: T3-320x15 | G113: X 320-15
F114: T3-320x19 | G114: X 320-19
F115: T3-320x25 | G115: X 320-25
F116: T3-320x38 | G116: X 320-38
F117: T3-320x50 | G117: X 320-50
F118: T3-320x63 | G118: X 320-63
F119: T3-320x75 | G119: X 320-75
F120: T3-320x80 | G120: X 320-80
F121: T3-320x100 | G121: X 320-100
F122: T3-320x125 | G122: X 320-125
F123: T3-350x10 | G123: X 350-10
F124: T3-350x13 | G124: X 350-13
F125: T3-350x16 | G125: X 350-16
F126: T3-350x19 | G126: X 350-19
F127: T3-350x25 | G127: X 350-25
F128: T3-350x32 | G128: X 350-32
F129: T3-350x38 | G129: X 350-38
F130: T3-350x50 | G130: X 350-50
F131: T3-350x63 | G131: X 350-63
F132: T3-350x75 | G132: X 350-75
F133: T3-350x80 | G133: X 350-80
F134: T3-350x100 | G134: X 350-100
F135: T3-350x125 | G135: X 350-125
F136: T3-500x10 | G136: X 500-10
F137: T3-500x13 | G137: X 500-13
F138: T3-500x16 | G138: X 500-16
F139: T3-500x19 | G139: X 500-19
F140: T3-500x25 | G140: X 500-25
F141: T3-500x32 | G141: X 500-32
F142: T3-500x38 | G142: X 500-38
F143: T3-500x50 | G143: X 500-50
F144: T3-500x63 | G144: X 500-63
F145: T3-500x75 | G145: X 500-75
F146: T3-500x80 | G146: X 500-80
F147: T3-500x100 | G147: X 500-100
F148: T3-500x125 | G148: X 500-125
F149: T3-750x10 | G149: X 750-10
F150: T3-750x13 | G150: X 750-13
F151: T3-750x16 | G151: X 750-16
F152: T3-750x19 | G152: X 750-19
F153: T3-750x25 | G153: X 750-25
F154: T3-750x32 | G154: X 750-32
F155: T3-750x38 | G155: X 750-38
F156: T3-750x50 | G156: X 750-50
F157: T3-750x63 | G157: X 750-63
F158: T3-750x75 | G158: X 750-75
F159: T3-750x80 | G159: X 750-80
F160: T3-750x100 | G160: X 750-100
F161: T3-750x125 | G161: X 750-125
F162: T3-1000x13 | G162: X 1000-13
F163: T3-1000x16 | G163: X 1000-16
F164: T3-1000x19 | G164: X 1000-19
F165: T3-1000x25 | G165: X 1000-25
F166: T3-1000x32 | G166: X 1000-32
F167: T3-1000x38 | G167: X 1000-38
F168: T3-1000x50 | G168: X 1000-50
F169: T3-1000x63 | G169: X 1000-63
F170: T3-1000x75 | G170: X 1000-75
F171: T3-1000x80 | G171: X 1000-80
F172: T3-1000x100 | G172: X 1000-100
F173: T3-1000x125 | G173: X 1000-125
F174: T3-1500x13 | G174: X 1500-13
F175: T3-1500x16 | G175: X 1500-16
F176: T3-1500x19 | G176: X 1500-19
F177: T3-1500x25 | G177: X 1500-25
F178: T3-1500x32 | G178: X 1500-32
F179: T3-1500x38 | G179: X 1500-38
F180: T3-1500x50 | G180: X 1500-50
F181: T3-1500x63 | G181: X 1500-63
F182: T3-1500x75 | G182: X 1500-75
F183: T3-1500x80 | G183: X 1500-80
F184: T3-1500x100 | G184: X 1500-100
F185: T3-1500x125 | G185: X 1500-125
F186: T3-2400x16 | G186: X 2400-16
F187: T3-2400x19 | G187: X 2400-19
F188: T3-2400x25 | G188: X 2400-25
F189: T3-2400x32 | G189: X 2400-32
F190: T3-2400x38 | G190: X 2400-38
F191: T3-2400x50 | G191: X 2400-50
F192: T3-2400x63 | G192: X 2400-63
F193: T3-2400x75 | G193: X 2400-75
F194: T3-2400x80 | G194: X 2400-80
F195: T3-2400x100 | G195: X 2400-100
F196: T3-2400x125 | G196: X 2400-125
F197: T3-4200x16 | G197: X 4200-16
F198: T3-4200x19 | G198: X 4200-19
F199: T3-4200x25 | G199: X 4200-25
F200: T3-4200x32 | G200: X 4200-32
... 716 more rows
